{"text_format":"1","workbook":"xlsx","n_sheets":5,"sheets":["INFORME_GENERAL","INGRESOS_OTRAS_CARTERAS","INSTRUCTIVO","Hoja8","datos"],"not_rendered":{"charts":1,"images":1,"macros":1,"external_links":0,"defined_names":8,"comments":0,"pivot_tables":1},"unopened":[],"bounds":{"document_bytes":16777216,"sheet_cells":100000,"rows_first":2000,"rows_last":500,"rows_between":2000,"halvings":0,"cell_chars":16384,"cell_head_chars":4096},"cells_cut":0,"cells_raw":0,"read":"whole","date_system":"1900"}

{"sheet":"INFORME_GENERAL","index":0,"n_rows":47,"n_cols":16378,"rows_kept":15,"cut":true,"hidden":false,"merged":[[45,0,45,28],[3,3,3,21],[0,23,1,23],[0,0,3,0],[46,0,48,28],[8,10,8,11],[8,12,8,13],[8,14,8,15],[7,7,7,18],[11,21,11,22],[5,1,5,2],[0,22,1,22],[3,22,3,23],[0,3,1,21],[7,1,7,4],[8,8,8,9]],"bounds":{"rows_first":7,"rows_last":1,"rows_between":7,"halvings":8}}
[{"$error":"#VALUE!"},null,null,"PROCESO GESTIÓN FINANCIERA",null,null,null,null,null,null,null,null,null,null,null,null,null,null,null,null,null,null,"F3.P40.GF ","2025-09-19"]
[]
[null,null,null,null,null,null,null,null,null,null,null,null,null,null,null,null,null,null,null,null,null,null,"Versión 1","Página 1 de 1"]
[null,null,null,"FORMATO MOVIMIENTO INGRESOS BANCOS ADN",null,null,null,null,null,null,null,null,null,null,null,null,null,null,null,null,null,null,"Clasificación de la información: Clasificada"]
[]
["REGIONAL:",null,null,"MES:"]
[]
[null,"INGRESOS ADN",null,null,null,null,null,"INGRESOS ADN"]
[null,"JULIO",0,0,0,null,null,"JULIO",{"$f":"Hoja8!B29","v":0},{"$f":"Hoja8!C29","v":0},{"$f":"Hoja8!D29","v":0},{"$f":"Hoja8!E29","v":0},{"$f":"Hoja8!F29","v":0},{"$f":"Hoja8!G29","v":0},{"$f":"Hoja8!H29","v":0},{"$f":"Hoja8!I29","v":0},0,0,0,null,null,null,null,null,null,null,null,null,null,null,null,null,null,null,null,null,null,null,null,null,null,null,null,null,null,null,null,null,null,null,null,null,null,null,null,null,null,null,null,null,null,null,null,null,null,null,null,null,null,null,null,null,null,null,null,null,null,null,null,null,null,null,null,null,null,null,null,null,null,null,null,null,null,null,null,null,null,null,null,null,null,null,null,null,null,null,null,null,null,null,null,null,null,null,null,null,null,null,null,null,null,null,null,null,null,null,null,null,null,null,null,null,null,null,null,null,null,null,null,null,null,null,null,null,null,null,null,null,null,null,null,null,null,null,null,null,null,null,null,null,null,null,null,null,null,null,null,null,null,null,null,null,null,null,null,null,null,null,null,null,null,null,null,null,null,null,null,null,null,null,null,null,null,null,null,null,null,null,null,null,null,null,null,null,null,null,null,null,null,null,null,null,null,null,null,null,null,null,null,null,null,null,null,null,null,null,null,null,null,null,null,null,null,null,null,null,null,null,null,null,null,null,null,null,null,null,null,null,null,null,null,null,null,null,null,null,null,null,null,null,null,null,null,null,null,null,null,null,null,null,null,null,null,null,null,null,null,null,null,null,null,null,null,null,null,null,null,null,null,null,null,null,null,null,null,null,null,null,null,null,null,null,null,null,null,null,null,null,null,null,null,null,null,null,null,null,null,null,null,null,null,null,null,null,null,null,null,null,null,null,null,null,null,null,null,null,null,null,null,null,null,null,null,null,null,null,null,null,null,null,null,null,null,null,null,null,null,null,null,null,null,null,null,null,null,null,null,null,null,null,null,null,null,null,null,null,null,null,null,null,null,null,null,null,null,null,null,null,null,null,null,null,null,null,null,null,null,null,null,null,null,null,null,null,null,null,null,null,null,null,null,null,null,null,null,null,null,null,null,null,null,null,null,null,null,null,null,null,null,null,null,null,null,null,null,null,null,null,null,null,null,null,null,null,null,null,null,null,null,null,null,null,null,null,null,null,null,null,null,null,null,null,null,null,null,null,null,null,null,null,null,null,null,null,null,null,null,null,null,null,null,null,null,null,null,null,null,null,null,null,null,null,null,null,null,null,null,null,null,null,null,null,null,null,null,null,null,null,null,null,null,null,null,null,null,null,null,null,null,null,null,null,null,null,null,null,null,null,null,null,null,null,null,null,null,null,null,null,null,null,null,null,null,null,null,null,null,null,null,null,null,null,null,null,null,null,null,null,null,null,null,null,null,null,null,null,null,null,null,null,null,null,null,null,null,null,null,null,null,null,null,null,null,null,null,null,null,null,null,null,null,null,null,null,null,null,null,null,null,null,null,null,null,null,null,null,null,null,null,null,null,null,null,null,null,null,null,null,null,null,null,null,null,null,null,null,null,null,null,null,null,null,null,null,null,null,null,null,null,null,null,null,null,null,null,null,null,null,null,null,null,null,null,null,null,null,null,null,null,null,null,null,null,null,null,null,null,null,null,null,null,null,null,null,null,null,null,null,null,null,null,null,null,null,null,null,null,null,null,null,null,null,null,null,null,null,null,null,null,null,null,null,null,null,null,null,null,null,null,null,null,null,null,null,null,null,null,null,null,null,null,null,null,null,null,null,null,null,null,null,null,null,null,null,null,null,null,null,null,null,null,null,null,null,null,null,null,null,null,null,null,null,null,null,null,null,null,null,null,null,null,null,null,null,null,null,null,null,null,null,null,null,null,null,null,null,null,null,null,null,null,null,null,null,null,null,null,null,null,null,null,null,null,null,null,null,null,null,null,null,null,null,null,null,null,null,null,null,null,null,null,null,null,null,null,null,null,null,null,null,null,null,null,null,null,null,null,null,null,null,null,null,null,null,null,null,null,null,null,null,null,null,null,null,null,null,null,null,null,null,null,null,null,null,null,null,null,null,null,null,null,null,null,null,null,null,null,null,null,null,null,null,null,null,null,null,null,null,null,null,null,null,null,null,null,null,null,null,null,null,null,null,null,null,null,null,null,null,null,null,null,null,null,null,null,null,null,null,null,null,null,null,null,null,null,null,null,null,null,null,null,null,null,null,null,null,null,null,null,null,null,null,null,null,null,null,null,null,null,null,null,null,null,null,null,null,null,null,null,null,null,null,null,null,null,null,null,null,null,null,null,null,null,null,null,null,null,null,null,null,null,null,null,null,null,null,null,null,null,null,null,null,null,null,null,null,null,null,null,null,null,null,null,null,null,null,null,null,null,null,null,null,null,null,null,null,null,null,null,null,null,null,null,null,null,null,null,null,null,null,null,null,null,null,null,null,null,null,null,null,null,null,null,null,null,null,null,null,null,null,null,null,null,null,null,null,null,null,null,null,null,null,null,null,null,null,null,null,null,null,null,null,null,null,null,null,null,null,null,null,null,null,null,null,null,null,null,null,null,null,null,null,null,null,null,null,null,null,null,null,null,null,null,null,null,null,null,null,null,null,null,null,null,null,null,null,null,null,null,null,null,null,null,null,null,null,null,null,null,null,null,null,null,null,null,null,null,null,null,null,null,null,null,null,null,null,null,null,null,null,null,null,null,null,null,null,null,null,null,null,null,null,null,null,null,null,null,null,null,null,null,null,null,null,null,null,null,null,null,null,null,null,null,null,null,null,null,null,null,null,null,null,null,null,null,null,null,null,null,null,null,null,null,null,null,null,null,null,null,null,null,null,null,null,null,null,null,null,null,null,null,null,null,null,null,null,null,null,null,null,null,null,null,null,null,null,null,null,null,null,null,null,null,null,null,null,null,null,null,null,null,null,null,null,null,null,null,null,null,null,null,null,null,null,null,null,null,null,null,null,null,null,null,null,null,null,null,null,null,null,null,null,null,null,null,null,null,null,null,null,null,null,null,null,null,null,null,null,null,null,null,null,null,null,null,null,null,null,null,null,null,null,null,null,null,null,null,null,null,null,null,null,null,null,null,null,null,null,null,null,null,null,null,null,null,null,null,null,null,null,null,null,null,null,null,null,null,null,null,null,null,null,null,null,null,null,null,null,null,null,null,null,null,null,null,null,null,null,null,null,null,null,null,null,null,null,null,null,null,null,null,null,null,null,null,null,null,null,null,null,null,null,null,null,null,null,null,null,null,null,null,null,null,null,null,null,null,null,null,null,null,null,null,null,null,null,null,null,null,null,null,null,null,null,null,null,null,null,null,null,null,null,null,null,null,null,null,null,null,null,null,null,null,null,null,null,null,null,null,null,null,null,null,null,null,null,null,null,null,null,null,null,null,null,null,null,null,null,null,null,null,null,null,null,null,null,null,null,null,null,null,null,null,null,null,null,null,null,null,null,null,null,null,null,null,null,null,null,null,null,null,null,null,null,null,null,null,null,null,null,null,null,null,null,null,null,null,null,null,null,null,null,null,null,null,null,null,null,null,null,null,null,null,null,null,null,null,null,null,null,null,null,null,null,null,null,null,null,null,null,null,null,null,null,null,null,null,null,null,null,null,null,null,null,null,null,null,null,null,null,null,null,null,null,null,null,null,null,null,null,null,null,null,null,null,null,null,null,null,null,null,null,null,null,null,null,null,null,null,null,null,null,null,null,null,null,null,null,null,null,null,null,null,null,null,null,null,null,null,null,null,null,null,null,null,null,null,null,null,null,null,null,null,null,null,null,null,null,null,null,null,null,null,null,null,null,null,null,null,null,null,null,null,null,null,null,null,null,null,null,null,null,null,null,null,null,null,null,null,null,null,null,null,null,null,null,null,null,null,null,null,null,null,null,null,null,null,null,null,null,null,null,null,null,null,null,null,null,null,null,null,null,null,null,null,null,null,null,null,null,null,null,null,null,null,null,null,null,null,null,null,null,null,null,null,null,null,null,null,null,null,null,null,null,null,null,null,null,null,null,null,null,null,null,null,null,null,null,null,null,null,null,null,null,null,null,null,null,null,null,null,null,null,null,null,null,null,null,null,null,null,null,null,null,null,null,null,null,null,null,null,null,null,null,null,null,null,null,null,null,null,null,null,null,null,null,null,null,null,null,null,null,null,null,null,null,null,null,null,null,null,null,null,null,null,null,null,null,null,null,null,null,null,null,null,null,null,null,null,null,null,null,null,null,null,null,null,null,null,null,null,null,null,null,null,null,null,null,null,null,null,null,null,null,null,null,null,null,null,null,null,null,null,null,null,null,null,null,null,null,null,null,null,null,null,null,null,null,null,null,null,null,null,null,null,null,null,null,null,null,null,null,null,null,null,null,null,null,null,null,null,null,null,null,null,null,null,null,null,null,null,null,null,null,null,null,null,null,null,null,null,null,null,null,null,null,null,null,null,null,null,null,null,null,null,null,null,null,null,null,null,null,null,null,null,null,null,null,null,null,null,null,null,null,null,null,null,null,null,null,null,null,null,null,null,null,null,null,null,null,null,null,null,null,null,null,null,null,null,null,null,null,null,null,null,null,null,null,null,null,null,null,null,null,null,null,null,null,null,null,null,null,null,null,null,null,null,null,null,null,null,null,null,null,null,null,null,null,null,null,null,null,null,null,null,null,null,null,null,null,null,null,null,null,null,null,null,null,null,null,null,null,null,null,null,null,null,null,null,null,null,null,null,null,null,null,null,null,null,null,null,null,null,null,null,null,null,null,null,null,null,null,null,null,null,null,null,null,null,null,null,null,null,null,null,null,null,null,null,null,null,null,null,null,null,null,null,null,null,null,null,null,null,null,null,null,null,null,null,null,null,null,null,null,null,null,null,null,null,null,null,null,null,null,null,null,null,null,null,null,null,null,null,null,null,null,null,null,null,null,null,null,null,null,null,null,null,null,null,null,null,null,null,null,null,null,null,null,null,null,null,null,null,null,null,null,null,null,null,null,null,null,null,null,null,null,null,null,null,null,null,null,null,null,null,null,null,null,null,null,null,null,null,null,null,null,null,null,null,null,null,null,null,null,null,null,null,null,null,null,null,null,null,null,null,null,null,null,null,null,null,null,null,null,null,null,null,null,null,null,null,null,null,null,null,null,null,null,null,null,null,null,null,null,null,null,null,null,null,null,null,null,null,null,null,null,null,null,null,null,null,null,null,null,null,null,null,null,null,null,null,null,null,null,null,null,null,null,null,null,null,null,null,null,null,null,null,null,null,null,null,null,null,null,null,null,null,null,null,null,null,null,null,null,null,null,null,null,null,null,null,null,null,null,null,null,null,null,null,null,null,null,null,null,null,null,null,null,null,null,null,null,null,null,null,null,null,null,null,null,null,null,null,null,null,null,null,null,null,null,null,null,null,null,null,null,null,null,null,null,null,null,null,null,null,null,null,null,null,null,null,null,null,null,null,null,null,null,null,null,null,null,null,null,null,null,null,null,null,null,null,null,null,null,null,null,null,null,null,null,null,null,null,null,null,null,null,null,null,null,null,null,null,null,null,null,null,null,null,null,null,null,null,null,null,null,null,null,null,null,null,null,null,null,null,null,null,null,null,null,null,null,null,null,null,null,null,null,null,null,null,null,null,null,null,null,null,null,null,null,null,null,null,null,null,null,null,null,null,null,null,null,null,null,null,null,null,null,null,null,null,null,null,null,null,null,null,null,null,null,null,null,null,null,null,null,null,null,null,null,null,null,null,null,null,null,null,null,null,null,null,null,null,null,null,null,null,null,null,null,null,null,null,null,null,null,null,null,null,null,null,null,null,null,null,null,null,null,null,null,null,null,null,null,null,null,null,null,null,null,null,null,null,null,null,null,null,null,null,null,null,null,null,null,null,null,null,null,null,null,null,null,null,null,null,null,null,null,null,null,null,null,null,null,null,null,null,null,null,null,null,null,null,null,null,null,null,null,null,null,null,null,null,null,null,null,null,null,null,null,null,null,null,null,null,null,null,null,null,null,null,null,null,null,null,null,null,null,null,null,null,null,null,null,null,null,null,null,null,null,null,null,null,null,null,null,null,null,null,null,null,null,null,null,null,null,null,null,null,null,null,null,null,null,null,null,null,null,null,null,null,null,null,null,null,null,null,null,null,null,null,null,null,null,null,null,null,null,null,null,null,null,null,null,null,null,null,null,null,null,null,null,null,null,null,null,null,null,null,null,null,null,null,null,null,null,null,null,null,null,null,null,null,null,null,null,null,null,null,null,null,null,null,null,null,null,null,null,null,null,null,null,null,null,null,null,null,null,null,null,null,null,null,null,null,null,null,null,null,null,null,null,null,null,null,null,null,null,null,null,null,null,null,null,null,null,null,null,null,null,null,null,null,null,null,null,null,null,null,null,null,null,null,null,null,null,null,null,null,null,null,null,null,null,null,null,null,null,null,null,null,null,null,null,null,null,null,null,null,null,null,null,null,null,null,null,null,null,null,null,null,null,null,null,null,null,null,null,null,null,null,null,null,null,null,null,null,null,null,null,null,null,null,null,null,null,null,null,null,null,null,null,null,null,null,null,null,null,null,null,null,null,null,null,null,null,null,null,null,null,null,null,null,null,null,null,null,null,null,null,null,null,null,null,null,null,null,null,null,null,null,null,null,null,null,null,null,null,null,null,null,null,null,null,null,null,null,null,null,null,null,null,null,null,null,null,null,null,null,null,null,null,null,null,null,null,null,null,null,null,null,null,null,null,null,null,null,null,null,null,null,null,null,null,null,null,null,null,null,null,null,null,null,null,null,null,null,null,null,null,null,null,null,null,null,null,null,null,null,null,null,null,null,null,null,null,null,null,null,null,null,null,null,null,null,null,null,null,null,null,null,null,null,null,null,null,null,null,null,null,null,null,null,null,null,null,null,null,null,null,null,null,null,null,null,null,null,null,null,null,null,null,null,null,null,null,null,null,null,null,null,null,null,null,null,null,null,null,null,null,null,null,null,null,null,null,null,null,null,null,null,null,null,null,null,null,null,null,null,null,null,null,null,null,null,null,null,null,null,null,null,null,null,null,null,null,null,null,null,null,null,null,null,null,null,null,null,null,null,null,null,null,null,null,null,null,null,null,null,null,null,null,null,null,null,null,null,null,null,null,null,null,null,null,null,null,null,null,null,null,null,null,null,null,null,null,null,null,null,null,null,null,null,null,null,null,null,null,null,null,null,null,null,null,null,null,null,null,null,null,null,null,null,null,null,null,null,null,null,null,null,null,null,null,null,null,null,null,null,null,null,null,null,null,null,null,null,null,null,null,null,null,null,null,null,null,null,null,null,null,null,null,null,null,null,null,null,null,null,null,null,null,null,null,null,null,null,null,null,null,null,null,null,null,null,null,null,null,null,null,null,null,null,null,null,null,null,null,null,null,null,null,null,null,null,null,null,null,null,null,null,null,null,null,null,null,null,null,null,null,null,null,null,null,null,null,null,null,null,null,null,null,null,null,null,null,null,null,null,null,null,null,null,null,null,null,null,null,null,null,null,null,null,null,null,null,null,null,null,null,null,null,null,null,null,null,null,null,null,null,null,null,null,null,null,null,null,null,null,null,null,null,null,null,null,null,null,null,null,null,null,null,null,null,null,null,null,null,null,null,null,null,null,null,null,null,null,null,null,null,null,null,null,null,null,null,null,null,null,null,null,null,null,null,null,null,null,null,null,null,null,null,null,null,null,null,null,null,null,null,null,null,null,null,null,null,null,null,null,null,null,null,null,null,null,null,null,null,null,null,null,null,null,null,null,null,null,null,null,null,null,null,null,null,null,null,null,null,null,null,null,null,null,null,null,null,null,null,null,null,null,null,null,null,null,null,null,null,null,null,null,null,null,null,null,null,null,null,null,null,null,null,null,null,null,null,null,null,null,null,null,null,null,null,null,null,null,null,null,null,null,null,null,null,null,null,null,null,null,null,null,null,null,null,null,null,null,null,null,null,null,null,null,null,null,null,null,null,null,null,null,null,null,null,null,null,null,null,null,null,null,null,null,null,null,null,null,null,null,null,null,null,null,null,null,null,null,null,null,null,null,null,null,null,null,null,null,null,null,null,null,null,null,null,null,null,null,null,null,null,null,null,null,null,null,null,null,null,null,null,null,null,null,null,null,null,null,null,null,null,null,null,null,null,null,null,null,null,null,null,null,null,null,null,null,null,null,null,null,null,null,null,null,null,null,null,null,null,null,null,null,null,null,null,null,null,null,null,null,null,null,null,null,null,null,null,null,null,null,null,null,null,null,null,null,null,null,null,null,null,null,null,null,null,null,null,null,null,null,null,null,null,null,null,null,null,null,null,null,null,null,null,null,null,null,null,null,null,null,null,null,null,null,null,null,null,null,null,null,null,null,null,null,null,null,null,null,null,null,null,null,null,null,null,null,null,null,null,null,null,null,null,null,null,null,null,null,null,null,null,null,null,null,null,null,null,null,null,null,null,null,null,null,null,null,null,null,null,null,null,null,null,null,null,null,null,null,null,null,null,null,null,null,null,null,null,null,null,null,null,null,null,null,null,null,null,null,null,null,null,null,null,null,null,null,null,null,null,null,null,null,null,null,null,null,null,null,null,null,null,null,null,null,null,null,null,null,null,null,null,null,null,null,null,null,null,null,null,null,null,null,null,null,null,null,null,null,null,null,null,null,null,null,null,null,null,null,null,null,null,null,null,null,null,null,null,null,null,null,null,null,null,null,null,null,null,null,null,null,null,null,null,null,null,null,null,null,null,null,null,null,null,null,null,null,null,null,null,null,null,null,null,null,null,null,null,null,null,null,null,null,null,null,null,null,null,null,null,null,null,null,null,null,null,null,null,null,null,null,null,null,null,null,null,null,null,null,null,null,null,null,null,null,null,null,null,null,null,null,null,null,null,null,null,null,null,null,null,null,null,null,null,null,null,null,null,null,null,null,null,null,null,null,null,null,null,null,null,null,null,null,null,null,null,null,null,null,null,null,null,null,null,null,null,null,null,null,null,null,null,null,null,null,null,null,null,null,null,null,null,null,null,null,null,null,null,null,null,null,null,null,null,null,null,null,null,null,null,null,null,null,null,null,null,null,null,null,null,null,null,null,null,null,null,null,null,null,null,null,null,null,null,null,null,null,null,null,null,null,null,null,null,null,null,null,null,null,null,null,null,null,null,null,null,null,null,null,null,null,null,null,null,null,null,null,null,null,null,null,null,null,null,null,null,null,null,null,null,null,null,null,null,null,null,null,null,null,null,null,null,null,null,null,null,null,null,null,null,null,null,null,null,null,null,null,null,null,null,null,null,null,null,null,null,null,null,null,null,null,null,null,null,null,null,null,null,null,null,null,null,null,null,null,null,null,null,null,null,null,null,null,null,null,null,null,null,null,null,null,null,null,null,null,null,null,null,null,null,null,null,null,null,null,null,null,null,null,null,null,null,null,null,null,null,null,null,null,null,null,null,null,null,null,null,null,null,null,null,null,null,null,null,null,null,null,null,null,null,null,null,null,null,null,null,null,null,null,null,null,null,null,null,null,null,null,null,null,null,null,null,null,null,null,null,null,null,null,null,null,null,null,null,null,null,null,null,null,null,null,null,null,null,null,null,null,null,null,null,null,null,null,null,null,null,null,null,null,null,null,null,null,null,null,null,null,null,null,null,null,null,null,null,null,null,null,null,null,null,null,null,null,null,null,null,null,null,null,null,null,null,null,null,null,null,null,null,null,null,null,null,null,null,null,null,null,null,null,null,null,null,null,null,null,null,null,null,null,null,null,null,null,null,null,null,null,null,null,null,null,null,null,null,null,null,null,null,null,null,null,null,null,null,null,null,null,null,null,null,null,null,null,null,null,null,null,null,null,null,null,null,null,null,null,null,null,null,null,null,null,null,null,null,null,null,null,null,null,null,null,null,null,null,null,null,null,null,null,null,null,null,null,null,null,null,null,null,null,null,null,null,null,null,null,null,null,null,null,null,null,null,null,null,null,null,null,null,null,null,null,null,null,null,null,null,null,null,null,null,null,null,null,null,null,null,null,null,null,null,null,null,null,null,null,null,null,null,null,null,null,null,null,null,null,null,null,null,null,null,null,null,null,null,null,null,null,null,null,null,null,null,null,null,null,null,null,null,null,null,null,null,null,null,null,null,null,null,null,null,null,null,null,null,null,null,null,null,null,null,null,null,null,null,null,null,null,null,null,null,null,null,null,null,null,null,null,null,null,null,null,null,null,null,null,null,null,null,null,null,null,null,null,null,null,null,null,null,null,null,null,null,null,null,null,null,null,null,null,null,null,null,null,null,null,null,null,null,null,null,null,null,null,null,null,null,null,null,null,null,null,null,null,null,null,null,null,null,null,null,null,null,null,null,null,null,null,null,null,null,null,null,null,null,null,null,null,null,null,null,null,null,null,null,null,null,null,null,null,null,null,null,null,null,null,null,null,null,null,null,null,null,null,null,null,null,null,null,null,null,null,null,null,null,null,null,null,null,null,null,null,null,null,null,null,null,null,null,null,null,null,null,null,null,null,null,null,null,null,null,null,null,null,null,null,null,null,null,null,null,null,null,null,null,null,null,null,null,null,null,null,null,null,null,null,null,null,null,null,null,null,null,null,null,null,null,null,null,null,null,null,null,null,null,null,null,null,null,null,null,null,null,null,null,null,null,null,null,null,null,null,null,null,null,null,null,null,null,null,null,null,null,null,null,null,null,null,null,null,null,null,null,null,null,null,null,null,null,null,null,null,null,null,null,null,null,null,null,null,null,null,null,null,null,null,null,null,null,null,null,null,null,null,null,null,null,null,null,null,null,null,null,null,null,null,null,null,null,null,null,null,null,null,null,null,null,null,null,null,null,null,null,null,null,null,null,null,null,null,null,null,null,null,null,null,null,null,null,null,null,null,null,null,null,null,null,null,null,null,null,null,null,null,null,null,null,null,null,null,null,null,null,null,null,null,null,null,null,null,null,null,null,null,null,null,null,null,null,null,null,null,null,null,null,null,null,null,null,null,null,null,null,null,null,null,null,null,null,null,null,null,null,null,null,null,null,null,null,null,null,null,null,null,null,null,null,null,null,null,null,null,null,null,null,null,null,null,null,null,null,null,null,null,null,null,null,null,null,null,null,null,null,null,null,null,null,null,null,null,null,null,null,null,null,null,null,null,null,null,null,null,null,null,null,null,null,null,null,null,null,null,null,null,null,null,null,null,null,null,null,null,null,null,null,null,null,null,null,null,null,null,null,null,null,null,null,null,null,null,null,null,null,null,null,null,null,null,null,null,null,null,null,null,null,null,null,null,null,null,null,null,null,null,null,null,null,null,null,null,null,null,null,null,null,null,null,null,null,null,null,null,null,null,null,null,null,null,null,null,null,null,null,null,null,null,null,null,null,null,null,null,null,null,null,null,null,null,null,null,null,null,null,null,null,null,null,null,null,null,null,null,null,null,null,null,null,null,null,null,null,null,null,null,null,null,null,null,null,null,null,null,null,null,null,null,null,null,null,null,null,null,null,null,null,null,null,null,null,null,null,null,null,null,null,null,null,null,null,null,null,null,null,null,null,null,null,null,null,null,null,null,null,null,null,null,null,null,null,null,null,null,null,null,null,null,null,null,null,null,null,null,null,null,null,null,null,null,null,null,null,null,null,null,null,null,null,null,null,null,null,null,null,null,null,null,null,null,null,null,null,null,null,null,null,null,null,null,null,null,null,null,null,null,null,null,null,null,null,null,null,null,null,null,null,null,null,null,null,null,null,null,null,null,null,null,null,null,null,null,null,null,null,null,null,null,null,null,null,null,null,null,null,null,null,null,null,null,null,null,null,null,null,null,null,null,null,null,null,null,null,null,null,null,null,null,null,null,null,null,null,null,null,null,null,null,null,null,null,null,null,null,null,null,null,null,null,null,null,null,null,null,null,null,null,null,null,null,null,null,null,null,null,null,null,null,null,null,null,null,null,null,null,null,null,null,null,null,null,null,null,null,null,null,null,null,null,null,null,null,null,null,null,null,null,null,null,null,null,null,null,null,null,null,null,null,null,null,null,null,null,null,null,null,null,null,null,null,null,null,null,null,null,null,null,null,null,null,null,null,null,null,null,null,null,null,null,null,null,null,null,null,null,null,null,null,null,null,null,null,null,null,null,null,null,null,null,null,null,null,null,null,null,null,null,null,null,null,null,null,null,null,null,null,null,null,null,null,null,null,null,null,null,null,null,null,null,null,null,null,null,null,null,null,null,null,null,null,null,null,null,null,null,null,null,null,null,null,null,null,null,null,null,null,null,null,null,null,null,null,null,null,null,null,null,null,null,null,null,null,null,null,null,null,null,null,null,null,null,null,null,null,null,null,null,null,null,null,null,null,null,null,null,null,null,null,null,null,null,null,null,null,null,null,null,null,null,null,null,null,null,null,null,null,null,null,null,null,null,null,null,null,null,null,null,null,null,null,null,null,null,null,null,null,null,null,null,null,null,null,null,null,null,null,null,null,null,null,null,null,null,null,null,null,null,null,null,null,null,null,null,null,null,null,null,null,null,null,null,null,null,null,null,null,null,null,null,null,null,null,null,null,null,null,null,null,null,null,null,null,null,null,null,null,null,null,null,null,null,null,null,null,null,null,null,null,null,null,null,null,null,null,null,null,null,null,null,null,null,null,null,null,null,null,null,null,null,null,null,null,null,null,null,null,null,null,null,null,null,null,null,null,null,null,null,null,null,null,null,null,null,null,null,null,null,null,null,null,null,null,null,null,null,null,null,null,null,null,null,null,null,null,null,null,null,null,null,null,null,null,null,null,null,null,null,null,null,null,null,null,null,null,null,null,null,null,null,null,null,null,null,null,null,null,null,null,null,null,null,null,null,null,null,null,null,null,null,null,null,null,null,null,null,null,null,null,null,null,null,null,null,null,null,null,null,null,null,null,null,null,null,null,null,null,null,null,null,null,null,null,null,null,null,null,null,null,null,null,null,null,null,null,null,null,null,null,null,null,null,null,null,null,null,null,null,null,null,null,null,null,null,null,null,null,null,null,null,null,null,null,null,null,null,null,null,null,null,null,null,null,null,null,null,null,null,null,null,null,null,null,null,null,null,null,null,null,null,null,null,null,null,null,null,null,null,null,null,null,null,null,null,null,null,null,null,null,null,null,null,null,null,null,null,null,null,null,null,null,null,null,null,null,null,null,null,null,null,null,null,null,null,null,null,null,null,null,null,null,null,null,null,null,null,null,null,null,null,null,null,null,null,null,null,null,null,null,null,null,null,null,null,null,null,null,null,null,null,null,null,null,null,null,null,null,null,null,null,null,null,null,null,null,null,null,null,null,null,null,null,null,null,null,null,null,null,null,null,null,null,null,null,null,null,null,null,null,null,null,null,null,null,null,null,null,null,null,null,null,null,null,null,null,null,null,null,null,null,null,null,null,null,null,null,null,null,null,null,null,null,null,null,null,null,null,null,null,null,null,null,null,null,null,null,null,null,null,null,null,null,null,null,null,null,null,null,null,null,null,null,null,null,null,null,null,null,null,null,null,null,null,null,null,null,null,null,null,null,null,null,null,null,null,null,null,null,null,null,null,null,null,null,null,null,null,null,null,null,null,null,null,null,null,null,null,null,null,null,null,null,null,null,null,null,null,null,null,null,null,null,null,null,null,null,null,null,null,null,null,null,null,null,null,null,null,null,null,null,null,null,null,null,null,null,null,null,null,null,null,null,null,null,null,null,null,null,null,null,null,null,null,null,null,null,null,null,null,null,null,null,null,null,null,null,null,null,null,null,null,null,null,null,null,null,null,null,null,null,null,null,null,null,null,null,null,null,null,null,null,null,null,null,null,null,null,null,null,null,null,null,null,null,null,null,null,null,null,null,null,null,null,null,null,null,null,null,null,null,null,null,null,null,null,null,null,null,null,null,null,null,null,null,null,null,null,null,null,null,null,null,null,null,null,null,null,null,null,null,null,null,null,null,null,null,null,null,null,null,null,null,null,null,null,null,null,null,null,null,null,null,null,null,null,null,null,null,null,null,null,null,null,null,null,null,null,null,null,null,null,null,null,null,null,null,null,null,null,null,null,null,null,null,null,null,null,null,null,null,null,null,null,null,null,null,null,null,null,null,null,null,null,null,null,null,null,null,null,null,null,null,null,null,null,null,null,null,null,null,null,null,null,null,null,null,null,null,null,null,null,null,null,null,null,null,null,null,null,null,null,null,null,null,null,null,null,null,null,null,null,null,null,null,null,null,null,null,null,null,null,null,null,null,null,null,null,null,null,null,null,null,null,null,null,null,null,null,null,null,null,null,null,null,null,null,null,null,null,null,null,null,null,null,null,null,null,null,null,null,null,null,null,null,null,null,null,null,null,null,null,null,null,null,null,null,null,null,null,null,null,null,null,null,null,null,null,null,null,null,null,null,null,null,null,null,null,null,null,null,null,null,null,null,null,null,null,null,null,null,null,null,null,null,null,null,null,null,null,null,null,null,null,null,null,null,null,null,null,null,null,null,null,null,null,null,null,null,null,null,null,null,null,null,null,null,null,null,null,null,null,null,null,null,null,null,null,null,null,null,null,null,null,null,null,null,null,null,null,null,null,null,null,null,null,null,null,null,null,null,null,null,null,null,null,null,null,null,null,null,null,null,null,null,null,null,null,null,null,null,null,null,null,null,null,null,null,null,null,null,null,null,null,null,null,null,null,null,null,null,null,null,null,null,null,null,null,null,null,null,null,null,null,null,null,null,null,null,null,null,null,null,null,null,null,null,null,null,null,null,null,null,null,null,null,null,null,null,null,null,null,null,null,null,null,null,null,null,null,null,null,null,null,null,null,null,null,null,null,null,null,null,null,null,null,null,null,null,null,null,null,null,null,null,null,null,null,null,null,null,null,null,null,null,null,null,null,null,null,null,null,null,null,null,null,null,null,null,null,null,null,null,null,null,null,null,null,null,null,null,null,null,null,null,null,null,null,null,null,null,null,null,null,null,null,null,null,null,null,null,null,null,null,null,null,null,null,null,null,null,null,null,null,null,null,null,null,null,null,null,null,null,null,null,null,null,null,null,null,null,null,null,null,null,null,null,null,null,null,null,null,null,null,null,null,null,null,null,null,null,null,null,null,null,null,null,null,null,null,null,null,null,null,null,null,null,null,null,null,null,null,null,null,null,null,null,null,null,null,null,null,null,null,null,null,null,null,null,null,null,null,null,null,null,null,null,null,null,null,null,null,null,null,null,null,null,null,null,null,null,null,null,null,null,null,null,null,null,null,null,null,null,null,null,null,null,null,null,null,null,null,null,null,null,null,null,null,null,null,null,null,null,null,null,null,null,null,null,null,null,null,null,null,null,null,null,null,null,null,null,null,null,null,null,null,null,null,null,null,null,null,null,null,null,null,null,null,null,null,null,null,null,null,null,null,null,null,null,null,null,null,null,null,null,null,null,null,null,null,null,null,null,null,null,null,null,null,null,null,null,null,null,null,null,null,null,null,null,null,null,null,null,null,null,null,null,null,null,null,null,null,null,null,null,null,null,null,null,null,null,null,null,null,null,null,null,null,null,null,null,null,null,null,null,null,null,null,null,null,null,null,null,null,null,null,null,null,null,null,null,null,null,null,null,null,null,null,null,null,null,null,null,null,null,null,null,null,null,null,null,null,null,null,null,null,null,null,null,null,null,null,null,null,null,null,null,null,null,null,null,null,null,null,null,null,null,null,null,null,null,null,null,null,null,null,null,null,null,null,null,null,null,null,null,null,null,null,null,null,null,null,null,null,null,null,null,null,null,null,null,null,null,null,null,null,null,null,null,null,null,null,null,null,null,null,null,null,null,null,null,null,null,null,null,null,null,null,null,null,null,null,null,null,null,null,null,null,null,null,null,null,null,null,null,null,null,null,null,null,null,null,null,null,null,null,null,null,null,null,null,null,null,null,null,null,null,null,null,null,null,null,null,null,null,null,null,null,null,null,null,null,null,null,null,null,null,null,null,null,null,null,null,null,null,null,null,null,null,null,null,null,null,null,null,null,null,null,null,null,null,null,null,null,null,null,null,null,null,null,null,null,null,null,null,null,null,null,null,null,null,null,null,null,null,null,null,null,null,null,null,null,null,null,null,null,null,null,null,null,null,null,null,null,null,null,null,null,null,null,null,null,null,null,null,null,null,null,null,null,null,null,null,null,null,null,null,null,null,null,null,null,null,null,null,null,null,null,null,null,null,null,null,null,null,null,null,null,null,null,null,null,null,null,null,null,null,null,null,null,null,null,null,null,null,null,null,null,null,null,null,null,null,null,null,null,null,null,null,null,null,null,null,null,null,null,null,null,null,null,null,null,null,null,null,null,null,null,null,null,null,null,null,null,null,null,null,null,null,null,null,null,null,null,null,null,null,null,null,null,null,null,null,null,null,null,null,null,null,null,null,null,null,null,null,null,null,null,null,null,null,null,null,null,null,null,null,null,null,null,null,null,null,null,null,null,null,null,null,null,null,null,null,null,null,null,null,null,null,null,null,null,null,null,null,null,null,null,null,null,null,null,null,null,null,null,null,null,null,null,null,null,null,null,null,null,null,null,null,null,null,null,null,null,null,null,null,null,null,null,null,null,null,null,null,null,null,null,null,null,null,null,null,null,null,null,null,null,null,null,null,null,null,null,null,null,null,null,null,null,null,null,null,null,null,null,null,null,null,null,null,null,null,null,null,null,null,null,null,null,null,null,null,null,null,null,null,null,null,null,null,null,null,null,null,null,null,null,null,null,null,null,null,null,null,null,null,null,null,null,null,null,null,null,null,null,null,null,null,null,null,null,null,null,null,null,null,null,null,null,null,null,null,null,null,null,null,null,null,null,null,null,null,null,null,null,null,null,null,null,null,null,null,null,null,null,null,null,null,null,null,null,null,null,null,null,null,null,null,null,null,null,null,null,null,null,null,null,null,null,null,null,null,null,null,null,null,null,null,null,null,null,null,null,null,null,null,null,null,null,null,null,null,null,null,null,null,null,null,null,null,null,null,null,null,null,null,null,null,null,null,null,null,null,null,null,null,null,null,null,null,null,null,null,null,null,null,null,null,null,null,null,null,null,null,null,null,null,null,null,null,null,null,null,null,null,null,null,null,null,null,null,null,null,null,null,null,null,null,null,null,null,null,null,null,null,null,null,null,null,null,null,null,null,null,null,null,null,null,null,null,null,null,null,null,null,null,null,null,null,null,null,null,null,null,null,null,null,null,null,null,null,null,null,null,null,null,null,null,null,null,null,null,null,null,null,null,null,null,null,null,null,null,null,null,null,null,null,null,null,null,null,null,null,null,null,null,null,null,null,null,null,null,null,null,null,null,null,null,null,null,null,null,null,null,null,null,null,null,null,null,null,null,null,null,null,null,null,null,null,null,null,null,null,null,null,null,null,null,null,null,null,null,null,null,null,null,null,null,null,null,null,null,null,null,null,null,null,null,null,null,null,null,null,null,null,null,null,null,null,null,null,null,null,null,null,null,null,null,null,null,null,null,null,null,null,null,null,null,null,null,null,null,null,null,null,null,null,null,null,null,null,null,null,null,null,null,null,null,null,null,null,null,null,null,null,null,null,null,null,null,null,null,null,null,null,null,null,null,null,null,null,null,null,null,null,null,null,null,null,null,null,null,null,null,null,null,null,null,null,null,null,null,null,null,null,null,null,null,null,null,null,null,null,null,null,null,null,null,null,null,null,null,null,null,null,null,null,null,null,null,null,null,null,null,null,null,null,null,null,null,null,null,null,null,null,null,null,null,null,null,null,null,null,null,null,null,null,null,null,null,null,null,null,null,null,null,null,null,null,null,null,null,null,null,null,null,null,null,null,null,null,null,null,null,null,null,null,null,null,null,null,null,null,null,null,null,null,null,null,null,null,null,null,null,null,null,null,null,null,null,null,null,null,null,null,null,null,null,null,null,null,null,null,null,null,null,null,null,null,null,null,null,null,null,null,null,null,null,null,null,null,null,null,null,null,null,null,null,null,null,null,null,null,null,null,null,null,null,null,null,null,null,null,null,null,null,null,null,null,null,null,null,null,null,null,null,null,null,null,null,null,null,null,null,null,null,null,null,null,null,null,null,null,null,null,null,null,null,null,null,null,null,null,null,null,null,null,null,null,null,null,null,null,null,null,null,null,null,null,null,null,null,null,null,null,null,null,null,null,null,null,null,null,null,null,null,null,null,null,null,null,null,null,null,null,null,null,null,null,null,null,null,null,null,null,null,null,null,null,null,null,null,null,null,null,null,null,null,null,null,null,null,null,null,null,null,null,null,null,null,null,null,null,null,null,null,null,null,null,null,null,null,null,null,null,null,null,null,null,null,null,null,null,null,null,null,null,null,null,null,null,null,null,null,null,null,null,null,null,null,null,null,null,null,null,null,null,null,null,null,null,null,null,null,null,null,null,null,null,null,null,null,null,null,null,null,null,null,null,null,null,null,null,null,null,null,null,null,null,null,null,null,null,null,null,null,null,null,null,null,null,null,null,null,null,null,null,null,null,null,null,null,null,null,null,null,null,null,null,null,null,null,null,null,null,null,null,null,null,null,null,null,null,null,null,null,null,null,null,null,null,null,null,null,null,null,null,null,null,null,null,null,null,null,null,null,null,null,null,null,null,null,null,null,null,null,null,null,null,null,null,null,null,null,null,null,null,null,null,null,null,null,null,null,null,null,null,null,null,null,null,null,null,null,null,null,null,null,null,null,null,null,null,null,null,null,null,null,null,null,null,null,null,null,null,null,null,null,null,null,null,null,null,null,null,null,null,null,null,null,null,null,null,null,null,null,null,null,null,null,null,null,null,null,null,null,null,null,null,null,null,null,null,null,null,null,null,null,null,null,null,null,null,null,null,null,null,null,null,null,null,null,null,null,null,null,null,null,null,null,null,null,null,null,null,null,null,null,null,null,null,null,null,null,null,null,null,null,null,null,null,null,null,null,null,null,null,null,null,null,null,null,null,null,null,null,null,null,null,null,null,null,null,null,null,null,null,null,null,null,null,null,null,null,null,null,null,null,null,null,null,null,null,null,null,null,null,null,null,null,null,null,null,null,null,null,null,null,null,null,null,null,null,null,null,null,null,null,null,null,null,null,null,null,null,null,null,null,null,null,null,null,null,null,null,null,null,null,null,null,null,null,null,null,null,null,null,null,null,null,null,null,null,null,null,null,null,null,null,null,null,null,null,null,null,null,null,null,null,null,null,null,null,null,null,null,null,null,null,null,null,null,null,null,null,null,null,null,null,null,null,null,null,null,null,null,null,null,null,null,null,null,null,null,null,null,null,null,null,null,null,null,null,null,null,null,null,null,null,null,null,null,null,null,null,null,null,null,null,null,null,null,null,null,null,null,null,null,null,null,null,null,null,null,null,null,null,null,null,null,null,null,null,null,null,null,null,null,null,null,null,null,null,null,null,null,null,null,null,null,null,null,null,null,null,null,null,null,null,null,null,null,null,null,null,null,null,null,null,null,null,null,null,null,null,null,null,null,null,null,null,null,null,null,null,null,null,null,null,null,null,null,null,null,null,null,null,null,null,null,null,null,null,null,null,null,null,null,null,null,null,null,null,null,null,null,null,null,null,null,null,null,null,null,null,null,null,null,null,null,null,null,null,null,null,null,null,null,null,null,null,null,null,null,null,null,null,null,null,null,null,null,null,null,null,null,null,null,null,null,null,null,null,null,null,null,null,null,null,null,null,null,null,null,null,null,null,null,null,null,null,null,null,null,null,null,null,null,null,null,null,null,null,null,null,null,null,null,null,null,null,null,null,null,null,null,null,null,null,null,null,null,null,null,null,null,null,null,null,null,null,null,null,null,null,null,null,null,null,null,null,null,null,null,null,null,null,null,null,null,null,null,null,null,null,null,null,null,null,null,null,null,null,null,null,null,null,null,null,null,null,null,null,null,null,null,null,null,null,null,null,null,null,null,null,null,null,null,null,null,null,null,null,null,null,null,null,null,null,null,null,null,null,null,null,null,null,null,null,null,null,null,null,null,null,null,null,null,null,null,null,null,null,null,null,null,null,null,null,null,null,null,null,null,null,null,null,null,null,null,null,null,null,null,null,null,null,null,null,null,null,null,null,null,null,null,null,null,null,null,null,null,null,null,null,null,null,null,null,null,null,null,null,null,null,null,null,null,null,null,null,null,null,null,null,null,null,null,null,null,null,null,null,null,null,null,null,null,null,null,null,null,null,null,null,null,null,null,null,null,null,null,null,null,null,null,null,null,null,null,null,null,null,null,null,null,null,null,null,null,null,null,null,null,null,null,null,null,null,null,null,null,null,null,null,null,null,null,null,null,null,null,null,null,null,null,null,null,null,null,null,null,null,null,null,null,null,null,null,null,null,null,null,null,null,null,null,null,null,null,null,null,null,null,null,null,null,null,null,null,null,null,null,null,null,null,null,null,null,null,null,null,null,null,null,null,null,null,null,null,null,null,null,null,null,null,null,null,null,null,null,null,null,null,null,null,null,null,null,null,null,null,null,null,null,null,null,null,null,null,null,null,null,null,null,null,null,null,null,null,null,null,null,null,null,null,null,null,null,null,null,null,null,null,null,null,null,null,null,null,null,null,null,null,null,null,null,null,null,null,null,null,null,null,null,null,null,null,null,null,null,null,null,null,null,null,null,null,null,null,null,null,null,null,null,null,null,null,null,null,null,null,null,null,null,null,null,null,null,null,null,null,null,null,null,null,null,null,null,null,null,null,null,null,null,null,null,null,null,null,null,null,null,null,null,null,null,null,null,null,null,null,null,null,null,null,null,null,null,null,null,null,null,null,null,null,null,null,null,null,null,null,null,null,null,null,null,null,null,null,null,null,null,null,null,null,null,null,null,null,null,null,null,null,null,null,null,null,null,null,null,null,null,null,null,null,null,null,null,null,null,null,null,null,null,null,null,null,null,null,null,null,null,null,null,null,null,null,null,null,null,null,null,null,null,null,null,null,null,null,null,null,null,null,null,null,null,null,null,null,null,null,null,null,null,null,null,null,null,null,null,null,null,null,null,null,null,null,null,null,null,null,null,null,null,null,null,null,null,null,null,null,null,null,null,null,null,null,null,null,null,null,null,null,null,null,null,null,null,null,null,null,null,null,null,null,null,null,null,null,null,null,null,null,null,null,null,null,null,null,null,null,null,null,null,null,null,null,null,null,null,null,null,null,null,null,null,null,null,null,null,null,null,null,null,null,null,null,null,null,null,null,null,null,null,null,null,null,null,null,null,null,null,null,null,null,null,null,null,null,null,null,null,null,null,null,null,null,null,null,null,null,null,null,null,null,null,null,null,null,null,null,null,null,null,null,null,null,null,null,null,null,null,null,null,null,null,null,null,null,null,null,null,null,null,null,null,null,null,null,null,null,null,null,null,null,null,null,null,null,null,null,null,null,null,null,null,null,null,null,null,null,null,null,null,null,null,null,null,null,null,null,null,null,null,null,null,null,null,null,null,null,null,null,null,null,null,null,null,null,null,null,null,null,null,null,null,null,null,null,null,null,null,null,null,null,null,null,null,null,null,null,null,null,null,null,null,null,null,null,null,null,null,null,null,null,null,null,null,null,null,null,null,null,null,null,null,null,null,null,null,null,null,null,null,null,null,null,null,null,null,null,null,null,null,null,null,null,null,null,null,null,null,null,null,null,null,null,null,null,null,null,null,null,null,null,null,null,null,null,null,null,null,null,null,null,null,null,null,null,null,null,null,null,null,null,null,null,null,null,null,null,null,null,null,null,null,null,null,null,null,null,null,null,null,null,null,null,null,null,null,null,null,null,null,null,null,null,null,null,null,null,null,null,null,null,null,null,null,null,null,null,null,null,null,null,null,null,null,null,null,null,null,null,null,null,null,null,null,null,null,null,null,null,null,null,null,null,null,null,null,null,null,null,null,null,null,null,null,null,null,null,null,null,null,null,null,null,null,null,null,null,null,null,null,null,null,null,null,null,null,null,null,null,null,null,null,null,null,null,null,null,null,null,null,null,null,null,null,null,null,null,null,null,null,null,null,null,null,null,null,null,null,null,null,null,null,null,null,null,null,null,null,null,null,null,null,null,null,null,null,null,null,null,null,null,null,null,null,null,null,null,null,null,null,null,null,null,null,null,null,null,null,null,null,null,null,null,null,null,null,null,null,null,null,null,null,null,null,null,null,null,null,null,null,null,null,null,null,null,null,null,null,null,null,null,null,null,null,null,null,null,null,null,null,null,null,null,null,null,null,null,null,null,null,null,null,null,null,null,null,null,null,null,null,null,null,null,null,null,null,null,null,null,null,null,null,null,null,null,null,null,null,null,null,null,null,null,null,null,null,null,null,null,null,null,null,null,null,null,null,null,null,null,null,null,null,null,null,null,null,null,null,null,null,null,null,null,null,null,null,null,null,null,null,null,null,null,null,null,null,null,null,null,null,null,null,null,null,null,null,null,null,null,null,null,null,null,null,null,null,null,null,null,null,null,null,null,null,null,null,null,null,null,null,null,null,null,null,null,null,null,null,null,null,null,null,null,null,null,null,null,null,null,null,null,null,null,null,null,null,null,null,null,null,null,null,null,null,null,null,null,null,null,null,null,null,null,null,null,null,null,null,null,null,null,null,null,null,null,null,null,null,null,null,null,null,null,null,null,null,null,null,null,null,null,null,null,null,null,null,null,null,null,null,null,null,null,null,null,null,null,null,null,null,null,null,null,null,null,null,null,null,null,null,null,null,null,null,null,null,null,null,null,null,null,null,null,null,null,null,null,null,null,null,null,null,null,null,null,null,null,null,null,null,null,null,null,null,null,null,null,null,null,null,null,null,null,null,null,null,null,null,null,null,null,null,null,null,null,null,null,null,null,null,null,null,null,null,null,null,null,null,null,null,null,null,null,null,null,null,null,null,null,null,null,null,null,null,null,null,null,null,null,null,null,null,null,null,null,null,null,null,null,null,null,null,null,null,null,null,null,null,null,null,null,null,null,null,null,null,null,null,null,null,null,null,null,null,null,null,null,null,null,null,null,null,null,null,null,null,null,null,null,null,null,null,null,null,null,null,null,null,null,null,null,null,null,null,null,null,null,null,null,null,null,null,null,null,null,null,null,null,null,null,null,null,null,null,null,null,null,null,null,null,null,null,null,null,null,null,null,null,null,null,null,null,null,null,null,null,null,null,null,null,null,null,null,null,null,null,null,null,null,null,null,null,null,null,null,null,null,null,null,null,null,null,null,null,null,null,null,null,null,null,null,null,null,null,null,null,null,null,null,null,null,null,null,null,null,null,null,null,null,null,null,null,null,null,null,null,null,null,null,null,null,null,null,null,null,null,null,null,null,null,null,null,null,null,null,null,null,null,null,null,null,null,null,null,null,null,null,null,null,null,null,null,null,null,null,null,null,null,null,null,null,null,null,null,null,null,null,null,null,null,null,null,null,null,null,null,null,null,null,null,null,null,null,null,null,null,null,null,null,null,null,null,null,null,null,null,null,null,null,null,null,null,null,null,null,null,null,null,null,null,null,null,null,null,null,null,null,null,null,null,null,null,null,null,null,null,null,null,null,null,null,null,null,null,null,null,null,null,null,null,null,null,null,null,null,null,null,null,null,null,null,null,null,null,null,null,null,null,null,null,null,null,null,null,null,null,null,null,null,null,null,null,null,null,null,null,null,null,null,null,null,null,null,null,null,null,null,null,null,null,null,null,null,null,null,null,null,null,null,null,null,null,null,null,null,null,null,null,null,null,null,null,null,null,null,null,null,null,null,null,null,null,null,null,null,null,null,null,null,null,null,null,null,null,null,null,null,null,null,null,null,null,null,null,null,null,null,null,null,null,null,null,null,null,null,null,null,null,null,null,null,null,null,null,null,null,null,null,null,null,null,null,null,null,null,null,null,null,null,null,null,null,null,null,null,null,null,null,null,null,null,null,null,null,null,null,null,null,null,null,null,null,null,null,null,null,null,null,null,null,null,null,null,null,null,null,null,null,null,null,null,null,null,null,null,null,null,null,null,null,null,null,null,null,null,null,null,null,null,null,null,null,null,null,null,null,null,null,null,null,null,null,null,null,null,null,null,null,null,null,null,null,null,null,null,null,null,null,null,null,null,null,null,null,null,null,null,null,null,null,null,null,null,null,null,null,null,null,null,null,null,null,null,null,null,null,null,null,null,null,null,null,null,null,null,null,null,null,null,null,null,null,null,null,null,null,null,null,null,null,null,null,null,null,null,null,null,null,null,null,null,null,null,null,null,null,null,null,null,null,null,null,null,null,null,null,null,null,null,null,null,null,null,null,null,null,null,null,null,null,null,null,null,null,null,null,null,null,null,null,null,null,null,null,null,null,null,null,null,null,null,null,null,null,null,null,null,null,null,null,null,null,null,null,null,null,null,null,null,null,null,null,null,null,null,null,null,null,null,null,null,null,null,null,null,null,null,null,null,null,null,null,null,null,null,null,null,null,null,null,null,null,null,null,null,null,null,null,null,null,null,null,null,null,null,null,null,null,null,null,null,null,null,null,null,null,null,null,null,null,null,null,null,null,null,null,null,null,null,null,null,null,null,null,null,null,null,null,null,null,null,null,null,null,null,null,null,null,null,null,null,null,null,null,null,null,null,null,null,null,null,null,null,null,null,null,null,null,null,null,null,null,null,null,null,null,null,null,null,null,null,null,null,null,null,null,null,null,null,null,null,null,null,null,null,null,null,null,null,null,null,null,null,null,null,null,null,null,null,null,null,null,null,null,null,null,null,null,null,null,null,null,null,null,null,null,null,null,null,null,null,null,null,null,null,null,null,null,null,null,null,null,null,null,null,null,null,null,null,null,null,null,null,null,null,null,null,null,null,null,null,null,null,null,null,null,null,null,null,null,null,null,null,null,null,null,null,null,null,null,null,null,null,null,null,null,null,null,null,null,null,null,null,null,null,null,null,null,null,null,null,null,null,null,null,null,null,null,null,null,null,null,null,null,null,null,null,null,null,null,null,null,null,null,null,null,null,null,null,null,null,null,null,null,null,null,null,null,null,null,null,null,null,null,null,null,null,null,null,null,null,null,null,null,null,null,null,null,null,null,null,null,null,null,null,null,null,null,null,null,null,null,null,null,null,null,null,null,null,null,null,null,null,null,null,null,null,null,null,null,null,null,null,null,null,null,null,null,null,null,null,null,null,null,null,null,null,null,null,null,null,null,null,null,null,null,null,null,null,null,null,null,null,null,null,null,null,null,null,null,null,null,null,null,null,null,null,null,null,null,null,null,null,null,null,null,null,null,null,null,null,null,null,null,null,null,null,null,null,null,null,null,null,null,null,null,null,null,null,null,null,null,null,null,null,null,null,null,null,null,null,null,null,null,null,null,null,null,null,null,null,null,null,null,null,null,null,null,null,null,null,null,null,null,null,null,null,null,null,null,null,null,null,null,null,null,null,null,null,null,null,null,null,null,null,null,null,null,null,null,null,null,null,null,null,null,null,null,null,null,null,null,null,null,null,null,null,null,null,null,null,null,null,null,null,null,null,null,null,null,null,null,null,null,null,null,null,null,null,null,null,null,null,null,null,null,null,null,null,null,null,null,null,null,null,null,null,null,null,null,null,null,null,null,null,null,null,null,null,null,null,null,null,null,null,null,null,null,null,null,null,null,null,null,null,null,null,null,null,null,null,null,null,null,null,null,null,null,null,null,null,null,null,null,null,null,null,null,null,null,null,null,null,null,null,null,null,null,null,null,null,null,null,null,null,null,null,null,null,null,null,null,null,null,null,null,null,null,null,null,null,null,null,null,null,null,null,null,null,null,null,null,null,null,null,null,null,null,null,null,null,null,null,null,null,null,null,null,null,null,null,null,null,null,null,null,null,null,null,null,null,null,null,null,null,null,null,null,null,null,null,null,null,null,null,null,null,null,null,null,null,null,null,null,null,null,null,null,null,null,null,null,null,null,null,null,null,null,null,null,null,null,null,null,null,null,null,null,null,null,null,null,null,null,null,null,null,null,null,null,null,null,null,null,null,null,null,null,null,null,null,null,null,null,null,null,null,null,null,null,null,null,null,null,null,null,null,null,null,null,null,null,null,null,null,null,null,null,null,null,null,null,null,null,null,null,null,null,null,null,null,null,null,null,null,null,null,null,null,null,null,null,null,null,null,null,null,null,null,null,null,null,null,null,null,null,null,null,null,null,null,null,null,null,null,null,null,null,null,null,null,null,null,null,null,null,null,null,null,null,null,null,null,null,null,null,null,null,null,null,null,null,null,null,null,null,null,null,null,null,null,null,null,null,null,null,null,null,null,null,null,null,null,null,null,null,null,null,null,null,null,null,null,null,null,null,null,null,null,null,null,null,null,null,null,null,null,null,null,null,null,null,null,null,null,null,null,null,null,null,null,null,null,null,null,null,null,null,null,null,null,null,null,null,null,null,null,null,null,null,null,null,null,null,null,null,null,null,null,null,null,null,null,null,null,null,null,null,null,null,null,null,null,null,null,null,null,null,null,null,null,null,null,null,null,null,null,null,null,null,null,null,null,null,null,null,null,null,null,null,null,null,null,null,null,null,null,null,null,null,null,null,null,null,null,null,null,null,null,null,null,null,null,null,null,null,null,null,null,null,null,null,null,null,null,null,null,null,null,null,null,null,null,null,null,null,null,null,null,null,null,null,null,null,null,null,null,null,null,null,null,null,null,null,null,null,null,null,null,null,null,null,null,null,null,null,null,null,null,null,null,null,null,null,null,null,null,null,null,null,null,null,null,null,null,null,null,null,null,null,null,null,null,null,null,null,null,null,null,null,null,null,null,null,null,null,null,null,null,null,null,null,null,null,null,null,null,null,null,null,null,null,null,null,null,null,null,null,null,null,null,null,null,null,null,null,null,null,null,null,null,null,null,null,null,null,null,null,null,null,null,null,null,null,null,null,null,null,null,null,null,null,null,null,null,null,null,null,null,null,null,null,null,null,null,null,null,null,null,null,null,null,null,null,null,null,null,null,null,null,null,null,null,null,null,null,null,null,null,null,null,null,null,null,null,null,null,null,null,null,null,null,null,null,null,null,null,null,null,null,null,null,null,null,null,null,null,null,null,null,null,null,null,null,null,null,null,null,null,null,null,null,null,null,null,null,null,null,null,null,null,null,null,null,null,null,null,null,null,null,null,null,null,null,null,null,null,null,null,null,null,null,null,null,null,null,null,null,null,null,null,null,null,null,null,null,null,null,null,null,null,null,null,null,null,null,null,null,null,null,null,null,null,null,null,null,null,null,null,null,null,null,null,null,null,null,null,null,null,null,null,null,null,null,null,null,null,null,null,null,null,null,null,null,null,null,null,null,null,null,null,null,null,null,null,null,null,null,null,null,null,null,null,null,null,null,null,null,null,null,null,null,null,null,null,null,null,null,null,null,null,null,null,null,null,null,null,null,null,null,null,null,null,null,null,null,null,null,null,null,null,null,null,null,null,null,null,null,null,null,null,null,null,null,null,null,null,null,null,null,null,null,null,null,null,null,null,null,null,null,null,null,null,null,null,null,null,null,null,null,null,null,null,null,null,null,null,null,null,null,null,null,null,null,null,null,null,null,null,null,null,null,null,null,null,null,null,null,null,null,null,null,null,null,null,null,null,null,null,null,null,null,null,null,null,null,null,null,null,null,null,null,null,null,null,null,null,null,null,null,null,null,null,null,null,null,null,null,null,null,null,null,null,null,null,null,null,null,null,null,null,null,null,null,null,null,null,null,null,null,null,null,null,null,null,null,null,null,null,null,null,null,null,null,null,null,null,null,null,null,null,null,null,null,null,null,null,null,null,null,null,null,null,null,null,null,null,null,null,null,null,null,null,null,null,null,null,null,null,null,null,null,null,null,null,null,null,null,null,null,null,null,null,null,null,null,null,null,null,null,null,null,null,null,null,null,null,null,null,null,null,null,null,null,null,null,null,null,null,null,null,null,null,null,null,null,null,null,null,null,null,null,null,null,null,null,null,null,null,null,null,null,null,null,null,null,null,null,null,null,null,null,null,null,null,null,null,null,null,null,null,null,null,null,null,null,null,null,null,null,null,null,null,null,null,null,null,null,null,null,null,null,null,null,null,null,null,null,null,null,null,null,null,null,null,null,null,null,null,null,null,null,null,null,null,null,null,null,null,null,null,null,null,null,null,null,null,null,null,null,null,null,null,null,null,null,null,null,null,null,null,null,null,null,null,null,null,null,null,null,null,null,null,null,null,null,null,null,null,null,null,null,null,null,null,null,null,null,null,null,null,null,null,null,null,null,null,null,null,null,null,null,null,null,null,null,null,null,null,null,null,null,null,null,null,null,null,null,null,null,null,null,null,null,null,null,null,null,null,null,null,null,null,null,null,null,null,null,null,null,null,null,null,null,null,null,null,null,null,null,null,null,null,null,null,null,null,null,null,null,null,null,null,null,null,null,null,null,null,null,null,null,null,null,null,null,null,null,null,null,null,null,null,null,null,null,null,null,null,null,null,null,null,null,null,null,null,null,null,null,null,null,null,null,null,null,null,null,null,null,null,null,null,null,null,null,null,null,null,null,null,null,null,null,null,null,null,null,null,null,null,null,null,null,null,null,null,null,null,null,null,null,null,null,null,null,null,null,null,null,null,null,null,null,null,null,null,null,null,null,null,null,null,null,null,null,null,null,null,null,null,null,null,null,null,null,null,null,null,null,null,null,null,null,null,null,null,null,null,null,null,null,null,null,null,null,null,null,null,null,null,null,null,null,null,null,null,null,null,null,null,null,null,null,null,null,null,null,null,null,null,null,null,null,null,null,null,null,null,null,null,null,null,null,null,null,null,null,null,null,null,null,null,null,null,null,null,null,null,null,null,null,null,null,null,null,null,null,null,null,null,null,null,null,null,null,null,null,null,null,null,null,null,null,null,null,null,null,null,null,null,null,null,null,null,null,null,null,null,null,null,null,null,null,null,null,null,null,null,null,null,null,null,null,null,null,null,null,null,null,null,null,null,null,null,null,null,null,null,null,null,null,null,null,null,null,null,null,null,null,null,null,null,null,null,null,null,null,null,null,null,null,null,null,null,null,null,null,null,null,null,null,null,null,null,null,null,null,null,null,null,null,null,null,null,null,null,null,null,null,null,null,null,null,null,null,null,null,null,null,null,null,null,null,null,null,null,null,null,null,null,null,null,null,null,null,null,null,null,null,null,null,null,null,null,null,null,null,null,null,null,null,null,null,null,null,null,null,null,null,null,null,null,null,null,null,null,null,null,null,null,null,null,null,null,null,null,null,null,null,null,null,null,null,null,null,null,null,null,null,null,null,null,null,null,null,null,null,null,null,null,null,null,null,null,null,null,null,null,null,null,null,null,null,null,null,null,null,null,null,null,null,null,null,null,null,null,null,null,null,null,null,null,null,null,null,null,null,null,null,null,null,null,null,null,null,null,null,null,null,null,null,null,null,null,null,null,null,null,null,null,null,null,null,null,null,null,null,null,null,null,null,null,null,null,null,null,null,null,null,null,null,null,null,null,null,null,null,null,null,null,null,null,null,null,null,null,null,null,null,null,null,null,null,null,null,null,null,null,null,null,null,null,null,null,null,null,null,null,null,null,null,null,null,null,null,null,null,null,null,null,null,null,null,null,null,null,null,null,null,null,null,null,null,null,null,null,null,null,null,null,null,null,null,null,null,null,null,null,null,null,null,null,null,null,null,null,null,null,null,null,null,null,null,null,null,null,null,null,null,null,null,null,null,null,null,null,null,null,null,null,null,null,null,null,null,null,null,null,null,null,null,null,null,null,null,null,null,null,null,null,null,null,null,null,null,null,null,null,null,null,null,null,null,null,null,null,null,null,null,null,null,null,null,null,null,null,null,null,null,null,null,null,null,null,null,null,null,null,null,null,null,null,null,null,null,null,null,null,null,null,null,null,null,null,null,null,null,null,null,null,null,null,null,null,null,null,null,null,null,null,null,null,null,null,null,null,null,null,null,null,null,null,null,null,null,null,null,null,null,null,null,null,null,null,null,null,null,null,null,null,null,null,null,null,null,null,null,null,null,null,null,null,null,null,null,null,null,null,null,null,null,null,null,null,null,null,null,null,null,null,null,null,null,null,null,null,null,null,null,null,null,null,null,null,null,null,null,null,null,null,null,null,null,null,null,null,null,null,null,null,null,null,null,null,null,null,null,null,null,null,null,null,null,null,null,null,null,null,null,null,null,null,null,null,null,null,null,null,null,null,null,null,null,null,null,null,null,null,null,null,null,null,null,null,null,null,null,null,null,null,null,null,null,null,null,null,null,null,null,null,null,null,null,null,null,null,null,null,null,null,null,null,null,null,null,null,null,null,null,null,null,null,null,null,null,null,null,null,null,null,null,null,null,null,null,null,null,null,null,null,null,null,null,null,null,null,null,null,null,null,null,null,null,null,null,null,null,null,null,null,null,null,null,null,null,null,null,null,null,null,null,null,null,null,null,null,null,null,null,null,null,null,null,null,null,null,null,null,null,null,null,null,null,null,null,null,null,null,null,null,null,null,null,null,null,null,null,null,null,null,null,null,null,null,null,null,null,null,null,null,null,null,null,null,null,null,null,null,null,null,null,null,null,null,null,null,null,null,null,null,null,null,null,null,null,null,null,null,null,null,null,null,null,null,null,null,null,null,null,null,null,null,null,null,null,null,null,null,null,null,null,null,null,null,null,null,null,null,null,null,null,null,null,null,null,null,null,null,null,null,null,null,null,null,null,null,null,null,null,null,null,null,null,null,null,null,null,null,null,null,null,null,null,null,null,null,null,null,null,null,null,null,null,null,null,null,null,null,null,null,null,null,null,null,null,null,null,null,null,null,null,null,null,null,null,null,null,null,null,null,null,null,null,null,null,null,null,null,null,null,null,null,null,null,null,null,null,null,null,null,null,null,null,null,null,null,null,null,null,null,null,null,null,null,null,null,null,null,null,null,null,null,null,null,null,null,null,null,null,null,null,null,null,null,null,null,null,null,null,null,null,null,null,null,null,null,null,null,null,null,null,null,null,null,null,null,null,null,null,null,null,null,null,null,null,null,null,null,null,null,null,null,null,null,null,null,null,null,null,null,null,null,null,null,null,null,null,null,null,null,null,null,null,null,null,null,null,null,null,null,null,null,null,null,null,null,null,null,null,null,null,null,null,null,null,null,null,null,null,null,null,null,null,null,null,null,null,null,null,null,null,null,null,null,null,null,null,null,null,null,null,null,null,null,null,null,null,null,null,null,null,null,null,null,null,null,null,null,null,null,null,null,null,null,null,null,null,null,null,null,null,null,null,null,null,null,null,null,null,null,null,null,null,null,null,null,null,null,null,null,null,null,null,null,null,null,null,null,null,null,null,null,null,null,null,null,null,null,null,null,null,null,null,null,null,null,null,null,null,null,null,null,null,null,null,null,null,null,null,null,null,null,null,null,null,null,null,null,null,null,null,null,null,null,null,null,null,null,null,null,null,null,null,null,null,null,null,null,null,null,null,null,null,null,null,null,null,null,null,null,null,null,null,null,null,null,null,null,null,null,null,null,null,null,null,null,null,null,null,null,null,null,null,null,null,null,null,null,null,null,null,null,null,null,null,null,null,null,null,null,null,null,null,null,null,null,null,null,null,null,null,null,null,null,null,null,null,null,null,null,null,null,null,null,null,null,null,null,null,null,null,null,null,null,null,null,null,null,null,null,null,null,null,null,null,null,null,null,null,null,null,null,null,null,null,null,null,null,null,null,null,null,null,null,null,null,null,null,null,null,null,null,null,null,null,null,null,null,null,null,null,null,null,null,null,null,null,null,null,null,null,null,null,null,null,null,null,null,null,null,null,null,null,null,null,null,null,null,null,null,null,null,null,null,null,null,null,null,null,null,null,null,null,null,null,null,null,null,null,null,null,null,null,null,null,null,null,null,null,null,null,null,null,null,null,null,null,null,null,null,null,null,null,null,null,null,null,null,null,null,null,null,null,null,null,null,null,null,null,null,null,null,null,null,null,null,null,null,null,null,null,null,null,null,null,null,null,null,null,null,null,null,null,null,null,null,null,null,null,null,null,null,null,null,null,null,null,null,null,null,null,null,null,null,null,null,null,null,null,null,null,null,null,null,null,null,null,null,null,null,null,null,null,null,null,null,null,null,null,null,null,null,null,null,null,null,null,null,null,null,null,null,null,null,null,null,null,null,null,null,null,null,null,null,null,null,null,null,null,null,null,null,null,null,null,null,null,null,null,null,null,null,null,null,null,null,null,null,null,null,null,null,null,null,null,null,null,null,null,null,null,null,null,null,null,null,null,null,null,null,null,null,null,null,null,null,null,null,null,null,null,null,null,null,null,null,null,null,null,null,null,null,null,null,null,null,null,null,null,null,null,null,null,null,null,null,null,null,null,null,null,null,null,null,null,null,null,null,null,null,null,null,null,null,null,null,null,null,null,null,null,null,null,null,null,null,null,null,null,null,null,null,null,null,null,null,null,null,null,null,null,null,null,null,null,null,null,null,null,null,null,null,null,null,null,null,null,null,null,null,null,null,null,null,null,null,null,null,null,null,null,null,null,null,null,null,null,null,null,null,null,null,null,null,null,null,null,null,null,null,null,null,null,null,null,null,null,null,null,null,null,null,null,null,null,null,null,null,null,null,null,null,null,null,null,null,null,null,null,null,null,null,null,null,null,null,null,null,null,null,null,null,null,null,null,null,null,null,null,null,null,null,null,null,null,null,null,null,null,null,null,null,null,null,null,null,null,null,null,null,null,null,null,null,null,null,null,null,null,null,null,null,null,null,null,null,null,null,null,null,null,null,null,null,null,null,null,null,null,null,null,null,null,null,null,null,null,null,null,null,null,null,null,null,null,null,null,null,null,null,null,null,null,null,null,null,null,null,null,null,null,null,null,null,null,null,null,null,null,null,null,null,null,null,null,null,null,null,null,null,null,null,null,null,null,null,null,null,null,null,null,null,null,null,null,null,null,null,null,null,null,null,null,null,null,null,null,null,null,null,null,null,null,null,null,null,null,null,null,null,null,null,null,null,null,null,null,null,null,null,null,null,null,null,null,null,null,null,null,null,null,null,null,null,null,null,null,null,null,null,null,null,null,null,null,null,null,null,null,null,null,null,null,null,null,null,null,null,null,null,null,null,null,null,null,null,null,null,null,null,null,null,null,null,null,null,null,null,null,null,null,null,null,null,null,null,null,null,null,null,null,null,null,null,null,null,null,null,null,null,null,null,null,null,null,null,null,null,null,null,null,null,null,null,null,null,null,null,null,null,null,null,null,null,null,null,null,null,null,null,null,null,null,null,null,null,null,null,null,null,null,null,null,null,null,null,null,null,null,null,null,null,null,null,null,null,null,null,null,null,null,null,null,null,null,null,null,null,null,null,null,null,null,null,null,null,null,null,null,null,null,null,null,null,null,null,null,null,null,null,null,null,null,null,null,null,null,null,null,null,null,null,null,null,null,null,null,null,null,null,null,null,null,null,null,null,null,null,null,null,null,null,null,null,null,null,null,null,null,null,null,null,null,null,null,null,null,null,null,null,null,null,null,null,null,null,null,null,null,null,null,null,null,null,null,null,null,null,null,null,null,null,null,null,null,null,null,null,null,null,null,null,null,null,null,null,null,null,null,null,null,null,null,null,null,null,null,null,null,null,null,null,null,null,null,null,null,null,null,null,null,null,null,null,null,null,null,null,null,null,null,null,null,null,null,null,null,null,null,null,null,null,null,null,null,null,null,null,null,null,null,null,null,null,null,null,null,null,null,null,null,null,null,null,null,null,null,null,null,null,null,null,null,null,null,null,null,null,null,null,null,null,null,null,null,null,null,null,null,null,null,null,null,null,null,null,null,null,null,null,null,null,null,null,null,null,null,null,null,null,null,null,null,null,null,null,null,null,null,null,null,null,null,null,null,null,null,null,null,null,null,null,null,null,null,null,null,null,null,null,null,null,null,null,null,null,null,null,null,null,null,null,null,null,null,null,null,null,null,null,null,null,null,null,null,null,null,null,null,null,null,null,null,null,null,null,null,null,null,null,null,null,null,null,null,null,null,null,null,null,null,null,null,null,null,null,null,null,null,null,null,null,null,null,null,null,null,null,null,null,null,null,null,null,null,null,null,null,null,null,null,null,null,null,null,null,null,null,null,null,null,null,null,null,null,null,null,null,null,null,null,null,null,null,null,null,null,null,null,null,null,null,null,null,null,null,null,null,null,null,null,null,null,null,null,null,null,null,null,null,null,null,null,null,null,null,null,null,null,null,null,null,null,null,null,null,null,null,null,null,null,null,null,null,null,null,null,null,null,null,null,null,null,null,null,null,null,null,null,null,null,null,null,null,null,null,null,null,null,null,null,null,null,null,null,null,null,null,null,null,null,null,null,null,null,null,null,null,null,null,null,null,null,null,null,null,null,null,null,null,null,null,null,null,null,null,null,null,null,null,null,null,null,null,null,null,null,null,null,null,null,null,null,null,null,null,null,null,null,null,null,null,null,null,null,null,null,null,null,null,null,null,null,null,null,null,null,null,null,null,null,null,null,null,null,null,null,null,null,null,null,null,null,null,null,null,null,null,null,null,null,null,null,null,null,null,null,null,null,null,null,null,null,null,null,null,null,null,null,null,null,null,null,null,null,null,null,null,null,null,null,null,null,null,null,null,null,null,null,null,null,null,null,null,null,null,null,null,null,null,null,null,null,null,null,null,null,null,null,null,null,null,null,null,null,null,null,null,null,null,null,null,null,null,null,null,null,null,null,null,null,null,null,null,null,null,null,null,null,null,null,null,null,null,null,null,null,null,null,null,null,null,null,null,null,null,null,null,null,null,null,null,null,null,null,null,null,null,null,null,null,null,null,null,null,null,null,null,null,null,null,null,null,null,null,null,null,null,null,null,null,null,null,null,null,null,null,null,null,null,null,null,null,null,null,null,null,null,null,null,null,null,null,null,null,null,null,null,null,null,null,null,null,null,null,null,null,null,null,null,null,null,null,null,null,null,null,null,null,null,null,null,null,null,null,null,null,null,null,null,null,null,null,null,null,null,null,null,null,null,null,null,null,null,null,null,null,null,null,null,null,null,null,null,null,null,null,null,null,null,null,null,null,null,null,null,null,null,null,null,null,null,null,null,null,null,null,null,null,null,null,null,null,null,null,null,null,null,null,null,null,null,null,null,null,null,null,null,null,null,null,null,null,null,null,null,null,null,null,null,null,null,null,null,null,null,null,null,null,null,null,null,null,null,null,null,null,null,null,null,null,null,null,null,null,null,null,null,null,null,null,null,null,null,null,null,null,null,null,null,null,null,null,null,null,null,null,null,null,null,null,null,null,null,null,null,null,null,null,null,null,null,null,null,null,null,null,null,null,null,null,null,null,null,null,null,null,null,null,null,null,null,null,null,null,null,null,null,null,null,null,null,null,null,null,null,null,null,null,null,null,null,null,null,null,null,null,null,null,null,null,null,null,null,null,null,null,null,null,null,null,null,null,null,null,null,null,null,null,null,null,null,null,null,null,null,null,null,null,null,null,null,null,null,null,null,null,null,null,null,null,null,null,null,null,null,null,null,null,null,null,null,null,null,null,null,null,null,null,null,null,null,null,null,null,null,null,null,null,null,null,null,null,null,null,null,null,null,null,null,null,null,null,null,null,null,null,null,null,null,null,null,null,null,null,null,null,null,null,null,null,null,null,null,null,null,null,null,null,null,null,null,null,null,null,null,null,null,null,null,null,null,null,null,null,null,null,null,null,null,null,null,null,null,null,null,null,null,null,null,null,null,null,null,null,null,null,null,null,null,null,null,null,null,null,null,null,null,null,null,null,null,null,null,null,null,null,null,null,null,null,null,null,null,null,null,null,null,null,null,null,null,null,null,null,null,null,null,null,null,null,null,null,null,null,null,null,null,null,null,null,null,null,null,null,null,null,null,null,null,null,null,null,null,null,null,null,null,null,null,null,null,null,null,null,null,null,null,null,null,null,null,null,null,null,null,null,null,null,null,null,null,null,null,null,null,null,null,null,null,null,null,null,null,null,null,null,null,null,null,null,null,null,null,null,null,null,null,null,null,null,null,null,null,null,null,null,null,null,null,null,null,null,null,null,null,null,null,null,null,null,null,null,null,null,null,null,null,null,null,null,null,null,null,null,null,null,null,null,null,null,null,null,null,null,null,null,null,null,null,null,null,null,null,null,null,null,null,null,null,null,null,null,null,null,null,null,null,null,null,null,null,null,null,null,null,null,null,null,null,null,null,null,null,null,null,null,null,null,null,null,null,null,null,null,null,null,null,null,null,null,null,null,null,null,null,null,null,null,null,null,null,null,null,null,null,null,null,null,null,null,null,null,null,null,null,null,null,null,null,null,null,null,null,null,null,null,null,null,null,null,null,null,null,null,null,null,null,null,null,null,null,null,null,null,null,null,null,null,null,null,null,null,null,null,null,null,null,null,null,null,null,null,null,null,null,null,null,null,null,null,null,null,null,null,null,null,null,null,null,null,null,null,null,null,null,null,null,null,null,null,null,null,null,null,null,null,null,null,null,null,null,null,null,null,null,null,null,null,null,null,null,null,null,null,null,null,null,null,null,null,null,null,null,null,null,null,null,null,null,null,null,null,null,null,null,null,null,null,null,null,null,null,null,null,null,null,null,null,null,null,null,null,null,null,null,null,null,null,null,null,null,null,null,null,null,null,null,null,null,null,null,null,null,null,null,null,null,null,null,null,null,null,null,null,null,null,null,null,null,null,null,null,null,null,null,null,null,null,null,null,null,null,null,null,null,null,null,null,null,null,null,null,null,null,null,null,null,null,null,null,null,null,null,null,null,null,null,null,null,null,null,null,null,null,null,null,null,null,null,null,null,null,null,null,null,null,null,null,null,null,null,null,null,null,null,null,null,null,null,null,null,null,null,null,null,null,null,null,null,null,null,null,null,null,null,null,null,null,null,null,null,null,null,null,null,null,null,null,null,null,null,null,null,null,null,null,null,null,null,null,null,null,null,null,null,null,null,null,null,null,null,null,null,null,null,null,null,null,null,null,null,null,null,null,null,null,null,null,null,null,null,null,null,null,null,null,"BOLIVAR"]
[null,"OCTUBRE",0,0,0,null,null,"OCTUBRE",{"$f":"Hoja8!B32","v":0},{"$f":"Hoja8!C32","v":0},{"$f":"Hoja8!D32","v":0},{"$f":"Hoja8!E32","v":0},{"$f":"Hoja8!F32","v":0},{"$f":"Hoja8!G32","v":0},{"$f":"Hoja8!H32","v":0},{"$f":"Hoja8!I32","v":0},0,0,0,null,null,null,null,null,null,null,null,null,null,null,null,null,null,null,null,null,null,null,null,null,null,null,null,null,null,null,null,null,null,null,null,null,null,null,null,null,null,null,null,null,null,null,null,null,null,null,null,null,null,null,null,null,null,null,null,null,null,null,null,null,null,null,null,null,null,null,null,null,null,null,null,null,null,null,null,null,null,null,null,null,null,null,null,null,null,null,null,null,null,null,null,null,null,null,null,null,null,null,null,null,null,null,null,null,null,null,null,null,null,null,null,null,null,null,null,null,null,null,null,null,null,null,null,null,null,null,null,null,null,null,null,null,null,null,null,null,null,null,null,null,null,null,null,null,null,null,null,null,null,null,null,null,null,null,null,null,null,null,null,null,null,null,null,null,null,null,null,null,null,null,null,null,null,null,null,null,null,null,null,null,null,null,null,null,null,null,null,null,null,null,null,null,null,null,null,null,null,null,null,null,null,null,null,null,null,null,null,null,null,null,null,null,null,null,null,null,null,null,null,null,null,null,null,null,null,null,null,null,null,null,null,null,null,null,null,null,null,null,null,null,null,null,null,null,null,null,null,null,null,null,null,null,null,null,null,null,null,null,null,null,null,null,null,null,null,null,null,null,null,null,null,null,null,null,null,null,null,null,null,null,null,null,null,null,null,null,null,null,null,null,null,null,null,null,null,null,null,null,null,null,null,null,null,null,null,null,null,null,null,null,null,null,null,null,null,null,null,null,null,null,null,null,null,null,null,null,null,null,null,null,null,null,null,null,null,null,null,null,null,null,null,null,null,null,null,null,null,null,null,null,null,null,null,null,null,null,null,null,null,null,null,null,null,null,null,null,null,null,null,null,null,null,null,null,null,null,null,null,null,null,null,null,null,null,null,null,null,null,null,null,null,null,null,null,null,null,null,null,null,null,null,null,null,null,null,null,null,null,null,null,null,null,null,null,null,null,null,null,null,null,null,null,null,null,null,null,null,null,null,null,null,null,null,null,null,null,null,null,null,null,null,null,null,null,null,null,null,null,null,null,null,null,null,null,null,null,null,null,null,null,null,null,null,null,null,null,null,null,null,null,null,null,null,null,null,null,null,null,null,null,null,null,null,null,null,null,null,null,null,null,null,null,null,null,null,null,null,null,null,null,null,null,null,null,null,null,null,null,null,null,null,null,null,null,null,null,null,null,null,null,null,null,null,null,null,null,null,null,null,null,null,null,null,null,null,null,null,null,null,null,null,null,null,null,null,null,null,null,null,null,null,null,null,null,null,null,null,null,null,null,null,null,null,null,null,null,null,null,null,null,null,null,null,null,null,null,null,null,null,null,null,null,null,null,null,null,null,null,null,null,null,null,null,null,null,null,null,null,null,null,null,null,null,null,null,null,null,null,null,null,null,null,null,null,null,null,null,null,null,null,null,null,null,null,null,null,null,null,null,null,null,null,null,null,null,null,null,null,null,null,null,null,null,null,null,null,null,null,null,null,null,null,null,null,null,null,null,null,null,null,null,null,null,null,null,null,null,null,null,null,null,null,null,null,null,null,null,null,null,null,null,null,null,null,null,null,null,null,null,null,null,null,null,null,null,null,null,null,null,null,null,null,null,null,null,null,null,null,null,null,null,null,null,null,null,null,null,null,null,null,null,null,null,null,null,null,null,null,null,null,null,null,null,null,null,null,null,null,null,null,null,null,null,null,null,null,null,null,null,null,null,null,null,null,null,null,null,null,null,null,null,null,null,null,null,null,null,null,null,null,null,null,null,null,null,null,null,null,null,null,null,null,null,null,null,null,null,null,null,null,null,null,null,null,null,null,null,null,null,null,null,null,null,null,null,null,null,null,null,null,null,null,null,null,null,null,null,null,null,null,null,null,null,null,null,null,null,null,null,null,null,null,null,null,null,null,null,null,null,null,null,null,null,null,null,null,null,null,null,null,null,null,null,null,null,null,null,null,null,null,null,null,null,null,null,null,null,null,null,null,null,null,null,null,null,null,null,null,null,null,null,null,null,null,null,null,null,null,null,null,null,null,null,null,null,null,null,null,null,null,null,null,null,null,null,null,null,null,null,null,null,null,null,null,null,null,null,null,null,null,null,null,null,null,null,null,null,null,null,null,null,null,null,null,null,null,null,null,null,null,null,null,null,null,null,null,null,null,null,null,null,null,null,null,null,null,null,null,null,null,null,null,null,null,null,null,null,null,null,null,null,null,null,null,null,null,null,null,null,null,null,null,null,null,null,null,null,null,null,null,null,null,null,null,null,null,null,null,null,null,null,null,null,null,null,null,null,null,null,null,null,null,null,null,null,null,null,null,null,null,null,null,null,null,null,null,null,null,null,null,null,null,null,null,null,null,null,null,null,null,null,null,null,null,null,null,null,null,null,null,null,null,null,null,null,null,null,null,null,null,null,null,null,null,null,null,null,null,null,null,null,null,null,null,null,null,null,null,null,null,null,null,null,null,null,null,null,null,null,null,null,null,null,null,null,null,null,null,null,null,null,null,null,null,null,null,null,null,null,null,null,null,null,null,null,null,null,null,null,null,null,null,null,null,null,null,null,null,null,null,null,null,null,null,null,null,null,null,null,null,null,null,null,null,null,null,null,null,null,null,null,null,null,null,null,null,null,null,null,null,null,null,null,null,null,null,null,null,null,null,null,null,null,null,null,null,null,null,null,null,null,null,null,null,null,null,null,null,null,null,null,null,null,null,null,null,null,null,null,null,null,null,null,null,null,null,null,null,null,null,null,null,null,null,null,null,null,null,null,null,null,null,null,null,null,null,null,null,null,null,null,null,null,null,null,null,null,null,null,null,null,null,null,null,null,null,null,null,null,null,null,null,null,null,null,null,null,null,null,null,null,null,null,null,null,null,null,null,null,null,null,null,null,null,null,null,null,null,null,null,null,null,null,null,null,null,null,null,null,null,null,null,null,null,null,null,null,null,null,null,null,null,null,null,null,null,null,null,null,null,null,null,null,null,null,null,null,null,null,null,null,null,null,null,null,null,null,null,null,null,null,null,null,null,null,null,null,null,null,null,null,null,null,null,null,null,null,null,null,null,null,null,null,null,null,null,null,null,null,null,null,null,null,null,null,null,null,null,null,null,null,null,null,null,null,null,null,null,null,null,null,null,null,null,null,null,null,null,null,null,null,null,null,null,null,null,null,null,null,null,null,null,null,null,null,null,null,null,null,null,null,null,null,null,null,null,null,null,null,null,null,null,null,null,null,null,null,null,null,null,null,null,null,null,null,null,null,null,null,null,null,null,null,null,null,null,null,null,null,null,null,null,null,null,null,null,null,null,null,null,null,null,null,null,null,null,null,null,null,null,null,null,null,null,null,null,null,null,null,null,null,null,null,null,null,null,null,null,null,null,null,null,null,null,null,null,null,null,null,null,null,null,null,null,null,null,null,null,null,null,null,null,null,null,null,null,null,null,null,null,null,null,null,null,null,null,null,null,null,null,null,null,null,null,null,null,null,null,null,null,null,null,null,null,null,null,null,null,null,null,null,null,null,null,null,null,null,null,null,null,null,null,null,null,null,null,null,null,null,null,null,null,null,null,null,null,null,null,null,null,null,null,null,null,null,null,null,null,null,null,null,null,null,null,null,null,null,null,null,null,null,null,null,null,null,null,null,null,null,null,null,null,null,null,null,null,null,null,null,null,null,null,null,null,null,null,null,null,null,null,null,null,null,null,null,null,null,null,null,null,null,null,null,null,null,null,null,null,null,null,null,null,null,null,null,null,null,null,null,null,null,null,null,null,null,null,null,null,null,null,null,null,null,null,null,null,null,null,null,null,null,null,null,null,null,null,null,null,null,null,null,null,null,null,null,null,null,null,null,null,null,null,null,null,null,null,null,null,null,null,null,null,null,null,null,null,null,null,null,null,null,null,null,null,null,null,null,null,null,null,null,null,null,null,null,null,null,null,null,null,null,null,null,null,null,null,null,null,null,null,null,null,null,null,null,null,null,null,null,null,null,null,null,null,null,null,null,null,null,null,null,null,null,null,null,null,null,null,null,null,null,null,null,null,null,null,null,null,null,null,null,null,null,null,null,null,null,null,null,null,null,null,null,null,null,null,null,null,null,null,null,null,null,null,null,null,null,null,null,null,null,null,null,null,null,null,null,null,null,null,null,null,null,null,null,null,null,null,null,null,null,null,null,null,null,null,null,null,null,null,null,null,null,null,null,null,null,null,null,null,null,null,null,null,null,null,null,null,null,null,null,null,null,null,null,null,null,null,null,null,null,null,null,null,null,null,null,null,null,null,null,null,null,null,null,null,null,null,null,null,null,null,null,null,null,null,null,null,null,null,null,null,null,null,null,null,null,null,null,null,null,null,null,null,null,null,null,null,null,null,null,null,null,null,null,null,null,null,null,null,null,null,null,null,null,null,null,null,null,null,null,null,null,null,null,null,null,null,null,null,null,null,null,null,null,null,null,null,null,null,null,null,null,null,null,null,null,null,null,null,null,null,null,null,null,null,null,null,null,null,null,null,null,null,null,null,null,null,null,null,null,null,null,null,null,null,null,null,null,null,null,null,null,null,null,null,null,null,null,null,null,null,null,null,null,null,null,null,null,null,null,null,null,null,null,null,null,null,null,null,null,null,null,null,null,null,null,null,null,null,null,null,null,null,null,null,null,null,null,null,null,null,null,null,null,null,null,null,null,null,null,null,null,null,null,null,null,null,null,null,null,null,null,null,null,null,null,null,null,null,null,null,null,null,null,null,null,null,null,null,null,null,null,null,null,null,null,null,null,null,null,null,null,null,null,null,null,null,null,null,null,null,null,null,null,null,null,null,null,null,null,null,null,null,null,null,null,null,null,null,null,null,null,null,null,null,null,null,null,null,null,null,null,null,null,null,null,null,null,null,null,null,null,null,null,null,null,null,null,null,null,null,null,null,null,null,null,null,null,null,null,null,null,null,null,null,null,null,null,null,null,null,null,null,null,null,null,null,null,null,null,null,null,null,null,null,null,null,null,null,null,null,null,null,null,null,null,null,null,null,null,null,null,null,null,null,null,null,null,null,null,null,null,null,null,null,null,null,null,null,null,null,null,null,null,null,null,null,null,null,null,null,null,null,null,null,null,null,null,null,null,null,null,null,null,null,null,null,null,null,null,null,null,null,null,null,null,null,null,null,null,null,null,null,null,null,null,null,null,null,null,null,null,null,null,null,null,null,null,null,null,null,null,null,null,null,null,null,null,null,null,null,null,null,null,null,null,null,null,null,null,null,null,null,null,null,null,null,null,null,null,null,null,null,null,null,null,null,null,null,null,null,null,null,null,null,null,null,null,null,null,null,null,null,null,null,null,null,null,null,null,null,null,null,null,null,null,null,null,null,null,null,null,null,null,null,null,null,null,null,null,null,null,null,null,null,null,null,null,null,null,null,null,null,null,null,null,null,null,null,null,null,null,null,null,null,null,null,null,null,null,null,null,null,null,null,null,null,null,null,null,null,null,null,null,null,null,null,null,null,null,null,null,null,null,null,null,null,null,null,null,null,null,null,null,null,null,null,null,null,null,null,null,null,null,null,null,null,null,null,null,null,null,null,null,null,null,null,null,null,null,null,null,null,null,null,null,null,null,null,null,null,null,null,null,null,null,null,null,null,null,null,null,null,null,null,null,null,null,null,null,null,null,null,null,null,null,null,null,null,null,null,null,null,null,null,null,null,null,null,null,null,null,null,null,null,null,null,null,null,null,null,null,null,null,null,null,null,null,null,null,null,null,null,null,null,null,null,null,null,null,null,null,null,null,null,null,null,null,null,null,null,null,null,null,null,null,null,null,null,null,null,null,null,null,null,null,null,null,null,null,null,null,null,null,null,null,null,null,null,null,null,null,null,null,null,null,null,null,null,null,null,null,null,null,null,null,null,null,null,null,null,null,null,null,null,null,null,null,null,null,null,null,null,null,null,null,null,null,null,null,null,null,null,null,null,null,null,null,null,null,null,null,null,null,null,null,null,null,null,null,null,null,null,null,null,null,null,null,null,null,null,null,null,null,null,null,null,null,null,null,null,null,null,null,null,null,null,null,null,null,null,null,null,null,null,null,null,null,null,null,null,null,null,null,null,null,null,null,null,null,null,null,null,null,null,null,null,null,null,null,null,null,null,null,null,null,null,null,null,null,null,null,null,null,null,null,null,null,null,null,null,null,null,null,null,null,null,null,null,null,null,null,null,null,null,null,null,null,null,null,null,null,null,null,null,null,null,null,null,null,null,null,null,null,null,null,null,null,null,null,null,null,null,null,null,null,null,null,null,null,null,null,null,null,null,null,null,null,null,null,null,null,null,null,null,null,null,null,null,null,null,null,null,null,null,null,null,null,null,null,null,null,null,null,null,null,null,null,null,null,null,null,null,null,null,null,null,null,null,null,null,null,null,null,null,null,null,null,null,null,null,null,null,null,null,null,null,null,null,null,null,null,null,null,null,null,null,null,null,null,null,null,null,null,null,null,null,null,null,null,null,null,null,null,null,null,null,null,null,null,null,null,null,null,null,null,null,null,null,null,null,null,null,null,null,null,null,null,null,null,null,null,null,null,null,null,null,null,null,null,null,null,null,null,null,null,null,null,null,null,null,null,null,null,null,null,null,null,null,null,null,null,null,null,null,null,null,null,null,null,null,null,null,null,null,null,null,null,null,null,null,null,null,null,null,null,null,null,null,null,null,null,null,null,null,null,null,null,null,null,null,null,null,null,null,null,null,null,null,null,null,null,null,null,null,null,null,null,null,null,null,null,null,null,null,null,null,null,null,null,null,null,null,null,null,null,null,null,null,null,null,null,null,null,null,null,null,null,null,null,null,null,null,null,null,null,null,null,null,null,null,null,null,null,null,null,null,null,null,null,null,null,null,null,null,null,null,null,null,null,null,null,null,null,null,null,null,null,null,null,null,null,null,null,null,null,null,null,null,null,null,null,null,null,null,null,null,null,null,null,null,null,null,null,null,null,null,null,null,null,null,null,null,null,null,null,null,null,null,null,null,null,null,null,null,null,null,null,null,null,null,null,null,null,null,null,null,null,null,null,null,null,null,null,null,null,null,null,null,null,null,null,null,null,null,null,null,null,null,null,null,null,null,null,null,null,null,null,null,null,null,null,null,null,null,null,null,null,null,null,null,null,null,null,null,null,null,null,null,null,null,null,null,null,null,null,null,null,null,null,null,null,null,null,null,null,null,null,null,null,null,null,null,null,null,null,null,null,null,null,null,null,null,null,null,null,null,null,null,null,null,null,null,null,null,null,null,null,null,null,null,null,null,null,null,null,null,null,null,null,null,null,null,null,null,null,null,null,null,null,null,null,null,null,null,null,null,null,null,null,null,null,null,null,null,null,null,null,null,null,null,null,null,null,null,null,null,null,null,null,null,null,null,null,null,null,null,null,null,null,null,null,null,null,null,null,null,null,null,null,null,null,null,null,null,null,null,null,null,null,null,null,null,null,null,null,null,null,null,null,null,null,null,null,null,null,null,null,null,null,null,null,null,null,null,null,null,null,null,null,null,null,null,null,null,null,null,null,null,null,null,null,null,null,null,null,null,null,null,null,null,null,null,null,null,null,null,null,null,null,null,null,null,null,null,null,null,null,null,null,null,null,null,null,null,null,null,null,null,null,null,null,null,null,null,null,null,null,null,null,null,null,null,null,null,null,null,null,null,null,null,null,null,null,null,null,null,null,null,null,null,null,null,null,null,null,null,null,null,null,null,null,null,null,null,null,null,null,null,null,null,null,null,null,null,null,null,null,null,null,null,null,null,null,null,null,null,null,null,null,null,null,null,null,null,null,null,null,null,null,null,null,null,null,null,null,null,null,null,null,null,null,null,null,null,null,null,null,null,null,null,null,null,null,null,null,null,null,null,null,null,null,null,null,null,null,null,null,null,null,null,null,null,null,null,null,null,null,null,null,null,null,null,null,null,null,null,null,null,null,null,null,null,null,null,null,null,null,null,null,null,null,null,null,null,null,null,null,null,null,null,null,null,null,null,null,null,null,null,null,null,null,null,null,null,null,null,null,null,null,null,null,null,null,null,null,null,null,null,null,null,null,null,null,null,null,null,null,null,null,null,null,null,null,null,null,null,null,null,null,null,null,null,null,null,null,null,null,null,null,null,null,null,null,null,null,null,null,null,null,null,null,null,null,null,null,null,null,null,null,null,null,null,null,null,null,null,null,null,null,null,null,null,null,null,null,null,null,null,null,null,null,null,null,null,null,null,null,null,null,null,null,null,null,null,null,null,null,null,null,null,null,null,null,null,null,null,null,null,null,null,null,null,null,null,null,null,null,null,null,null,null,null,null,null,null,null,null,null,null,null,null,null,null,null,null,null,null,null,null,null,null,null,null,null,null,null,null,null,null,null,null,null,null,null,null,null,null,null,null,null,null,null,null,null,null,null,null,null,null,null,null,null,null,null,null,null,null,null,null,null,null,null,null,null,null,null,null,null,null,null,null,null,null,null,null,null,null,null,null,null,null,null,null,null,null,null,null,null,null,null,null,null,null,null,null,null,null,null,null,null,null,null,null,null,null,null,null,null,null,null,null,null,null,null,null,null,null,null,null,null,null,null,null,null,null,null,null,null,null,null,null,null,null,null,null,null,null,null,null,null,null,null,null,null,null,null,null,null,null,null,null,null,null,null,null,null,null,null,null,null,null,null,null,null,null,null,null,null,null,null,null,null,null,null,null,null,null,null,null,null,null,null,null,null,null,null,null,null,null,null,null,null,null,null,null,null,null,null,null,null,null,null,null,null,null,null,null,null,null,null,null,null,null,null,null,null,null,null,null,null,null,null,null,null,null,null,null,null,null,null,null,null,null,null,null,null,null,null,null,null,null,null,null,null,null,null,null,null,null,null,null,null,null,null,null,null,null,null,null,null,null,null,null,null,null,null,null,null,null,null,null,null,null,null,null,null,null,null,null,null,null,null,null,null,null,null,null,null,null,null,null,null,null,null,null,null,null,null,null,null,null,null,null,null,null,null,null,null,null,null,null,null,null,null,null,null,null,null,null,null,null,null,null,null,null,null,null,null,null,null,null,null,null,null,null,null,null,null,null,null,null,null,null,null,null,null,null,null,null,null,null,null,null,null,null,null,null,null,null,null,null,null,null,null,null,null,null,null,null,null,null,null,null,null,null,null,null,null,null,null,null,null,null,null,null,null,null,null,null,null,null,null,null,null,null,null,null,null,null,null,null,null,null,null,null,null,null,null,null,null,null,null,null,null,null,null,null,null,null,null,null,null,null,null,null,null,null,null,null,null,null,null,null,null,null,null,null,null,null,null,null,null,null,null,null,null,null,null,null,null,null,null,null,null,null,null,null,null,null,null,null,null,null,null,null,null,null,null,null,null,null,null,null,null,null,null,null,null,null,null,null,null,null,null,null,null,null,null,null,null,null,null,null,null,null,null,null,null,null,null,null,null,null,null,null,null,null,null,null,null,null,null,null,null,null,null,null,null,null,null,null,null,null,null,null,null,null,null,null,null,null,null,null,null,null,null,null,null,null,null,null,null,null,null,null,null,null,null,null,null,null,null,null,null,null,null,null,null,null,null,null,null,null,null,null,null,null,null,null,null,null,null,null,null,null,null,null,null,null,null,null,null,null,null,null,null,null,null,null,null,null,null,null,null,null,null,null,null,null,null,null,null,null,null,null,null,null,null,null,null,null,null,null,null,null,null,null,null,null,null,null,null,null,null,null,null,null,null,null,null,null,null,null,null,null,null,null,null,null,null,null,null,null,null,null,null,null,null,null,null,null,null,null,null,null,null,null,null,null,null,null,null,null,null,null,null,null,null,null,null,null,null,null,null,null,null,null,null,null,null,null,null,null,null,null,null,null,null,null,null,null,null,null,null,null,null,null,null,null,null,null,null,null,null,null,null,null,null,null,null,null,null,null,null,null,null,null,null,null,null,null,null,null,null,null,null,null,null,null,null,null,null,null,null,null,null,null,null,null,null,null,null,null,null,null,null,null,null,null,null,null,null,null,null,null,null,null,null,null,null,null,null,null,null,null,null,null,null,null,null,null,null,null,null,null,null,null,null,null,null,null,null,null,null,null,null,null,null,null,null,null,null,null,null,null,null,null,null,null,null,null,null,null,null,null,null,null,null,null,null,null,null,null,null,null,null,null,null,null,null,null,null,null,null,null,null,null,null,null,null,null,null,null,null,null,null,null,null,null,null,null,null,null,null,null,null,null,null,null,null,null,null,null,null,null,null,null,null,null,null,null,null,null,null,null,null,null,null,null,null,null,null,null,null,null,null,null,null,null,null,null,null,null,null,null,null,null,null,null,null,null,null,null,null,null,null,null,null,null,null,null,null,null,null,null,null,null,null,null,null,null,null,null,null,null,null,null,null,null,null,null,null,null,null,null,null,null,null,null,null,null,null,null,null,null,null,null,null,null,null,null,null,null,null,null,null,null,null,null,null,null,null,null,null,null,null,null,null,null,null,null,null,null,null,null,null,null,null,null,null,null,null,null,null,null,null,null,null,null,null,null,null,null,null,null,null,null,null,null,null,null,null,null,null,null,null,null,null,null,null,null,null,null,null,null,null,null,null,null,null,null,null,null,null,null,null,null,null,null,null,null,null,null,null,null,null,null,null,null,null,null,null,null,null,null,null,null,null,null,null,null,null,null,null,null,null,null,null,null,null,null,null,null,null,null,null,null,null,null,null,null,null,null,null,null,null,null,null,null,null,null,null,null,null,null,null,null,null,null,null,null,null,null,null,null,null,null,null,null,null,null,null,null,null,null,null,null,null,null,null,null,null,null,null,null,null,null,null,null,null,null,null,null,null,null,null,null,null,null,null,null,null,null,null,null,null,null,null,null,null,null,null,null,null,null,null,null,null,null,null,null,null,null,null,null,null,null,null,null,null,null,null,null,null,null,null,null,null,null,null,null,null,null,null,null,null,null,null,null,null,null,null,null,null,null,null,null,null,null,null,null,null,null,null,null,null,null,null,null,null,null,null,null,null,null,null,null,null,null,null,null,null,null,null,null,null,null,null,null,null,null,null,null,null,null,null,null,null,null,null,null,null,null,null,null,null,null,null,null,null,null,null,null,null,null,null,null,null,null,null,null,null,null,null,null,null,null,null,null,null,null,null,null,null,null,null,null,null,null,null,null,null,null,null,null,null,null,null,null,null,null,null,null,null,null,null,null,null,null,null,null,null,null,null,null,null,null,null,null,null,null,null,null,null,null,null,null,null,null,null,null,null,null,null,null,null,null,null,null,null,null,null,null,null,null,null,null,null,null,null,null,null,null,null,null,null,null,null,null,null,null,null,null,null,null,null,null,null,null,null,null,null,null,null,null,null,null,null,null,null,null,null,null,null,null,null,null,null,null,null,null,null,null,null,null,null,null,null,null,null,null,null,null,null,null,null,null,null,null,null,null,null,null,null,null,null,null,null,null,null,null,null,null,null,null,null,null,null,null,null,null,null,null,null,null,null,null,null,null,null,null,null,null,null,null,null,null,null,null,null,null,null,null,null,null,null,null,null,null,null,null,null,null,null,null,null,null,null,null,null,null,null,null,null,null,null,null,null,null,null,null,null,null,null,null,null,null,null,null,null,null,null,null,null,null,null,null,null,null,null,null,null,null,null,null,null,null,null,null,null,null,null,null,null,null,null,null,null,null,null,null,null,null,null,null,null,null,null,null,null,null,null,null,null,null,null,null,null,null,null,null,null,null,null,null,null,null,null,null,null,null,null,null,null,null,null,null,null,null,null,null,null,null,null,null,null,null,null,null,null,null,null,null,null,null,null,null,null,null,null,null,null,null,null,null,null,null,null,null,null,null,null,null,null,null,null,null,null,null,null,null,null,null,null,null,null,null,null,null,null,null,null,null,null,null,null,null,null,null,null,null,null,null,null,null,null,null,null,null,null,null,null,null,null,null,null,null,null,null,null,null,null,null,null,null,null,null,null,null,null,null,null,null,null,null,null,null,null,null,null,null,null,null,null,null,null,null,null,null,null,null,null,null,null,null,null,null,null,null,null,null,null,null,null,null,null,null,null,null,null,null,null,null,null,null,null,null,null,null,null,null,null,null,null,null,null,null,null,null,null,null,null,null,null,null,null,null,null,null,null,null,null,null,null,null,null,null,null,null,null,null,null,null,null,null,null,null,null,null,null,null,null,null,null,null,null,null,null,null,null,null,null,null,null,null,null,null,null,null,null,null,null,null,null,null,null,null,null,null,null,null,null,null,null,null,null,null,null,null,null,null,null,null,null,null,null,null,null,null,null,null,null,null,null,null,null,null,null,null,null,null,null,null,null,null,null,null,null,null,null,null,null,null,null,null,null,null,null,null,null,null,null,null,null,null,null,null,null,null,null,null,null,null,null,null,null,null,null,null,null,null,null,null,null,null,null,null,null,null,null,null,null,null,null,null,null,null,null,null,null,null,null,null,null,null,null,null,null,null,null,null,null,null,null,null,null,null,null,null,null,null,null,null,null,null,null,null,null,null,null,null,null,null,null,null,null,null,null,null,null,null,null,null,null,null,null,null,null,null,null,null,null,null,null,null,null,null,null,null,null,null,null,null,null,null,null,null,null,null,null,null,null,null,null,null,null,null,null,null,null,null,null,null,null,null,null,null,null,null,null,null,null,null,null,null,null,null,null,null,null,null,null,null,null,null,null,null,null,null,null,null,null,null,null,null,null,null,null,null,null,null,null,null,null,null,null,null,null,null,null,null,null,null,null,null,null,null,null,null,null,null,null,null,null,null,null,null,null,null,null,null,null,null,null,null,null,null,null,null,null,null,null,null,null,null,null,null,null,null,null,null,null,null,null,null,null,null,null,null,null,null,null,null,null,null,null,null,null,null,null,null,null,null,null,null,null,null,null,null,null,null,null,null,null,null,null,null,null,null,null,null,null,null,null,null,null,null,null,null,null,null,null,null,null,null,null,null,null,null,null,null,null,null,null,null,null,null,null,null,null,null,null,null,null,null,null,null,null,null,null,null,null,null,null,null,null,null,null,null,null,null,null,null,null,null,null,null,null,null,null,null,null,null,null,null,null,null,null,null,null,null,null,null,null,null,null,null,null,null,null,null,null,null,null,null,null,null,null,null,null,null,null,null,null,null,null,null,null,null,null,null,null,null,null,null,null,null,null,null,null,null,null,null,null,null,null,null,null,null,null,null,null,null,null,null,null,null,null,null,null,null,null,null,null,null,null,null,null,null,null,null,null,null,null,null,null,null,null,null,null,null,null,null,null,null,null,null,null,null,null,null,null,null,null,null,null,null,null,null,null,null,null,null,null,null,null,null,null,null,null,null,null,null,null,null,null,null,null,null,null,null,null,null,null,null,null,null,null,null,null,null,null,null,null,null,null,null,null,null,null,null,null,null,null,null,null,null,null,null,null,null,null,null,null,null,null,null,null,null,null,null,null,null,null,null,null,null,null,null,null,null,null,null,null,null,null,null,null,null,null,null,null,null,null,null,null,null,null,null,null,null,null,null,null,null,null,null,null,null,null,null,null,null,null,null,null,null,null,null,null,null,null,null,null,null,null,null,null,null,null,null,null,null,null,null,null,null,null,null,null,null,null,null,null,null,null,null,null,null,null,null,null,null,null,null,null,null,null,null,null,null,null,null,null,null,null,null,null,null,null,null,null,null,null,null,null,null,null,null,null,null,null,null,null,null,null,null,null,null,null,null,null,null,null,null,null,null,null,null,null,null,null,null,null,null,null,null,null,null,null,null,null,null,null,null,null,null,null,null,null,null,null,null,null,null,null,null,null,null,null,null,null,null,null,null,null,null,null,null,null,null,null,null,null,null,null,null,null,null,null,null,null,null,null,null,null,null,null,null,null,null,null,null,null,null,null,null,null,null,null,null,null,null,null,null,null,null,null,null,null,null,null,null,null,null,null,null,null,null,null,null,null,null,null,null,null,null,null,null,null,null,null,null,null,null,null,null,null,null,null,null,null,null,null,null,null,null,null,null,null,null,null,null,null,null,null,null,null,null,null,null,null,null,null,null,null,null,null,null,null,null,null,null,null,null,null,null,null,null,null,null,null,null,null,null,null,null,null,null,null,null,null,null,null,null,null,null,null,null,null,null,null,null,null,null,null,null,null,null,null,null,null,null,null,null,null,null,null,null,null,null,null,null,null,null,null,null,null,null,null,null,null,null,null,null,null,null,null,null,null,null,null,null,null,null,null,null,null,null,null,null,null,null,null,null,null,null,null,null,null,null,null,null,null,null,null,null,null,null,null,null,null,null,null,null,null,null,null,null,null,null,null,null,null,null,null,null,null,null,null,null,null,null,null,null,null,null,null,null,null,null,null,null,null,null,null,null,null,null,null,null,null,null,null,null,null,null,null,null,null,null,null,null,null,null,null,null,null,null,null,null,null,null,null,null,null,null,null,null,null,null,null,null,null,null,null,null,null,null,null,null,null,null,null,null,null,null,null,null,null,null,null,null,null,null,null,null,null,null,null,null,null,null,null,null,null,null,null,null,null,null,null,null,null,null,null,null,null,null,null,null,null,null,null,null,null,null,null,null,null,null,null,null,null,null,null,null,null,null,null,null,null,null,null,null,null,null,null,null,null,null,null,null,null,null,null,null,null,null,null,null,null,null,null,null,null,null,null,null,null,null,null,null,null,null,null,null,null,null,null,null,null,null,null,null,null,null,null,null,null,null,null,null,null,null,null,null,null,null,null,null,null,null,null,null,null,null,null,null,null,null,null,null,null,null,null,null,null,null,null,null,null,null,null,null,null,null,null,null,null,null,null,null,null,null,null,null,null,null,null,null,null,null,null,null,null,null,null,null,null,null,null,null,null,null,null,null,null,null,null,null,null,null,null,null,null,null,null,null,null,null,null,null,null,null,null,null,null,null,null,null,null,null,null,null,null,null,null,null,null,null,null,null,null,null,null,null,null,null,null,null,null,null,null,null,null,null,null,null,null,null,null,null,null,null,null,null,null,null,null,null,null,null,null,null,null,null,null,null,null,null,null,null,null,null,null,null,null,null,null,null,null,null,null,null,null,null,null,null,null,null,null,null,null,null,null,null,null,null,null,null,null,null,null,null,null,null,null,null,null,null,null,null,null,null,null,null,null,null,null,null,null,null,null,null,null,null,null,null,null,null,null,null,null,null,null,null,null,null,null,null,null,null,null,null,null,null,null,null,null,null,null,null,null,null,null,null,null,null,null,null,null,null,null,null,null,null,null,null,null,null,null,null,null,null,null,null,null,null,null,null,null,null,null,null,null,null,null,null,null,null,null,null,null,null,null,null,null,null,null,null,null,null,null,null,null,null,null,null,null,null,null,null,null,null,null,null,null,null,null,null,null,null,null,null,null,null,null,null,null,null,null,null,null,null,null,null,null,null,null,null,null,null,null,null,null,null,null,null,null,null,null,null,null,null,null,null,null,null,null,null,null,null,null,null,null,null,null,null,null,null,null,null,null,null,null,null,null,null,null,null,null,null,null,null,null,null,null,null,null,null,null,null,null,null,null,null,null,null,null,null,null,null,null,null,null,null,null,null,null,null,null,null,null,null,null,null,null,null,null,null,null,null,null,null,null,null,null,null,null,null,null,null,null,null,null,null,null,null,null,null,null,null,null,null,null,null,null,null,null,null,null,null,null,null,null,null,null,null,null,null,null,null,null,null,null,null,null,null,null,null,null,null,null,null,null,null,null,null,null,null,null,null,null,null,null,null,null,null,null,null,null,null,null,null,null,null,null,null,null,null,null,null,null,null,null,null,null,null,null,null,null,null,null,null,null,null,null,null,null,null,null,null,null,null,null,null,null,null,null,null,null,null,null,null,null,null,null,null,null,null,null,null,null,null,null,null,null,null,null,null,null,null,null,null,null,null,null,null,null,null,null,null,null,null,null,null,null,null,null,null,null,null,null,null,null,null,null,null,null,null,null,null,null,null,null,null,null,null,null,null,null,null,null,null,null,null,null,null,null,null,null,null,null,null,null,null,null,null,null,null,null,null,null,null,null,null,null,null,null,null,null,null,null,null,null,null,null,null,null,null,null,null,null,null,null,null,null,null,null,null,null,null,null,null,null,null,null,null,null,null,null,null,null,null,null,null,null,null,null,null,null,null,null,null,null,null,null,null,null,null,null,null,null,null,null,null,null,null,null,null,null,null,null,null,null,null,null,null,null,null,null,null,null,null,null,null,null,null,null,null,null,null,null,null,null,null,null,null,null,null,null,null,null,null,null,null,null,null,null,null,null,null,null,null,null,null,null,null,null,null,null,null,null,null,null,null,null,null,null,null,null,null,null,null,null,null,null,null,null,null,null,null,null,null,null,null,null,null,null,null,null,null,null,null,null,null,null,null,null,null,null,null,null,null,null,null,null,null,null,null,null,null,null,null,null,null,null,null,null,null,null,null,null,null,null,null,null,null,null,null,null,null,null,null,null,null,null,null,null,null,null,null,null,null,null,null,null,null,null,null,null,null,null,null,null,null,null,null,null,null,null,null,null,null,null,null,null,null,null,null,null,null,null,null,null,null,null,null,null,null,null,null,null,null,null,null,null,null,null,null,null,null,null,null,null,null,null,null,null,null,null,null,null,null,null,null,null,null,null,null,null,null,null,null,null,null,null,null,null,null,null,null,null,null,null,null,null,null,null,null,null,null,null,null,null,null,null,null,null,null,null,null,null,null,null,null,null,null,null,null,null,null,null,null,null,null,null,null,null,null,null,null,null,null,null,null,null,null,null,null,null,null,null,null,null,null,null,null,null,null,null,null,null,null,null,null,null,null,null,null,null,null,null,null,null,null,null,null,null,null,null,null,null,null,null,null,null,null,null,null,null,null,null,null,null,null,null,null,null,null,null,null,null,null,null,null,null,null,null,null,null,null,null,null,null,null,null,null,null,null,null,null,null,null,null,null,null,null,null,null,null,null,null,null,null,null,null,null,null,null,null,null,null,null,null,null,null,null,null,null,null,null,null,null,null,null,null,null,null,null,null,null,null,null,null,null,null,null,null,null,null,null,null,null,null,null,null,null,null,null,null,null,null,null,null,null,null,null,null,null,null,null,null,null,null,null,null,null,null,null,null,null,null,null,null,null,null,null,null,null,null,null,null,null,null,null,null,null,null,null,null,null,null,null,null,null,null,null,null,null,null,null,null,null,null,null,null,null,null,null,null,null,null,null,null,null,null,null,null,null,null,null,null,null,null,null,null,null,null,null,null,null,null,null,null,null,null,null,null,null,null,null,null,null,null,null,null,null,null,null,null,null,null,null,null,null,null,null,null,null,null,null,null,null,null,null,null,null,null,null,null,null,null,null,null,null,null,null,null,null,null,null,null,null,null,null,null,null,null,null,null,null,null,null,null,null,null,null,null,null,null,null,null,null,null,null,null,null,null,null,null,null,null,null,null,null,null,null,null,null,null,null,null,null,null,null,null,null,null,null,null,null,null,null,null,null,null,null,null,null,null,null,null,null,null,null,null,null,null,null,null,null,null,null,null,null,null,null,null,null,null,null,null,null,null,null,null,null,null,null,null,null,null,null,null,null,null,null,null,null,null,null,null,null,null,null,null,null,null,null,null,null,null,null,null,null,null,null,null,null,null,null,null,null,null,null,null,null,null,null,null,null,null,null,null,null,null,null,null,null,null,null,null,null,null,null,null,null,null,null,null,null,null,null,null,null,null,null,null,null,null,null,null,null,null,null,null,null,null,null,null,null,null,null,null,null,null,null,null,null,null,null,null,null,null,null,null,null,null,null,null,null,null,null,null,null,null,null,null,null,null,null,null,null,null,null,null,null,null,null,null,null,null,null,null,null,null,null,null,null,null,null,null,null,null,null,null,null,null,null,null,null,null,null,null,null,null,null,null,null,null,null,null,null,null,null,null,null,null,null,null,null,null,null,null,null,null,null,null,null,null,null,null,null,null,null,null,null,null,null,null,null,null,null,null,null,null,null,null,null,null,null,null,null,null,null,null,null,null,null,null,null,null,null,null,null,null,null,null,null,null,null,null,null,null,null,null,null,null,null,null,null,null,null,null,null,null,null,null,null,null,null,null,null,null,null,null,null,null,null,null,null,null,null,null,null,null,null,null,null,null,null,null,null,null,null,null,null,null,null,null,null,null,null,null,null,null,null,null,null,null,null,null,null,null,null,null,null,null,null,null,null,null,null,null,null,null,null,null,null,null,null,null,null,null,null,null,null,null,null,null,null,null,null,null,null,null,null,null,null,null,null,null,null,null,null,null,null,null,null,null,null,null,null,null,null,null,null,null,null,null,null,null,null,null,null,null,null,null,null,null,null,null,null,null,null,null,null,null,null,null,null,null,null,null,null,null,null,null,null,null,null,null,null,null,null,null,null,null,null,null,null,null,null,null,null,null,null,null,null,null,null,null,null,null,null,null,null,null,null,null,null,null,null,null,null,null,null,null,null,null,null,null,null,null,null,null,null,null,null,null,null,null,null,null,null,null,null,null,null,null,null,null,null,null,null,null,null,null,null,null,null,null,null,null,null,null,null,null,null,null,null,null,null,null,null,null,null,null,null,null,null,null,null,null,null,null,null,null,null,null,null,null,null,null,null,null,null,null,null,null,null,null,null,null,null,null,null,null,null,null,null,null,null,null,null,null,null,null,null,null,null,null,null,null,null,null,null,null,null,null,null,null,null,null,null,null,null,null,null,null,null,null,null,null,null,null,null,null,null,null,null,null,null,null,null,null,null,null,null,null,null,null,null,null,null,null,null,null,null,null,null,null,null,null,null,null,null,null,null,null,null,null,null,null,null,null,null,null,null,null,null,null,null,null,null,null,null,null,null,null,null,null,null,null,null,null,null,null,null,null,null,null,null,null,null,null,null,null,null,null,null,null,null,null,null,null,null,null,null,null,null,null,null,null,null,null,null,null,null,null,null,null,null,null,null,null,null,null,null,null,null,null,null,null,null,null,null,null,null,null,null,null,null,null,null,null,null,null,null,null,null,null,null,null,null,null,null,null,null,null,null,null,null,null,null,null,null,null,null,null,null,null,null,null,null,null,null,null,null,null,null,null,null,null,null,null,null,null,null,null,null,null,null,null,null,null,null,null,null,null,null,null,null,null,null,null,null,null,null,null,null,null,null,null,null,null,null,null,null,null,null,null,null,null,null,null,null,null,null,null,null,null,null,null,null,null,null,null,null,null,null,null,null,null,null,null,null,null,null,null,null,null,null,null,null,null,null,null,null,null,null,null,null,null,null,null,null,null,null,null,null,null,null,null,null,null,null,null,null,null,null,null,null,null,null,null,null,null,null,null,null,null,null,null,null,null,null,null,null,null,null,null,null,null,null,null,null,null,null,null,null,null,null,null,null,null,null,null,null,null,null,null,null,null,null,null,null,null,null,null,null,null,null,null,null,null,null,null,null,null,null,null,null,null,null,null,null,null,null,null,null,null,null,null,null,null,null,null,null,null,null,null,null,null,null,null,null,null,null,null,null,null,null,null,null,null,null,null,null,null,null,null,null,null,null,null,null,null,null,null,null,null,null,null,null,null,null,null,null,null,null,null,null,null,null,null,null,null,null,null,null,null,null,null,null,null,null,null,null,null,null,null,null,null,null,null,null,null,null,null,null,null,null,null,null,null,null,null,null,null,null,null,null,null,null,null,null,null,null,null,null,null,null,null,null,null,null,null,null,null,null,null,null,null,null,null,null,null,null,null,null,null,null,null,null,null,null,null,null,null,null,null,null,null,null,null,null,null,null,null,null,null,null,null,null,null,null,null,null,null,null,null,null,null,null,null,null,null,null,null,null,null,null,null,null,null,null,null,null,null,null,null,null,null,null,null,null,null,null,null,null,null,null,null,null,null,null,null,null,null,null,null,null,null,null,null,null,null,null,null,null,null,null,null,null,null,null,null,null,null,null,null,null,null,null,null,null,null,null,null,null,null,null,null,null,null,null,null,null,null,null,null,null,null,null,null,null,null,null,null,null,null,null,null,null,null,null,null,null,null,null,null,null,null,null,null,null,null,null,null,null,null,null,null,null,null,null,null,null,null,null,null,null,null,null,null,null,null,null,null,null,null,null,null,null,null,null,null,null,null,null,null,null,null,null,null,null,null,null,null,null,null,null,null,null,null,null,null,null,null,null,null,null,null,null,null,null,null,null,null,null,null,null,null,null,null,null,null,null,null,null,null,null,null,null,null,null,null,null,null,null,null,null,null,null,null,null,null,null,null,null,null,null,null,null,null,null,null,null,null,null,null,null,null,null,null,null,null,null,null,null,null,null,null,null,null,null,null,null,null,null,null,null,null,null,null,null,null,null,null,null,null,null,null,null,null,null,null,null,null,null,null,null,null,null,null,null,null,null,null,null,null,null,null,null,null,null,null,null,null,null,null,null,null,null,null,null,null,null,null,null,null,null,null,null,null,null,null,null,null,null,null,null,null,null,null,null,null,null,null,null,null,null,null,null,null,null,null,null,null,null,null,null,null,null,null,null,null,null,null,null,null,null,null,null,null,null,null,null,null,null,null,null,null,null,null,null,null,null,null,null,null,null,null,null,null,null,null,null,null,null,null,null,null,null,null,null,null,null,null,null,null,null,null,null,null,null,null,null,null,null,null,null,null,null,null,null,null,null,null,null,null,null,null,null,null,null,null,null,null,null,null,null,null,null,null,null,null,null,null,null,null,null,null,null,null,null,null,null,null,null,null,null,null,null,null,null,null,null,null,null,null,null,null,null,null,null,null,null,null,null,null,null,null,null,null,null,null,null,null,null,null,null,null,null,null,null,null,null,null,null,null,null,null,null,null,null,null,null,null,null,null,null,null,null,null,null,null,null,null,null,null,null,null,null,null,null,null,null,null,null,null,null,null,null,null,null,null,null,null,null,null,null,null,null,null,null,null,null,null,null,null,null,null,null,null,null,null,null,null,null,null,null,null,null,null,null,null,null,null,null,null,null,null,null,null,null,null,null,null,null,null,null,null,null,null,null,null,null,null,null,null,null,null,null,null,null,null,null,null,null,null,null,null,null,null,null,null,null,null,null,null,null,null,null,null,null,null,null,null,null,null,null,null,null,null,null,null,null,null,null,null,null,null,null,null,null,null,null,null,null,null,null,null,null,null,null,null,null,null,null,null,null,null,null,null,null,null,null,null,null,null,null,null,null,null,null,null,null,null,null,null,null,null,null,null,null,null,null,null,null,null,null,null,null,null,null,null,null,null,null,null,null,null,null,null,null,null,null,null,null,null,null,null,null,null,null,null,null,null,null,null,null,null,null,null,null,null,null,null,null,null,null,null,null,null,null,null,null,null,null,null,null,null,null,null,null,null,null,null,null,null,null,null,null,null,null,null,null,null,null,null,null,null,null,null,null,null,null,null,null,null,null,null,null,null,null,null,null,null,null,null,null,null,null,null,null,null,null,null,null,null,null,null,null,null,null,null,null,null,null,null,null,null,null,null,null,null,null,null,null,null,null,null,null,null,null,null,null,null,null,null,null,null,null,null,null,null,null,null,null,null,null,null,null,null,null,null,null,null,null,null,null,null,null,null,null,null,null,null,null,null,null,null,null,null,null,null,null,null,null,null,null,null,null,null,null,null,null,null,null,null,null,null,null,null,null,null,null,null,null,null,null,null,null,null,null,null,null,null,null,null,null,null,null,null,null,null,null,null,null,null,null,null,null,null,null,null,null,null,null,null,null,null,null,null,null,null,null,null,null,null,null,null,null,null,null,null,null,null,null,null,null,null,null,null,null,null,null,null,null,null,null,null,null,null,null,null,null,null,null,null,null,null,null,null,null,null,null,null,null,null,null,null,null,null,null,null,null,null,null,null,null,null,null,null,null,null,null,null,null,null,null,null,null,null,null,null,null,null,null,null,null,null,null,null,null,null,null,null,null,null,null,null,null,null,null,null,null,null,null,null,null,null,null,null,null,null,null,null,null,null,null,null,null,null,null,null,null,null,null,null,null,null,null,null,null,null,null,null,null,null,null,null,null,null,null,null,null,null,null,null,null,null,null,null,null,null,null,null,null,null,null,null,null,null,null,null,null,null,null,null,null,null,null,null,null,null,null,null,null,null,null,null,null,null,null,null,null,null,null,null,null,null,null,null,null,null,null,null,null,null,null,null,null,null,null,null,null,null,null,null,null,null,null,null,null,null,null,null,null,null,null,null,null,null,null,null,null,null,null,null,null,null,null,null,null,null,null,null,null,null,null,null,null,null,null,null,null,null,null,null,null,null,null,null,null,null,null,null,null,null,null,null,null,null,null,null,null,null,null,null,null,null,null,null,null,null,null,null,null,null,null,null,null,null,null,null,null,null,null,null,null,null,null,null,null,null,null,null,null,null,null,null,null,null,null,null,null,null,null,null,null,null,null,null,null,null,null,null,null,null,null,null,null,null,null,null,null,null,null,null,null,null,null,null,null,null,null,null,null,null,null,null,null,null,null,null,null,null,null,null,null,null,null,null,null,null,null,null,null,null,null,null,null,null,null,null,null,null,null,null,null,null,null,null,null,null,null,null,null,null,null,null,null,null,null,null,null,null,null,null,null,null,null,null,null,null,null,null,null,null,null,null,null,null,null,null,null,null,null,null,null,null,null,null,null,null,null,null,null,null,null,null,null,null,null,null,null,null,null,null,null,null,null,null,null,null,null,null,null,null,null,null,null,null,null,null,null,null,null,null,null,null,null,null,null,null,null,null,null,null,null,null,null,null,null,null,null,null,null,null,null,null,null,null,null,null,null,null,null,null,null,null,null,null,null,null,null,null,null,null,null,null,null,null,null,null,null,null,null,null,null,null,null,null,null,null,null,null,null,null,null,null,null,null,null,null,null,null,null,null,null,null,null,null,null,null,null,null,null,null,null,null,null,null,null,null,null,null,null,null,null,null,null,null,null,null,null,null,null,null,null,null,null,null,null,null,null,null,null,null,null,null,null,null,null,null,null,null,null,null,null,null,null,null,null,null,null,null,null,null,null,null,null,null,null,null,null,null,null,null,null,null,null,null,null,null,null,null,null,null,null,null,null,null,null,null,null,null,null,null,null,null,null,null,null,null,null,null,null,null,null,null,null,null,null,null,null,null,null,null,null,null,null,null,null,null,null,null,null,null,null,null,null,null,null,null,null,null,null,null,null,null,null,null,null,null,null,null,null,null,null,null,null,null,null,null,null,null,null,null,null,null,null,null,null,null,null,null,null,null,null,null,null,null,null,null,null,null,null,null,null,null,null,null,null,null,null,null,null,null,null,null,null,null,null,null,null,null,null,null,null,null,null,null,null,null,null,null,null,null,null,null,null,null,null,null,null,null,null,null,null,null,null,null,null,null,null,null,null,null,null,null,null,null,null,null,null,null,null,null,null,null,null,null,null,null,null,null,null,null,null,null,null,null,null,null,null,null,null,null,null,null,null,null,null,null,null,null,null,null,null,null,null,null,null,null,null,null,null,null,null,null,null,null,null,null,null,null,null,null,null,null,null,null,null,null,null,null,null,null,null,null,null,null,null,null,null,null,null,null,null,null,null,null,null,null,null,null,null,null,null,null,null,null,null,null,null,null,null,null,null,null,null,null,null,null,null,null,null,null,null,null,null,null,null,null,null,null,null,null,null,null,null,null,null,null,null,null,null,null,null,null,null,null,null,null,null,null,null,null,null,null,null,null,null,null,null,null,null,null,null,null,null,null,null,null,null,null,null,null,null,null,null,null,null,null,null,null,null,null,null,null,null,null,null,null,null,null,null,null,null,null,null,null,null,null,null,null,null,null,null,null,null,null,null,null,null,null,null,null,null,null,null,null,null,null,null,null,null,null,null,null,null,null,null,null,null,null,null,null,null,null,null,null,null,null,null,null,null,null,null,null,null,null,null,null,null,null,null,null,null,null,null,null,null,null,null,null,null,null,null,null,null,null,null,null,null,null,null,null,null,null,null,null,null,null,null,null,null,null,null,null,null,null,null,null,null,null,null,null,null,null,null,null,null,null,null,null,null,null,null,null,null,null,null,null,null,null,null,null,null,null,null,null,null,null,null,null,null,null,null,null,null,null,null,null,null,null,null,null,null,null,null,null,null,null,null,null,null,null,null,null,null,null,null,null,null,null,null,null,null,null,null,null,null,null,null,null,null,null,null,null,null,null,null,null,null,null,null,null,null,null,null,null,null,null,null,null,null,null,null,null,null,null,null,null,null,null,null,null,null,null,null,null,null,null,null,null,null,null,null,null,null,null,null,null,null,null,null,null,null,null,null,null,null,null,null,null,null,null,null,null,null,null,null,null,null,null,null,null,null,null,null,null,null,null,null,null,null,null,null,null,null,null,null,null,null,null,null,null,null,null,null,null,null,null,null,null,null,null,null,null,null,null,null,null,null,null,null,null,null,null,null,null,null,null,null,null,null,null,null,null,null,null,null,null,null,null,null,null,null,null,null,null,null,null,null,null,null,null,null,null,null,null,null,null,null,null,null,null,null,null,null,null,null,null,null,null,null,null,null,null,null,null,null,null,null,null,null,null,null,null,null,null,null,null,null,null,null,null,null,null,null,null,null,null,null,null,null,null,null,null,null,null,null,null,null,null,null,null,null,null,null,null,null,null,null,null,null,null,null,null,null,null,null,null,null,null,null,null,null,null,null,null,null,null,null,null,null,null,null,null,null,null,null,null,null,null,null,null,null,null,null,null,null,null,null,null,null,null,null,null,null,null,null,null,null,null,null,null,null,null,null,null,null,null,null,null,null,null,null,null,null,null,null,null,null,null,null,null,null,null,null,null,null,null,null,null,null,null,null,null,null,null,null,null,null,null,null,null,null,null,null,null,null,null,null,null,null,null,null,null,null,null,null,null,null,null,null,null,null,null,null,null,null,null,null,null,null,null,null,null,null,null,null,null,null,null,null,null,null,null,null,null,null,null,null,null,null,null,null,null,null,null,null,null,null,null,null,null,null,null,null,null,null,null,null,null,null,null,null,null,null,null,null,null,null,null,null,null,null,null,null,null,null,null,null,null,null,null,null,null,null,null,null,null,null,null,null,null,null,null,null,null,null,null,null,null,null,null,null,null,null,null,null,null,null,null,null,null,null,null,null,null,null,null,null,null,null,null,null,null,null,null,null,null,null,null,null,null,null,null,null,null,null,null,null,null,null,null,null,null,null,null,null,null,null,null,null,null,null,null,null,null,null,null,null,null,null,null,null,null,null,null,null,null,null,null,null,null,null,null,null,null,null,null,null,null,null,null,null,null,null,null,null,null,null,null,null,null,null,null,null,null,null,null,null,null,null,null,null,null,null,null,null,null,null,null,null,null,null,null,null,null,null,null,null,null,null,null,null,null,null,null,null,null,null,null,null,null,null,null,null,null,null,null,null,null,null,null,null,null,null,null,null,null,null,null,null,null,null,null,null,null,null,null,null,null,null,null,null,null,null,null,null,null,null,null,null,null,null,null,null,null,null,null,null,null,null,null,null,null,null,null,null,null,null,null,null,null,null,null,null,null,null,null,null,null,null,null,null,null,null,null,null,null,null,null,null,null,null,null,null,null,null,null,null,null,null,null,null,null,null,null,null,null,null,null,null,null,null,null,null,null,null,null,null,null,null,null,null,null,null,null,null,null,null,null,null,null,null,null,null,null,null,null,null,null,null,null,null,null,null,null,null,null,null,null,null,null,null,null,null,null,null,null,null,null,null,null,null,null,null,null,null,null,null,null,null,null,null,null,null,null,null,null,null,null,null,null,null,null,null,null,null,null,null,null,null,null,null,null,null,null,null,null,null,null,null,null,null,null,null,null,null,null,null,null,null,null,null,null,null,null,null,null,null,null,null,null,null,null,null,null,null,null,null,null,null,null,null,null,null,null,null,null,null,null,null,null,null,null,null,null,null,null,null,null,null,null,null,null,null,null,null,null,null,null,null,null,null,null,null,null,null,null,null,null,null,null,null,null,null,null,null,null,null,null,null,null,null,null,null,null,null,null,null,null,null,null,null,null,null,null,null,null,null,null,null,null,null,null,null,null,null,null,null,null,null,null,null,null,null,null,null,null,null,null,null,null,null,null,null,null,null,null,null,null,null,null,null,null,null,null,null,null,null,null,null,null,null,null,null,null,null,null,null,null,null,null,null,null,null,null,null,null,null,null,null,null,null,null,null,null,null,null,null,null,null,null,null,null,null,null,null,null,null,null,null,null,null,null,null,null,null,null,null,null,null,null,null,null,null,null,null,null,null,null,null,null,null,null,null,null,null,null,null,null,null,null,null,null,null,null,null,null,null,null,null,null,null,null,null,null,null,null,null,null,null,null,null,null,null,null,null,null,null,null,null,null,null,null,null,null,null,null,null,null,null,null,null,null,null,null,null,null,null,null,null,null,null,null,null,null,null,null,null,null,null,null,null,null,null,null,null,null,null,null,null,null,null,null,null,null,null,null,null,null,null,null,null,null,null,null,null,null,null,null,null,null,null,null,null,null,null,null,null,null,null,null,null,null,null,null,null,null,null,null,null,null,null,null,null,null,null,null,null,null,null,null,null,null,null,null,null,null,null,null,null,null,null,null,null,null,null,null,null,null,null,null,null,null,null,null,null,null,null,null,null,null,null,null,null,null,null,null,null,null,null,null,null,null,null,null,null,null,null,null,null,null,null,null,null,null,null,null,null,null,null,null,null,null,null,null,null,null,null,null,null,null,null,null,null,null,null,null,null,null,null,null,null,null,null,null,null,null,null,null,null,null,null,null,null,null,null,null,null,null,null,null,null,null,null,null,null,null,null,null,null,null,null,null,null,null,null,null,null,null,null,null,null,null,null,null,null,null,null,null,null,null,null,null,null,null,null,null,null,null,null,null,null,null,null,null,null,null,null,null,null,null,null,null,null,null,null,null,null,null,null,null,null,null,null,null,null,null,null,null,null,null,null,null,null,null,null,null,null,null,null,null,null,null,null,null,null,null,null,null,null,null,null,null,null,null,null,null,null,null,null,null,null,null,null,null,null,null,null,null,null,null,null,null,null,null,null,null,null,null,null,null,null,null,null,null,null,null,null,null,null,null,null,null,null,null,null,null,null,null,null,null,null,null,null,null,null,null,null,null,null,null,null,null,null,null,null,null,null,null,null,null,null,null,null,null,null,null,null,null,null,null,null,null,null,null,null,null,null,null,null,null,null,null,null,null,null,null,null,null,null,null,null,null,null,null,null,null,null,null,null,null,null,null,null,null,null,null,null,null,null,null,null,null,null,null,null,null,null,null,null,null,null,null,null,null,null,null,null,null,null,null,null,null,null,null,null,null,null,null,null,null,null,null,null,null,null,null,null,null,null,null,null,null,null,null,null,null,null,null,null,null,null,null,null,null,null,null,null,null,null,null,null,null,null,null,null,null,null,null,null,null,null,null,null,null,null,null,null,null,null,null,null,null,null,null,null,null,null,null,null,null,null,null,null,null,null,null,null,null,null,null,null,null,null,null,null,null,null,null,null,null,null,null,null,null,null,null,null,null,null,null,null,null,null,null,null,null,null,null,null,null,null,null,null,null,null,null,null,null,null,null,null,null,null,null,null,null,null,null,null,null,null,null,null,null,null,null,null,null,null,null,null,null,null,null,null,null,null,null,null,null,null,null,null,null,null,null,null,null,null,null,null,null,null,null,null,null,null,null,null,null,null,null,null,null,null,null,null,null,null,null,null,null,null,null,null,null,null,null,null,null,null,null,null,null,null,null,null,null,null,null,null,null,null,null,null,null,null,null,null,null,null,null,null,null,null,null,null,null,null,null,null,null,null,null,null,null,null,null,null,null,null,null,null,null,null,null,null,null,null,null,null,null,null,null,null,null,null,null,null,null,null,null,null,null,null,null,null,null,null,null,null,null,null,null,null,null,null,null,null,null,null,null,null,null,null,null,null,null,null,null,null,null,null,null,null,null,null,null,null,null,null,null,null,null,null,null,null,null,null,null,null,null,null,null,null,null,null,null,null,null,null,null,null,null,null,null,null,null,null,null,null,null,null,null,null,null,null,null,null,null,null,null,null,null,null,null,null,null,null,null,null,null,null,null,null,null,null,null,null,null,null,null,null,null,null,null,null,null,null,null,null,null,null,null,null,null,null,null,null,null,null,null,null,null,null,null,null,null,null,null,null,null,null,null,null,null,null,null,null,null,null,null,null,null,null,null,null,null,null,null,null,null,null,null,null,null,null,null,null,null,null,null,null,null,null,null,null,null,null,null,null,null,null,null,null,null,null,null,null,null,null,null,null,null,null,null,null,null,null,null,null,null,null,null,null,null,null,null,null,null,null,null,null,null,null,null,null,null,null,null,null,null,null,null,null,null,null,null,null,null,null,null,null,null,null,null,null,null,null,null,null,null,null,null,null,null,null,null,null,null,null,null,null,null,null,null,null,null,null,null,null,null,null,null,null,null,null,null,null,null,null,null,null,null,null,null,null,null,null,null,null,null,null,null,null,null,null,null,null,null,null,null,null,null,null,null,null,null,null,null,null,null,null,null,null,null,null,null,null,null,null,null,null,null,null,null,null,null,null,null,null,null,null,null,null,null,null,null,null,null,null,null,null,null,null,null,null,null,null,null,null,null,null,null,null,null,null,null,null,null,null,null,null,null,null,null,null,null,null,null,null,null,null,null,null,null,null,null,null,null,null,null,null,null,null,null,null,null,null,null,null,null,null,null,null,null,null,null,null,null,null,null,null,null,null,null,null,null,null,null,null,null,null,null,null,null,null,null,null,null,null,null,null,null,null,null,null,null,null,null,null,null,null,null,null,null,null,null,null,null,null,null,null,null,null,null,null,null,null,null,null,null,null,null,null,null,null,null,null,null,null,null,null,null,null,null,null,null,null,null,null,null,null,null,null,null,null,null,null,null,null,null,null,null,null,null,null,null,null,null,null,null,null,null,null,null,null,null,null,null,null,null,null,null,null,null,null,null,null,null,null,null,null,null,null,null,null,null,null,null,null,null,null,null,null,null,null,null,null,null,null,null,null,null,null,null,null,null,null,null,null,null,null,null,null,null,null,null,null,null,null,null,null,null,null,null,null,null,null,null,null,null,null,null,null,null,null,null,null,null,null,null,null,null,null,null,null,null,null,null,null,null,null,null,null,null,null,null,null,null,null,null,null,null,null,null,null,null,null,null,null,null,null,null,null,null,null,null,null,null,null,null,null,null,null,null,null,null,null,null,null,null,null,null,null,null,null,null,null,null,null,null,null,null,null,null,null,null,null,null,null,null,null,null,null,null,null,null,null,null,null,null,null,null,null,null,null,null,null,null,null,null,null,null,null,null,null,null,null,null,null,null,null,null,null,null,null,null,null,null,null,null,null,null,null,null,null,null,null,null,null,null,null,null,null,null,null,null,null,null,null,null,null,null,null,null,null,null,null,null,null,null,null,null,null,null,null,null,null,null,null,null,null,null,null,null,null,null,null,null,null,null,null,null,null,null,null,null,null,null,null,null,null,null,null,null,null,null,null,null,null,null,null,null,null,null,null,null,null,null,null,null,null,null,null,null,null,null,null,null,null,null,null,null,null,null,null,null,null,null,null,null,null,null,null,null,null,null,null,null,null,null,null,null,null,null,null,null,null,null,null,null,null,null,null,null,null,null,null,null,null,null,null,null,null,null,null,null,null,null,null,null,null,null,null,null,null,null,null,null,null,null,null,null,null,null,null,null,null,null,null,null,null,null,null,null,null,null,null,null,null,null,null,null,null,null,null,null,null,null,null,null,null,null,null,null,null,null,null,null,null,null,null,null,null,null,null,null,null,null,null,null,null,null,null,null,null,null,null,null,null,null,null,null,null,null,null,null,null,null,null,null,null,null,null,null,null,null,null,null,null,null,null,null,null,null,null,null,null,null,null,null,null,null,null,null,null,null,null,null,null,null,null,null,null,null,null,null,null,null,null,null,null,null,null,null,null,null,null,null,null,null,null,null,null,null,null,null,null,null,null,null,null,null,null,null,null,null,null,null,null,null,null,null,null,null,null,null,null,null,null,null,null,null,null,null,null,null,null,null,null,null,null,null,null,null,null,null,null,null,null,null,null,null,null,null,null,null,null,null,null,null,null,null,null,null,null,null,null,null,null,null,null,null,null,null,null,null,null,null,null,null,null,null,null,null,null,null,null,null,null,null,null,null,null,null,null,null,null,null,null,null,null,null,null,null,null,null,null,null,null,null,null,null,null,null,null,null,null,null,null,null,null,null,null,null,null,null,null,null,null,null,null,null,null,null,null,null,null,null,null,null,null,null,null,null,null,null,null,null,null,null,null,null,null,null,null,null,null,null,null,null,null,null,null,null,null,null,null,null,null,null,null,null,null,null,null,null,null,null,null,null,null,null,null,null,null,null,null,null,null,null,null,null,null,null,null,null,null,null,null,null,null,null,null,null,null,null,null,null,null,null,null,null,null,null,null,null,null,null,null,null,null,null,null,null,null,null,null,null,null,null,null,null,null,null,null,null,null,null,null,null,null,null,null,null,null,null,null,null,null,null,null,null,null,null,null,null,null,null,null,null,null,null,null,null,null,null,null,null,null,null,null,null,null,null,null,null,null,null,null,null,null,null,null,null,null,null,null,null,null,null,null,null,null,null,null,null,null,null,null,null,null,null,null,null,null,null,null,null,null,null,null,null,null,null,null,null,null,null,null,null,null,null,null,null,null,null,null,null,null,null,null,null,null,null,null,null,null,null,null,null,null,null,null,null,null,null,null,null,null,null,null,null,null,null,null,null,null,null,null,null,null,null,null,null,null,null,null,null,null,null,null,null,null,null,null,null,null,null,null,null,null,null,null,null,null,null,null,null,null,null,null,null,null,null,null,null,null,null,null,null,null,null,null,null,null,null,null,null,null,null,null,null,null,null,null,null,null,null,null,null,null,null,null,null,null,null,null,null,null,null,null,null,null,null,null,null,null,null,null,null,null,null,null,null,null,null,null,null,null,null,null,null,null,null,null,null,null,null,null,null,null,null,null,null,null,null,null,null,null,null,null,null,null,null,null,null,null,null,null,null,null,null,null,null,null,null,null,null,null,null,null,null,null,null,null,null,null,null,null,null,null,null,null,null,null,null,null,null,null,null,null,null,null,null,null,null,null,null,null,null,null,null,null,null,null,null,null,null,null,null,null,null,null,null,null,null,null,null,null,null,null,null,null,null,null,null,null,null,null,null,null,null,null,null,null,null,null,null,null,null,null,null,null,null,null,null,null,null,null,null,null,null,null,null,null,null,null,null,null,null,null,null,null,null,null,null,null,null,null,null,null,null,null,null,null,null,null,null,null,null,null,null,null,null,null,null,null,null,null,null,null,null,null,null,null,null,null,null,null,null,null,null,null,null,null,null,null,null,null,null,null,null,null,null,null,null,null,null,null,null,null,null,null,null,null,null,null,null,null,null,null,null,null,null,null,null,null,null,null,null,null,null,null,null,null,null,null,null,null,null,null,null,null,null,null,null,null,null,null,null,null,null,null,null,null,null,null,null,null,null,null,null,null,null,null,null,null,null,null,null,null,null,null,null,null,null,null,null,null,null,null,null,null,null,null,null,null,null,null,null,null,null,null,null,null,null,null,null,null,null,null,null,null,null,null,null,null,null,null,null,null,null,null,null,null,null,null,null,null,null,null,null,null,null,null,null,null,null,null,null,null,null,null,null,null,null,null,null,null,null,null,null,null,null,null,null,null,null,null,null,null,null,null,null,null,null,null,null,null,null,null,null,null,null,null,null,null,null,null,null,null,null,null,null,null,null,null,null,null,null,null,null,null,null,null,null,null,null,null,null,null,null,null,null,null,null,null,null,null,null,null,null,null,null,null,null,null,null,null,null,null,null,null,null,null,null,null,null,null,null,null,null,null,null,null,null,null,null,null,null,null,null,null,null,null,null,null,null,null,null,null,null,null,null,null,null,null,null,null,null,null,null,null,null,null,null,null,null,null,null,null,null,null,null,null,null,null,null,null,null,null,null,null,null,null,null,null,null,null,null,null,null,null,null,null,null,null,null,null,null,null,null,null,null,null,null,null,null,null,null,null,null,null,null,null,null,null,null,null,null,null,null,null,null,null,null,null,null,null,null,null,null,null,null,null,null,null,null,null,null,null,null,null,null,null,null,null,null,null,null,null,null,null,null,null,null,null,null,null,null,null,null,null,null,null,null,null,null,null,null,null,null,null,null,null,null,null,null,null,null,null,null,null,null,null,null,null,null,null,null,null,null,null,null,null,null,null,null,null,null,null,null,null,null,null,null,null,null,null,null,null,null,null,null,null,null,null,null,null,null,null,null,null,null,null,null,null,null,null,null,null,null,null,null,null,null,null,null,null,null,null,null,null,null,null,null,null,null,null,null,null,null,null,null,null,null,null,null,null,null,null,null,null,null,null,null,null,null,null,null,null,null,null,null,null,null,null,null,null,null,null,null,null,null,null,null,null,null,null,null,null,null,null,null,null,null,null,null,null,null,null,null,null,null,null,null,null,null,null,null,null,null,null,null,null,null,null,null,null,null,null,null,null,null,null,null,null,null,null,null,null,null,null,null,null,null,null,null,null,null,null,null,null,null,null,null,null,null,null,null,null,null,null,null,null,null,null,null,null,null,null,null,null,null,null,null,null,null,null,null,null,null,null,null,null,null,null,null,null,null,null,null,null,null,null,null,null,null,null,null,null,null,null,null,null,null,null,null,null,null,null,null,null,null,null,null,null,null,null,null,null,null,null,null,null,null,null,null,null,null,null,null,null,null,null,null,null,null,null,null,null,null,null,null,null,null,null,null,null,null,null,null,null,null,null,null,null,null,null,null,null,null,null,null,null,null,null,null,null,null,null,null,null,null,null,null,null,null,null,null,null,null,null,null,null,null,null,null,null,null,null,null,null,null,null,null,null,null,null,null,null,null,null,null,null,null,null,null,null,null,null,null,null,null,null,null,null,null,null,null,null,null,null,null,null,null,null,null,null,null,null,null,null,null,null,null,null,null,null,null,null,null,null,null,null,null,null,null,null,null,null,null,null,null,null,null,null,null,null,null,null,null,null,null,null,null,null,null,null,null,null,null,null,null,null,null,null,null,null,null,null,null,null,null,null,null,null,null,null,null,null,null,null,null,null,null,null,null,null,null,null,null,null,null,null,null,null,null,null,null,null,null,null,null,null,null,null,null,null,null,null,null,null,null,null,null,null,null,null,null,null,null,null,null,null,null,null,null,null,null,null,null,null,null,null,null,null,null,null,null,null,null,null,null,null,null,null,null,null,null,null,null,null,null,null,null,null,null,null,null,null,null,null,null,null,null,null,null,null,null,null,null,null,null,null,null,null,null,null,null,null,null,null,null,null,null,null,null,null,null,null,null,null,null,null,null,null,null,null,null,null,null,null,null,null,null,null,null,null,null,null,null,null,null,null,null,null,null,null,null,null,null,null,null,null,null,null,null,null,null,null,null,null,null,null,null,null,null,null,null,null,null,null,null,null,null,null,null,null,null,null,null,null,null,null,null,null,null,null,null,null,null,null,null,null,null,null,null,null,null,null,null,null,null,null,null,null,null,null,null,null,null,null,null,null,null,null,null,null,null,null,null,null,null,null,null,null,null,null,null,null,null,null,null,null,null,null,null,null,null,null,null,null,null,null,null,null,null,null,null,null,null,null,null,null,null,null,null,null,null,null,null,null,null,null,null,null,null,null,null,null,null,null,null,null,null,null,null,null,null,null,null,null,null,null,null,null,null,null,null,null,null,null,null,null,null,null,null,null,null,null,null,null,null,null,null,null,null,null,null,null,null,null,null,null,null,null,null,null,null,null,null,null,null,null,null,null,null,null,null,null,null,null,null,null,null,null,null,null,null,null,null,null,null,null,null,null,null,null,null,null,null,null,null,null,null,null,null,null,null,null,null,null,null,null,null,null,null,null,null,null,null,null,null,null,null,null,null,null,null,null,null,null,null,null,null,null,null,null,null,null,null,null,null,null,null,null,null,null,null,null,null,null,null,null,null,null,null,null,null,null,null,null,null,null,null,null,null,null,null,null,null,null,null,null,null,null,null,null,null,null,null,null,null,null,null,null,null,null,null,null,null,null,null,null,null,null,null,null,null,null,null,null,null,null,null,null,null,null,null,null,null,null,null,null,null,null,null,null,null,null,null,null,null,null,null,null,null,null,null,null,null,null,null,null,null,null,null,null,null,null,null,null,null,null,null,null,null,null,null,null,null,null,null,null,null,null,null,null,null,null,null,null,null,null,null,null,null,null,null,null,null,null,null,null,null,null,null,null,null,null,null,null,null,null,null,null,null,null,null,null,null,null,null,null,null,null,null,null,null,null,null,null,null,null,null,null,null,null,null,null,null,null,null,null,null,null,null,null,null,null,null,null,null,null,null,null,null,null,null,null,null,null,null,null,null,null,null,null,null,null,null,null,null,null,null,null,null,null,null,null,null,null,null,null,null,null,null,null,null,null,null,null,null,null,null,null,null,null,null,null,null,null,null,null,null,null,null,null,null,null,null,null,null,null,null,null,null,null,null,null,null,null,null,null,null,null,null,null,null,null,null,null,null,null,null,null,null,null,null,null,null,null,null,null,null,null,null,null,null,null,null,null,null,null,null,null,null,null,null,null,null,null,null,null,null,null,null,null,null,null,null,null,null,null,null,null,null,null,null,null,null,null,null,null,null,null,null,null,null,null,null,null,null,null,null,null,null,null,null,null,null,null,null,null,null,null,null,null,null,null,null,null,null,null,null,null,null,null,null,null,null,null,null,null,null,null,null,null,null,null,null,null,null,null,null,null,null,null,null,null,null,null,null,null,null,null,null,null,null,null,null,null,null,null,null,null,null,null,null,null,null,null,null,null,null,null,null,null,null,null,null,null,null,null,null,null,null,null,null,null,null,null,null,null,null,null,null,null,null,null,null,null,null,null,null,null,null,null,null,null,null,null,null,null,null,null,null,null,null,null,null,null,null,null,null,null,null,null,null,null,null,null,null,null,null,null,null,null,null,null,null,null,null,null,null,null,null,null,null,null,null,null,null,null,null,null,null,null,null,null,null,null,null,null,null,null,null,null,null,null,null,null,null,null,null,null,null,null,null,null,null,null,null,null,null,null,null,null,null,null,null,null,null,null,null,null,null,null,null,null,null,null,null,null,null,null,null,null,null,null,null,null,null,null,null,null,null,null,null,null,null,null,null,null,null,null,null,null,null,null,null,null,null,null,null,null,null,null,null,null,null,null,null,null,null,null,null,null,null,null,null,null,null,null,null,null,null,null,null,null,null,null,null,null,null,null,null,null,null,null,null,null,null,null,null,null,null,null,null,null,null,null,null,null,null,null,null,null,null,null,null,null,null,null,null,null,null,null,null,null,null,null,null,null,null,null,null,null,null,null,null,null,null,null,null,null,null,null,null,null,null,null,null,null,null,null,null,null,null,null,null,null,null,null,null,null,null,null,null,null,null,null,null,null,null,null,null,null,null,null,null,null,null,null,null,null,null,null,null,null,null,null,null,null,null,null,null,null,null,null,null,null,null,null,null,null,null,null,null,null,null,null,null,null,null,null,null,null,null,null,null,null,null,null,null,null,null,null,null,null,null,null,null,null,null,null,null,null,null,null,null,null,null,null,null,null,null,null,null,null,null,null,null,null,null,null,null,null,null,null,null,null,null,null,null,null,null,null,null,null,null,null,null,null,null,null,null,null,null,null,null,null,null,null,null,null,null,null,null,null,null,null,null,null,null,null,null,null,null,null,null,null,null,null,null,null,null,null,null,null,null,null,null,null,null,null,null,null,null,null,null,null,null,null,null,null,null,null,null,null,null,null,null,null,null,null,null,null,null,null,null,null,null,null,null,null,null,null,null,null,null,null,null,null,null,null,null,null,null,null,null,null,null,null,null,null,null,null,null,null,null,null,null,null,null,null,null,null,null,null,null,null,null,null,null,null,null,null,null,null,null,null,null,null,null,null,null,null,null,null,null,null,null,null,null,null,null,null,null,null,null,null,null,null,null,null,null,null,null,null,null,null,null,null,null,null,null,null,null,null,null,null,null,null,null,null,null,null,null,null,null,null,null,null,null,null,null,null,null,null,null,null,null,null,null,null,null,null,null,null,null,null,null,null,null,null,null,null,null,null,null,null,null,null,null,null,null,null,null,null,null,null,null,null,null,null,null,null,null,null,null,null,null,null,null,null,null,null,null,null,null,null,null,null,null,null,null,null,null,null,null,null,null,null,null,null,null,null,null,null,null,null,null,null,null,null,null,null,null,null,null,null,null,null,null,null,null,null,null,null,null,null,null,null,null,null,null,null,null,null,null,null,null,null,null,null,null,null,null,null,null,null,null,null,null,null,null,null,null,null,null,null,null,null,null,null,null,null,null,null,null,null,null,null,null,null,null,null,null,null,null,null,null,null,null,null,null,null,null,null,null,null,null,null,null,null,null,null,null,null,null,null,null,null,null,null,null,null,null,null,null,null,null,null,null,null,null,null,null,null,null,null,null,null,null,null,null,null,null,null,null,null,null,null,null,null,null,null,null,null,null,null,null,null,null,null,null,null,null,null,null,null,null,null,null,null,null,null,null,null,null,null,null,null,null,null,null,null,null,null,null,null,null,null,null,null,null,null,null,null,null,null,null,null,null,null,null,null,null,null,null,null,null,null,null,null,null,null,null,null,null,null,null,null,null,null,null,null,null,null,null,null,null,null,null,null,null,null,null,null,null,null,null,null,null,null,null,null,null,null,null,null,null,null,null,null,null,null,null,null,null,null,null,null,null,null,null,null,null,null,null,null,null,null,null,null,null,null,null,null,null,null,null,null,null,null,null,null,null,null,null,null,null,null,null,null,null,null,null,null,null,null,null,null,null,null,null,null,null,null,null,null,null,null,null,null,null,null,null,null,null,null,null,null,null,null,null,null,"CAQUETÁ"]
[]
[]
[]
[]
["     Antes de imprimir este documento… piense en el medio ambiente!  \nCualquier copia impresa de este documento se considera como COPIA NO CONTROLADA.\nLOS DATOS PROPORCIONADOS SERÁN TRATADOS DE ACUERDO A LA POLÌTICA DE TRATAMIENTO DE DATOS PERSONALES DEL ICBF Y A LA LEY 1581 DE 2012"]

{"sheet":"INGRESOS_OTRAS_CARTERAS","index":1,"n_rows":262,"n_cols":17,"rows_kept":262,"cut":false,"hidden":false,"merged":[[261,0,262,16],[260,0,260,16],[0,16,1,16],[0,0,3,0],[0,15,1,15],[3,15,3,16],[0,3,1,14],[2,3,3,14]]}
[{"$error":"#VALUE!"},null,null,"PROCESO GESTIÓN FINANCIERA",null,null,null,null,null,null,null,null,null,null,null,"F3.P40.GF","2025-09-19"]
[]
[null,null,null,"FORMATO MOVIMIENTO INGRESOS BANCOS ADN",null,null,null,null,null,null,null,null,null,null,null,{"$f":"INFORME_GENERAL!W3","v":"Versión 1"},"Página 1 de 1"]
[null,null,null,null,null,null,null,null,null,null,null,null,null,null,null,"Clasificación de la Información: Clasificada"]
[]
["REGIONAL","MES","TIPO DE CARTERA","TIPO DE OBLIGACION","CLAVE ","CUENTA CONTABLE\nCAPITAL","CUENTA CONTABLE \nINTERESES","DOCUMENTO DE RECAUDO POR CLASIFICAR (DRXC)   TESORERIA ","FECHA DE PAGO","NÚMERO DE\nIDENTIFICACIÓN","NOMBRE Y/O RAZON SOCIAL","No. SENTENCIA O ACTA      ","FECHA DE SENTENCIA O ACTA","CAPITAL","INTERESES","VALOR\nTOTAL","PERTENECE AL FORMATO F-25, COACTIVO O ES INGRESO SIN GESTION"]
[{"$f":"INFORME_GENERAL!$B$6","v":0},null,null,null,{"$f":"CONCATENATE(C7,\"_\",D7)","v":"_"},{"$f":"IFERROR(VLOOKUP(E7,datos!$K$6:$M$30,2,0),\"-\")","v":"-"},{"$f":"IFERROR(VLOOKUP(E7,datos!$K$6:$M$30,3,0),\"-\")","v":"-"},null,null,null,null,null,null,null,null,{"$f":"N7+O7","v":0}]
[{"$f":"INFORME_GENERAL!$B$6","v":0},null,null,null,{"$f":"CONCATENATE(C8,\"_\",D8)","v":"_"},{"$f":"IFERROR(VLOOKUP(E8,datos!$K$6:$M$30,2,0),\"-\")","v":"-"},{"$f":"IFERROR(VLOOKUP(E8,datos!$K$6:$M$30,3,0),\"-\")","v":"-"},null,null,null,null,null,null,null,null,{"$f":"N8+O8","v":0}]
[{"$f":"INFORME_GENERAL!$B$6","v":0},null,null,null,"_",{"$f":"IFERROR(VLOOKUP(E9,datos!$K$6:$M$30,2,0),\"-\")","v":"-"},{"$f":"IFERROR(VLOOKUP(E9,datos!$K$6:$M$30,3,0),\"-\")","v":"-"},null,null,null,null,null,null,null,null,0]
[{"$f":"INFORME_GENERAL!$B$6","v":0},null,null,null,"_",{"$f":"IFERROR(VLOOKUP(E10,datos!$K$6:$M$30,2,0),\"-\")","v":"-"},{"$f":"IFERROR(VLOOKUP(E10,datos!$K$6:$M$30,3,0),\"-\")","v":"-"},null,null,null,null,null,null,null,null,0]
[{"$f":"INFORME_GENERAL!$B$6","v":0},null,null,null,"_",{"$f":"IFERROR(VLOOKUP(E11,datos!$K$6:$M$30,2,0),\"-\")","v":"-"},{"$f":"IFERROR(VLOOKUP(E11,datos!$K$6:$M$30,3,0),\"-\")","v":"-"},null,null,null,null,null,null,null,null,0]
[{"$f":"INFORME_GENERAL!$B$6","v":0},null,null,null,"_",{"$f":"IFERROR(VLOOKUP(E12,datos!$K$6:$M$30,2,0),\"-\")","v":"-"},{"$f":"IFERROR(VLOOKUP(E12,datos!$K$6:$M$30,3,0),\"-\")","v":"-"},null,null,null,null,null,null,null,null,0]
[{"$f":"INFORME_GENERAL!$B$6","v":0},null,null,null,"_",{"$f":"IFERROR(VLOOKUP(E13,datos!$K$6:$M$30,2,0),\"-\")","v":"-"},{"$f":"IFERROR(VLOOKUP(E13,datos!$K$6:$M$30,3,0),\"-\")","v":"-"},null,null,null,null,null,null,null,null,0]
[{"$f":"INFORME_GENERAL!$B$6","v":0},null,null,null,"_",{"$f":"IFERROR(VLOOKUP(E14,datos!$K$6:$M$30,2,0),\"-\")","v":"-"},{"$f":"IFERROR(VLOOKUP(E14,datos!$K$6:$M$30,3,0),\"-\")","v":"-"},null,null,null,null,null,null,null,null,0]
[{"$f":"INFORME_GENERAL!$B$6","v":0},null,null,null,"_",{"$f":"IFERROR(VLOOKUP(E15,datos!$K$6:$M$30,2,0),\"-\")","v":"-"},{"$f":"IFERROR(VLOOKUP(E15,datos!$K$6:$M$30,3,0),\"-\")","v":"-"},null,null,null,null,null,null,null,null,0]
[{"$f":"INFORME_GENERAL!$B$6","v":0},null,null,null,"_",{"$f":"IFERROR(VLOOKUP(E16,datos!$K$6:$M$30,2,0),\"-\")","v":"-"},{"$f":"IFERROR(VLOOKUP(E16,datos!$K$6:$M$30,3,0),\"-\")","v":"-"},null,null,null,null,null,null,null,null,0]
[{"$f":"INFORME_GENERAL!$B$6","v":0},null,null,null,"_",{"$f":"IFERROR(VLOOKUP(E17,datos!$K$6:$M$30,2,0),\"-\")","v":"-"},{"$f":"IFERROR(VLOOKUP(E17,datos!$K$6:$M$30,3,0),\"-\")","v":"-"},null,null,null,null,null,null,null,null,0]
[{"$f":"INFORME_GENERAL!$B$6","v":0},null,null,null,"_",{"$f":"IFERROR(VLOOKUP(E18,datos!$K$6:$M$30,2,0),\"-\")","v":"-"},{"$f":"IFERROR(VLOOKUP(E18,datos!$K$6:$M$30,3,0),\"-\")","v":"-"},null,null,null,null,null,null,null,null,0]
[{"$f":"INFORME_GENERAL!$B$6","v":0},null,null,null,"_",{"$f":"IFERROR(VLOOKUP(E19,datos!$K$6:$M$30,2,0),\"-\")","v":"-"},{"$f":"IFERROR(VLOOKUP(E19,datos!$K$6:$M$30,3,0),\"-\")","v":"-"},null,null,null,null,null,null,null,null,0]
[{"$f":"INFORME_GENERAL!$B$6","v":0},null,null,null,"_",{"$f":"IFERROR(VLOOKUP(E20,datos!$K$6:$M$30,2,0),\"-\")","v":"-"},{"$f":"IFERROR(VLOOKUP(E20,datos!$K$6:$M$30,3,0),\"-\")","v":"-"},null,null,null,null,null,null,null,null,0]
[{"$f":"INFORME_GENERAL!$B$6","v":0},null,null,null,"_",{"$f":"IFERROR(VLOOKUP(E21,datos!$K$6:$M$30,2,0),\"-\")","v":"-"},{"$f":"IFERROR(VLOOKUP(E21,datos!$K$6:$M$30,3,0),\"-\")","v":"-"},null,null,null,null,null,null,null,null,0]
[{"$f":"INFORME_GENERAL!$B$6","v":0},null,null,null,"_",{"$f":"IFERROR(VLOOKUP(E22,datos!$K$6:$M$30,2,0),\"-\")","v":"-"},{"$f":"IFERROR(VLOOKUP(E22,datos!$K$6:$M$30,3,0),\"-\")","v":"-"},null,null,null,null,null,null,null,null,0]
[{"$f":"INFORME_GENERAL!$B$6","v":0},null,null,null,"_",{"$f":"IFERROR(VLOOKUP(E23,datos!$K$6:$M$30,2,0),\"-\")","v":"-"},{"$f":"IFERROR(VLOOKUP(E23,datos!$K$6:$M$30,3,0),\"-\")","v":"-"},null,null,null,null,null,null,null,null,0]
[{"$f":"INFORME_GENERAL!$B$6","v":0},null,null,null,"_",{"$f":"IFERROR(VLOOKUP(E24,datos!$K$6:$M$30,2,0),\"-\")","v":"-"},{"$f":"IFERROR(VLOOKUP(E24,datos!$K$6:$M$30,3,0),\"-\")","v":"-"},null,null,null,null,null,null,null,null,0]
[{"$f":"INFORME_GENERAL!$B$6","v":0},null,null,null,"_",{"$f":"IFERROR(VLOOKUP(E25,datos!$K$6:$M$30,2,0),\"-\")","v":"-"},{"$f":"IFERROR(VLOOKUP(E25,datos!$K$6:$M$30,3,0),\"-\")","v":"-"},null,null,null,null,null,null,null,null,0]
[{"$f":"INFORME_GENERAL!$B$6","v":0},null,null,null,"_",{"$f":"IFERROR(VLOOKUP(E26,datos!$K$6:$M$30,2,0),\"-\")","v":"-"},{"$f":"IFERROR(VLOOKUP(E26,datos!$K$6:$M$30,3,0),\"-\")","v":"-"},null,null,null,null,null,null,null,null,0]
[{"$f":"INFORME_GENERAL!$B$6","v":0},null,null,null,"_",{"$f":"IFERROR(VLOOKUP(E27,datos!$K$6:$M$30,2,0),\"-\")","v":"-"},{"$f":"IFERROR(VLOOKUP(E27,datos!$K$6:$M$30,3,0),\"-\")","v":"-"},null,null,null,null,null,null,null,null,0]
[{"$f":"INFORME_GENERAL!$B$6","v":0},null,null,null,"_",{"$f":"IFERROR(VLOOKUP(E28,datos!$K$6:$M$30,2,0),\"-\")","v":"-"},{"$f":"IFERROR(VLOOKUP(E28,datos!$K$6:$M$30,3,0),\"-\")","v":"-"},null,null,null,null,null,null,null,null,0]
[{"$f":"INFORME_GENERAL!$B$6","v":0},null,null,null,"_",{"$f":"IFERROR(VLOOKUP(E29,datos!$K$6:$M$30,2,0),\"-\")","v":"-"},{"$f":"IFERROR(VLOOKUP(E29,datos!$K$6:$M$30,3,0),\"-\")","v":"-"},null,null,null,null,null,null,null,null,0]
[{"$f":"INFORME_GENERAL!$B$6","v":0},null,null,null,"_",{"$f":"IFERROR(VLOOKUP(E30,datos!$K$6:$M$30,2,0),\"-\")","v":"-"},{"$f":"IFERROR(VLOOKUP(E30,datos!$K$6:$M$30,3,0),\"-\")","v":"-"},null,null,null,null,null,null,null,null,0]
[{"$f":"INFORME_GENERAL!$B$6","v":0},null,null,null,"_",{"$f":"IFERROR(VLOOKUP(E31,datos!$K$6:$M$30,2,0),\"-\")","v":"-"},{"$f":"IFERROR(VLOOKUP(E31,datos!$K$6:$M$30,3,0),\"-\")","v":"-"},null,null,null,null,null,null,null,null,0]
[{"$f":"INFORME_GENERAL!$B$6","v":0},null,null,null,"_",{"$f":"IFERROR(VLOOKUP(E32,datos!$K$6:$M$30,2,0),\"-\")","v":"-"},{"$f":"IFERROR(VLOOKUP(E32,datos!$K$6:$M$30,3,0),\"-\")","v":"-"},null,null,null,null,null,null,null,null,0]
[{"$f":"INFORME_GENERAL!$B$6","v":0},null,null,null,"_",{"$f":"IFERROR(VLOOKUP(E33,datos!$K$6:$M$30,2,0),\"-\")","v":"-"},{"$f":"IFERROR(VLOOKUP(E33,datos!$K$6:$M$30,3,0),\"-\")","v":"-"},null,null,null,null,null,null,null,null,0]
[{"$f":"INFORME_GENERAL!$B$6","v":0},null,null,null,"_",{"$f":"IFERROR(VLOOKUP(E34,datos!$K$6:$M$30,2,0),\"-\")","v":"-"},{"$f":"IFERROR(VLOOKUP(E34,datos!$K$6:$M$30,3,0),\"-\")","v":"-"},null,null,null,null,null,null,null,null,0]
[{"$f":"INFORME_GENERAL!$B$6","v":0},null,null,null,"_",{"$f":"IFERROR(VLOOKUP(E35,datos!$K$6:$M$30,2,0),\"-\")","v":"-"},{"$f":"IFERROR(VLOOKUP(E35,datos!$K$6:$M$30,3,0),\"-\")","v":"-"},null,null,null,null,null,null,null,null,0]
[{"$f":"INFORME_GENERAL!$B$6","v":0},null,null,null,"_",{"$f":"IFERROR(VLOOKUP(E36,datos!$K$6:$M$30,2,0),\"-\")","v":"-"},{"$f":"IFERROR(VLOOKUP(E36,datos!$K$6:$M$30,3,0),\"-\")","v":"-"},null,null,null,null,null,null,null,null,0]
[{"$f":"INFORME_GENERAL!$B$6","v":0},null,null,null,"_",{"$f":"IFERROR(VLOOKUP(E37,datos!$K$6:$M$30,2,0),\"-\")","v":"-"},{"$f":"IFERROR(VLOOKUP(E37,datos!$K$6:$M$30,3,0),\"-\")","v":"-"},null,null,null,null,null,null,null,null,0]
[{"$f":"INFORME_GENERAL!$B$6","v":0},null,null,null,"_",{"$f":"IFERROR(VLOOKUP(E38,datos!$K$6:$M$30,2,0),\"-\")","v":"-"},{"$f":"IFERROR(VLOOKUP(E38,datos!$K$6:$M$30,3,0),\"-\")","v":"-"},null,null,null,null,null,null,null,null,0]
[{"$f":"INFORME_GENERAL!$B$6","v":0},null,null,null,"_",{"$f":"IFERROR(VLOOKUP(E39,datos!$K$6:$M$30,2,0),\"-\")","v":"-"},{"$f":"IFERROR(VLOOKUP(E39,datos!$K$6:$M$30,3,0),\"-\")","v":"-"},null,null,null,null,null,null,null,null,0]
[{"$f":"INFORME_GENERAL!$B$6","v":0},null,null,null,"_",{"$f":"IFERROR(VLOOKUP(E40,datos!$K$6:$M$30,2,0),\"-\")","v":"-"},{"$f":"IFERROR(VLOOKUP(E40,datos!$K$6:$M$30,3,0),\"-\")","v":"-"},null,null,null,null,null,null,null,null,0]
[{"$f":"INFORME_GENERAL!$B$6","v":0},null,null,null,"_",{"$f":"IFERROR(VLOOKUP(E41,datos!$K$6:$M$30,2,0),\"-\")","v":"-"},{"$f":"IFERROR(VLOOKUP(E41,datos!$K$6:$M$30,3,0),\"-\")","v":"-"},null,null,null,null,null,null,null,null,0]
[{"$f":"INFORME_GENERAL!$B$6","v":0},null,null,null,"_",{"$f":"IFERROR(VLOOKUP(E42,datos!$K$6:$M$30,2,0),\"-\")","v":"-"},{"$f":"IFERROR(VLOOKUP(E42,datos!$K$6:$M$30,3,0),\"-\")","v":"-"},null,null,null,null,null,null,null,null,0]
[{"$f":"INFORME_GENERAL!$B$6","v":0},null,null,null,"_",{"$f":"IFERROR(VLOOKUP(E43,datos!$K$6:$M$30,2,0),\"-\")","v":"-"},{"$f":"IFERROR(VLOOKUP(E43,datos!$K$6:$M$30,3,0),\"-\")","v":"-"},null,null,null,null,null,null,null,null,0]
[{"$f":"INFORME_GENERAL!$B$6","v":0},null,null,null,"_",{"$f":"IFERROR(VLOOKUP(E44,datos!$K$6:$M$30,2,0),\"-\")","v":"-"},{"$f":"IFERROR(VLOOKUP(E44,datos!$K$6:$M$30,3,0),\"-\")","v":"-"},null,null,null,null,null,null,null,null,0]
[{"$f":"INFORME_GENERAL!$B$6","v":0},null,null,null,"_",{"$f":"IFERROR(VLOOKUP(E45,datos!$K$6:$M$30,2,0),\"-\")","v":"-"},{"$f":"IFERROR(VLOOKUP(E45,datos!$K$6:$M$30,3,0),\"-\")","v":"-"},null,null,null,null,null,null,null,null,0]
[{"$f":"INFORME_GENERAL!$B$6","v":0},null,null,null,"_",{"$f":"IFERROR(VLOOKUP(E46,datos!$K$6:$M$30,2,0),\"-\")","v":"-"},{"$f":"IFERROR(VLOOKUP(E46,datos!$K$6:$M$30,3,0),\"-\")","v":"-"},null,null,null,null,null,null,null,null,0]
[{"$f":"INFORME_GENERAL!$B$6","v":0},null,null,null,"_",{"$f":"IFERROR(VLOOKUP(E47,datos!$K$6:$M$30,2,0),\"-\")","v":"-"},{"$f":"IFERROR(VLOOKUP(E47,datos!$K$6:$M$30,3,0),\"-\")","v":"-"},null,null,null,null,null,null,null,null,0]
[{"$f":"INFORME_GENERAL!$B$6","v":0},null,null,null,"_",{"$f":"IFERROR(VLOOKUP(E48,datos!$K$6:$M$30,2,0),\"-\")","v":"-"},{"$f":"IFERROR(VLOOKUP(E48,datos!$K$6:$M$30,3,0),\"-\")","v":"-"},null,null,null,null,null,null,null,null,0]
[{"$f":"INFORME_GENERAL!$B$6","v":0},null,null,null,"_",{"$f":"IFERROR(VLOOKUP(E49,datos!$K$6:$M$30,2,0),\"-\")","v":"-"},{"$f":"IFERROR(VLOOKUP(E49,datos!$K$6:$M$30,3,0),\"-\")","v":"-"},null,null,null,null,null,null,null,null,0]
[{"$f":"INFORME_GENERAL!$B$6","v":0},null,null,null,"_",{"$f":"IFERROR(VLOOKUP(E50,datos!$K$6:$M$30,2,0),\"-\")","v":"-"},{"$f":"IFERROR(VLOOKUP(E50,datos!$K$6:$M$30,3,0),\"-\")","v":"-"},null,null,null,null,null,null,null,null,0]
[{"$f":"INFORME_GENERAL!$B$6","v":0},null,null,null,"_",{"$f":"IFERROR(VLOOKUP(E51,datos!$K$6:$M$30,2,0),\"-\")","v":"-"},{"$f":"IFERROR(VLOOKUP(E51,datos!$K$6:$M$30,3,0),\"-\")","v":"-"},null,null,null,null,null,null,null,null,0]
[{"$f":"INFORME_GENERAL!$B$6","v":0},null,null,null,"_",{"$f":"IFERROR(VLOOKUP(E52,datos!$K$6:$M$30,2,0),\"-\")","v":"-"},{"$f":"IFERROR(VLOOKUP(E52,datos!$K$6:$M$30,3,0),\"-\")","v":"-"},null,null,null,null,null,null,null,null,0]
[{"$f":"INFORME_GENERAL!$B$6","v":0},null,null,null,"_",{"$f":"IFERROR(VLOOKUP(E53,datos!$K$6:$M$30,2,0),\"-\")","v":"-"},{"$f":"IFERROR(VLOOKUP(E53,datos!$K$6:$M$30,3,0),\"-\")","v":"-"},null,null,null,null,null,null,null,null,0]
[{"$f":"INFORME_GENERAL!$B$6","v":0},null,null,null,"_",{"$f":"IFERROR(VLOOKUP(E54,datos!$K$6:$M$30,2,0),\"-\")","v":"-"},{"$f":"IFERROR(VLOOKUP(E54,datos!$K$6:$M$30,3,0),\"-\")","v":"-"},null,null,null,null,null,null,null,null,0]
[{"$f":"INFORME_GENERAL!$B$6","v":0},null,null,null,"_",{"$f":"IFERROR(VLOOKUP(E55,datos!$K$6:$M$30,2,0),\"-\")","v":"-"},{"$f":"IFERROR(VLOOKUP(E55,datos!$K$6:$M$30,3,0),\"-\")","v":"-"},null,null,null,null,null,null,null,null,0]
[{"$f":"INFORME_GENERAL!$B$6","v":0},null,null,null,"_",{"$f":"IFERROR(VLOOKUP(E56,datos!$K$6:$M$30,2,0),\"-\")","v":"-"},{"$f":"IFERROR(VLOOKUP(E56,datos!$K$6:$M$30,3,0),\"-\")","v":"-"},null,null,null,null,null,null,null,null,0]
[{"$f":"INFORME_GENERAL!$B$6","v":0},null,null,null,"_",{"$f":"IFERROR(VLOOKUP(E57,datos!$K$6:$M$30,2,0),\"-\")","v":"-"},{"$f":"IFERROR(VLOOKUP(E57,datos!$K$6:$M$30,3,0),\"-\")","v":"-"},null,null,null,null,null,null,null,null,0]
[{"$f":"INFORME_GENERAL!$B$6","v":0},null,null,null,"_",{"$f":"IFERROR(VLOOKUP(E58,datos!$K$6:$M$30,2,0),\"-\")","v":"-"},{"$f":"IFERROR(VLOOKUP(E58,datos!$K$6:$M$30,3,0),\"-\")","v":"-"},null,null,null,null,null,null,null,null,0]
[{"$f":"INFORME_GENERAL!$B$6","v":0},null,null,null,"_",{"$f":"IFERROR(VLOOKUP(E59,datos!$K$6:$M$30,2,0),\"-\")","v":"-"},{"$f":"IFERROR(VLOOKUP(E59,datos!$K$6:$M$30,3,0),\"-\")","v":"-"},null,null,null,null,null,null,null,null,0]
[{"$f":"INFORME_GENERAL!$B$6","v":0},null,null,null,"_",{"$f":"IFERROR(VLOOKUP(E60,datos!$K$6:$M$30,2,0),\"-\")","v":"-"},{"$f":"IFERROR(VLOOKUP(E60,datos!$K$6:$M$30,3,0),\"-\")","v":"-"},null,null,null,null,null,null,null,null,0]
[{"$f":"INFORME_GENERAL!$B$6","v":0},null,null,null,"_",{"$f":"IFERROR(VLOOKUP(E61,datos!$K$6:$M$30,2,0),\"-\")","v":"-"},{"$f":"IFERROR(VLOOKUP(E61,datos!$K$6:$M$30,3,0),\"-\")","v":"-"},null,null,null,null,null,null,null,null,0]
[{"$f":"INFORME_GENERAL!$B$6","v":0},null,null,null,"_",{"$f":"IFERROR(VLOOKUP(E62,datos!$K$6:$M$30,2,0),\"-\")","v":"-"},{"$f":"IFERROR(VLOOKUP(E62,datos!$K$6:$M$30,3,0),\"-\")","v":"-"},null,null,null,null,null,null,null,null,0]
[{"$f":"INFORME_GENERAL!$B$6","v":0},null,null,null,"_",{"$f":"IFERROR(VLOOKUP(E63,datos!$K$6:$M$30,2,0),\"-\")","v":"-"},{"$f":"IFERROR(VLOOKUP(E63,datos!$K$6:$M$30,3,0),\"-\")","v":"-"},null,null,null,null,null,null,null,null,0]
[{"$f":"INFORME_GENERAL!$B$6","v":0},null,null,null,"_",{"$f":"IFERROR(VLOOKUP(E64,datos!$K$6:$M$30,2,0),\"-\")","v":"-"},{"$f":"IFERROR(VLOOKUP(E64,datos!$K$6:$M$30,3,0),\"-\")","v":"-"},null,null,null,null,null,null,null,null,0]
[{"$f":"INFORME_GENERAL!$B$6","v":0},null,null,null,"_",{"$f":"IFERROR(VLOOKUP(E65,datos!$K$6:$M$30,2,0),\"-\")","v":"-"},{"$f":"IFERROR(VLOOKUP(E65,datos!$K$6:$M$30,3,0),\"-\")","v":"-"},null,null,null,null,null,null,null,null,0]
[{"$f":"INFORME_GENERAL!$B$6","v":0},null,null,null,"_",{"$f":"IFERROR(VLOOKUP(E66,datos!$K$6:$M$30,2,0),\"-\")","v":"-"},{"$f":"IFERROR(VLOOKUP(E66,datos!$K$6:$M$30,3,0),\"-\")","v":"-"},null,null,null,null,null,null,null,null,0]
[{"$f":"INFORME_GENERAL!$B$6","v":0},null,null,null,"_",{"$f":"IFERROR(VLOOKUP(E67,datos!$K$6:$M$30,2,0),\"-\")","v":"-"},{"$f":"IFERROR(VLOOKUP(E67,datos!$K$6:$M$30,3,0),\"-\")","v":"-"},null,null,null,null,null,null,null,null,0]
[{"$f":"INFORME_GENERAL!$B$6","v":0},null,null,null,"_",{"$f":"IFERROR(VLOOKUP(E68,datos!$K$6:$M$30,2,0),\"-\")","v":"-"},{"$f":"IFERROR(VLOOKUP(E68,datos!$K$6:$M$30,3,0),\"-\")","v":"-"},null,null,null,null,null,null,null,null,0]
[{"$f":"INFORME_GENERAL!$B$6","v":0},null,null,null,"_",{"$f":"IFERROR(VLOOKUP(E69,datos!$K$6:$M$30,2,0),\"-\")","v":"-"},{"$f":"IFERROR(VLOOKUP(E69,datos!$K$6:$M$30,3,0),\"-\")","v":"-"},null,null,null,null,null,null,null,null,0]
[{"$f":"INFORME_GENERAL!$B$6","v":0},null,null,null,"_",{"$f":"IFERROR(VLOOKUP(E70,datos!$K$6:$M$30,2,0),\"-\")","v":"-"},{"$f":"IFERROR(VLOOKUP(E70,datos!$K$6:$M$30,3,0),\"-\")","v":"-"},null,null,null,null,null,null,null,null,0]
[{"$f":"INFORME_GENERAL!$B$6","v":0},null,null,null,"_",{"$f":"IFERROR(VLOOKUP(E71,datos!$K$6:$M$30,2,0),\"-\")","v":"-"},{"$f":"IFERROR(VLOOKUP(E71,datos!$K$6:$M$30,3,0),\"-\")","v":"-"},null,null,null,null,null,null,null,null,0]
[{"$f":"INFORME_GENERAL!$B$6","v":0},null,null,null,{"$f":"CONCATENATE(C72,\"_\",D72)","v":"_"},{"$f":"IFERROR(VLOOKUP(E72,datos!$K$6:$M$30,2,0),\"-\")","v":"-"},{"$f":"IFERROR(VLOOKUP(E72,datos!$K$6:$M$30,3,0),\"-\")","v":"-"},null,null,null,null,null,null,null,null,{"$f":"N72+O72","v":0}]
[{"$f":"INFORME_GENERAL!$B$6","v":0},null,null,null,"_",{"$f":"IFERROR(VLOOKUP(E73,datos!$K$6:$M$30,2,0),\"-\")","v":"-"},{"$f":"IFERROR(VLOOKUP(E73,datos!$K$6:$M$30,3,0),\"-\")","v":"-"},null,null,null,null,null,null,null,null,0]
[{"$f":"INFORME_GENERAL!$B$6","v":0},null,null,null,"_",{"$f":"IFERROR(VLOOKUP(E74,datos!$K$6:$M$30,2,0),\"-\")","v":"-"},{"$f":"IFERROR(VLOOKUP(E74,datos!$K$6:$M$30,3,0),\"-\")","v":"-"},null,null,null,null,null,null,null,null,0]
[{"$f":"INFORME_GENERAL!$B$6","v":0},null,null,null,"_",{"$f":"IFERROR(VLOOKUP(E75,datos!$K$6:$M$30,2,0),\"-\")","v":"-"},{"$f":"IFERROR(VLOOKUP(E75,datos!$K$6:$M$30,3,0),\"-\")","v":"-"},null,null,null,null,null,null,null,null,0]
[{"$f":"INFORME_GENERAL!$B$6","v":0},null,null,null,"_",{"$f":"IFERROR(VLOOKUP(E76,datos!$K$6:$M$30,2,0),\"-\")","v":"-"},{"$f":"IFERROR(VLOOKUP(E76,datos!$K$6:$M$30,3,0),\"-\")","v":"-"},null,null,null,null,null,null,null,null,0]
[{"$f":"INFORME_GENERAL!$B$6","v":0},null,null,null,"_",{"$f":"IFERROR(VLOOKUP(E77,datos!$K$6:$M$30,2,0),\"-\")","v":"-"},{"$f":"IFERROR(VLOOKUP(E77,datos!$K$6:$M$30,3,0),\"-\")","v":"-"},null,null,null,null,null,null,null,null,0]
[{"$f":"INFORME_GENERAL!$B$6","v":0},null,null,null,"_",{"$f":"IFERROR(VLOOKUP(E78,datos!$K$6:$M$30,2,0),\"-\")","v":"-"},{"$f":"IFERROR(VLOOKUP(E78,datos!$K$6:$M$30,3,0),\"-\")","v":"-"},null,null,null,null,null,null,null,null,0]
[{"$f":"INFORME_GENERAL!$B$6","v":0},null,null,null,"_",{"$f":"IFERROR(VLOOKUP(E79,datos!$K$6:$M$30,2,0),\"-\")","v":"-"},{"$f":"IFERROR(VLOOKUP(E79,datos!$K$6:$M$30,3,0),\"-\")","v":"-"},null,null,null,null,null,null,null,null,0]
[{"$f":"INFORME_GENERAL!$B$6","v":0},null,null,null,"_",{"$f":"IFERROR(VLOOKUP(E80,datos!$K$6:$M$30,2,0),\"-\")","v":"-"},{"$f":"IFERROR(VLOOKUP(E80,datos!$K$6:$M$30,3,0),\"-\")","v":"-"},null,null,null,null,null,null,null,null,0]
[{"$f":"INFORME_GENERAL!$B$6","v":0},null,null,null,"_",{"$f":"IFERROR(VLOOKUP(E81,datos!$K$6:$M$30,2,0),\"-\")","v":"-"},{"$f":"IFERROR(VLOOKUP(E81,datos!$K$6:$M$30,3,0),\"-\")","v":"-"},null,null,null,null,null,null,null,null,0]
[{"$f":"INFORME_GENERAL!$B$6","v":0},null,null,null,"_",{"$f":"IFERROR(VLOOKUP(E82,datos!$K$6:$M$30,2,0),\"-\")","v":"-"},{"$f":"IFERROR(VLOOKUP(E82,datos!$K$6:$M$30,3,0),\"-\")","v":"-"},null,null,null,null,null,null,null,null,0]
[{"$f":"INFORME_GENERAL!$B$6","v":0},null,null,null,"_",{"$f":"IFERROR(VLOOKUP(E83,datos!$K$6:$M$30,2,0),\"-\")","v":"-"},{"$f":"IFERROR(VLOOKUP(E83,datos!$K$6:$M$30,3,0),\"-\")","v":"-"},null,null,null,null,null,null,null,null,0]
[{"$f":"INFORME_GENERAL!$B$6","v":0},null,null,null,"_",{"$f":"IFERROR(VLOOKUP(E84,datos!$K$6:$M$30,2,0),\"-\")","v":"-"},{"$f":"IFERROR(VLOOKUP(E84,datos!$K$6:$M$30,3,0),\"-\")","v":"-"},null,null,null,null,null,null,null,null,0]
[{"$f":"INFORME_GENERAL!$B$6","v":0},null,null,null,"_",{"$f":"IFERROR(VLOOKUP(E85,datos!$K$6:$M$30,2,0),\"-\")","v":"-"},{"$f":"IFERROR(VLOOKUP(E85,datos!$K$6:$M$30,3,0),\"-\")","v":"-"},null,null,null,null,null,null,null,null,0]
[{"$f":"INFORME_GENERAL!$B$6","v":0},null,null,null,"_",{"$f":"IFERROR(VLOOKUP(E86,datos!$K$6:$M$30,2,0),\"-\")","v":"-"},{"$f":"IFERROR(VLOOKUP(E86,datos!$K$6:$M$30,3,0),\"-\")","v":"-"},null,null,null,null,null,null,null,null,0]
[{"$f":"INFORME_GENERAL!$B$6","v":0},null,null,null,"_",{"$f":"IFERROR(VLOOKUP(E87,datos!$K$6:$M$30,2,0),\"-\")","v":"-"},{"$f":"IFERROR(VLOOKUP(E87,datos!$K$6:$M$30,3,0),\"-\")","v":"-"},null,null,null,null,null,null,null,null,0]
[{"$f":"INFORME_GENERAL!$B$6","v":0},null,null,null,"_",{"$f":"IFERROR(VLOOKUP(E88,datos!$K$6:$M$30,2,0),\"-\")","v":"-"},{"$f":"IFERROR(VLOOKUP(E88,datos!$K$6:$M$30,3,0),\"-\")","v":"-"},null,null,null,null,null,null,null,null,0]
[{"$f":"INFORME_GENERAL!$B$6","v":0},null,null,null,"_",{"$f":"IFERROR(VLOOKUP(E89,datos!$K$6:$M$30,2,0),\"-\")","v":"-"},{"$f":"IFERROR(VLOOKUP(E89,datos!$K$6:$M$30,3,0),\"-\")","v":"-"},null,null,null,null,null,null,null,null,0]
[{"$f":"INFORME_GENERAL!$B$6","v":0},null,null,null,"_",{"$f":"IFERROR(VLOOKUP(E90,datos!$K$6:$M$30,2,0),\"-\")","v":"-"},{"$f":"IFERROR(VLOOKUP(E90,datos!$K$6:$M$30,3,0),\"-\")","v":"-"},null,null,null,null,null,null,null,null,0]
[{"$f":"INFORME_GENERAL!$B$6","v":0},null,null,null,"_",{"$f":"IFERROR(VLOOKUP(E91,datos!$K$6:$M$30,2,0),\"-\")","v":"-"},{"$f":"IFERROR(VLOOKUP(E91,datos!$K$6:$M$30,3,0),\"-\")","v":"-"},null,null,null,null,null,null,null,null,0]
[{"$f":"INFORME_GENERAL!$B$6","v":0},null,null,null,"_",{"$f":"IFERROR(VLOOKUP(E92,datos!$K$6:$M$30,2,0),\"-\")","v":"-"},{"$f":"IFERROR(VLOOKUP(E92,datos!$K$6:$M$30,3,0),\"-\")","v":"-"},null,null,null,null,null,null,null,null,0]
[{"$f":"INFORME_GENERAL!$B$6","v":0},null,null,null,"_",{"$f":"IFERROR(VLOOKUP(E93,datos!$K$6:$M$30,2,0),\"-\")","v":"-"},{"$f":"IFERROR(VLOOKUP(E93,datos!$K$6:$M$30,3,0),\"-\")","v":"-"},null,null,null,null,null,null,null,null,0]
[{"$f":"INFORME_GENERAL!$B$6","v":0},null,null,null,"_",{"$f":"IFERROR(VLOOKUP(E94,datos!$K$6:$M$30,2,0),\"-\")","v":"-"},{"$f":"IFERROR(VLOOKUP(E94,datos!$K$6:$M$30,3,0),\"-\")","v":"-"},null,null,null,null,null,null,null,null,0]
[{"$f":"INFORME_GENERAL!$B$6","v":0},null,null,null,"_",{"$f":"IFERROR(VLOOKUP(E95,datos!$K$6:$M$30,2,0),\"-\")","v":"-"},{"$f":"IFERROR(VLOOKUP(E95,datos!$K$6:$M$30,3,0),\"-\")","v":"-"},null,null,null,null,null,null,null,null,0]
[{"$f":"INFORME_GENERAL!$B$6","v":0},null,null,null,"_",{"$f":"IFERROR(VLOOKUP(E96,datos!$K$6:$M$30,2,0),\"-\")","v":"-"},{"$f":"IFERROR(VLOOKUP(E96,datos!$K$6:$M$30,3,0),\"-\")","v":"-"},null,null,null,null,null,null,null,null,0]
[{"$f":"INFORME_GENERAL!$B$6","v":0},null,null,null,"_",{"$f":"IFERROR(VLOOKUP(E97,datos!$K$6:$M$30,2,0),\"-\")","v":"-"},{"$f":"IFERROR(VLOOKUP(E97,datos!$K$6:$M$30,3,0),\"-\")","v":"-"},null,null,null,null,null,null,null,null,0]
[{"$f":"INFORME_GENERAL!$B$6","v":0},null,null,null,"_",{"$f":"IFERROR(VLOOKUP(E98,datos!$K$6:$M$30,2,0),\"-\")","v":"-"},{"$f":"IFERROR(VLOOKUP(E98,datos!$K$6:$M$30,3,0),\"-\")","v":"-"},null,null,null,null,null,null,null,null,0]
[{"$f":"INFORME_GENERAL!$B$6","v":0},null,null,null,"_",{"$f":"IFERROR(VLOOKUP(E99,datos!$K$6:$M$30,2,0),\"-\")","v":"-"},{"$f":"IFERROR(VLOOKUP(E99,datos!$K$6:$M$30,3,0),\"-\")","v":"-"},null,null,null,null,null,null,null,null,0]
[{"$f":"INFORME_GENERAL!$B$6","v":0},null,null,null,"_",{"$f":"IFERROR(VLOOKUP(E100,datos!$K$6:$M$30,2,0),\"-\")","v":"-"},{"$f":"IFERROR(VLOOKUP(E100,datos!$K$6:$M$30,3,0),\"-\")","v":"-"},null,null,null,null,null,null,null,null,0]
[{"$f":"INFORME_GENERAL!$B$6","v":0},null,null,null,"_",{"$f":"IFERROR(VLOOKUP(E101,datos!$K$6:$M$30,2,0),\"-\")","v":"-"},{"$f":"IFERROR(VLOOKUP(E101,datos!$K$6:$M$30,3,0),\"-\")","v":"-"},null,null,null,null,null,null,null,null,0]
[{"$f":"INFORME_GENERAL!$B$6","v":0},null,null,null,"_",{"$f":"IFERROR(VLOOKUP(E102,datos!$K$6:$M$30,2,0),\"-\")","v":"-"},{"$f":"IFERROR(VLOOKUP(E102,datos!$K$6:$M$30,3,0),\"-\")","v":"-"},null,null,null,null,null,null,null,null,0]
[{"$f":"INFORME_GENERAL!$B$6","v":0},null,null,null,"_",{"$f":"IFERROR(VLOOKUP(E103,datos!$K$6:$M$30,2,0),\"-\")","v":"-"},{"$f":"IFERROR(VLOOKUP(E103,datos!$K$6:$M$30,3,0),\"-\")","v":"-"},null,null,null,null,null,null,null,null,0]
[{"$f":"INFORME_GENERAL!$B$6","v":0},null,null,null,"_",{"$f":"IFERROR(VLOOKUP(E104,datos!$K$6:$M$30,2,0),\"-\")","v":"-"},{"$f":"IFERROR(VLOOKUP(E104,datos!$K$6:$M$30,3,0),\"-\")","v":"-"},null,null,null,null,null,null,null,null,0]
[{"$f":"INFORME_GENERAL!$B$6","v":0},null,null,null,"_",{"$f":"IFERROR(VLOOKUP(E105,datos!$K$6:$M$30,2,0),\"-\")","v":"-"},{"$f":"IFERROR(VLOOKUP(E105,datos!$K$6:$M$30,3,0),\"-\")","v":"-"},null,null,null,null,null,null,null,null,0]
[{"$f":"INFORME_GENERAL!$B$6","v":0},null,null,null,"_",{"$f":"IFERROR(VLOOKUP(E106,datos!$K$6:$M$30,2,0),\"-\")","v":"-"},{"$f":"IFERROR(VLOOKUP(E106,datos!$K$6:$M$30,3,0),\"-\")","v":"-"},null,null,null,null,null,null,null,null,0]
[{"$f":"INFORME_GENERAL!$B$6","v":0},null,null,null,"_",{"$f":"IFERROR(VLOOKUP(E107,datos!$K$6:$M$30,2,0),\"-\")","v":"-"},{"$f":"IFERROR(VLOOKUP(E107,datos!$K$6:$M$30,3,0),\"-\")","v":"-"},null,null,null,null,null,null,null,null,0]
[{"$f":"INFORME_GENERAL!$B$6","v":0},null,null,null,"_",{"$f":"IFERROR(VLOOKUP(E108,datos!$K$6:$M$30,2,0),\"-\")","v":"-"},{"$f":"IFERROR(VLOOKUP(E108,datos!$K$6:$M$30,3,0),\"-\")","v":"-"},null,null,null,null,null,null,null,null,0]
[{"$f":"INFORME_GENERAL!$B$6","v":0},null,null,null,"_",{"$f":"IFERROR(VLOOKUP(E109,datos!$K$6:$M$30,2,0),\"-\")","v":"-"},{"$f":"IFERROR(VLOOKUP(E109,datos!$K$6:$M$30,3,0),\"-\")","v":"-"},null,null,null,null,null,null,null,null,0]
[{"$f":"INFORME_GENERAL!$B$6","v":0},null,null,null,"_",{"$f":"IFERROR(VLOOKUP(E110,datos!$K$6:$M$30,2,0),\"-\")","v":"-"},{"$f":"IFERROR(VLOOKUP(E110,datos!$K$6:$M$30,3,0),\"-\")","v":"-"},null,null,null,null,null,null,null,null,0]
[{"$f":"INFORME_GENERAL!$B$6","v":0},null,null,null,"_",{"$f":"IFERROR(VLOOKUP(E111,datos!$K$6:$M$30,2,0),\"-\")","v":"-"},{"$f":"IFERROR(VLOOKUP(E111,datos!$K$6:$M$30,3,0),\"-\")","v":"-"},null,null,null,null,null,null,null,null,0]
[{"$f":"INFORME_GENERAL!$B$6","v":0},null,null,null,"_",{"$f":"IFERROR(VLOOKUP(E112,datos!$K$6:$M$30,2,0),\"-\")","v":"-"},{"$f":"IFERROR(VLOOKUP(E112,datos!$K$6:$M$30,3,0),\"-\")","v":"-"},null,null,null,null,null,null,null,null,0]
[{"$f":"INFORME_GENERAL!$B$6","v":0},null,null,null,"_",{"$f":"IFERROR(VLOOKUP(E113,datos!$K$6:$M$30,2,0),\"-\")","v":"-"},{"$f":"IFERROR(VLOOKUP(E113,datos!$K$6:$M$30,3,0),\"-\")","v":"-"},null,null,null,null,null,null,null,null,0]
[{"$f":"INFORME_GENERAL!$B$6","v":0},null,null,null,"_",{"$f":"IFERROR(VLOOKUP(E114,datos!$K$6:$M$30,2,0),\"-\")","v":"-"},{"$f":"IFERROR(VLOOKUP(E114,datos!$K$6:$M$30,3,0),\"-\")","v":"-"},null,null,null,null,null,null,null,null,0]
[{"$f":"INFORME_GENERAL!$B$6","v":0},null,null,null,"_",{"$f":"IFERROR(VLOOKUP(E115,datos!$K$6:$M$30,2,0),\"-\")","v":"-"},{"$f":"IFERROR(VLOOKUP(E115,datos!$K$6:$M$30,3,0),\"-\")","v":"-"},null,null,null,null,null,null,null,null,0]
[{"$f":"INFORME_GENERAL!$B$6","v":0},null,null,null,"_",{"$f":"IFERROR(VLOOKUP(E116,datos!$K$6:$M$30,2,0),\"-\")","v":"-"},{"$f":"IFERROR(VLOOKUP(E116,datos!$K$6:$M$30,3,0),\"-\")","v":"-"},null,null,null,null,null,null,null,null,0]
[{"$f":"INFORME_GENERAL!$B$6","v":0},null,null,null,"_",{"$f":"IFERROR(VLOOKUP(E117,datos!$K$6:$M$30,2,0),\"-\")","v":"-"},{"$f":"IFERROR(VLOOKUP(E117,datos!$K$6:$M$30,3,0),\"-\")","v":"-"},null,null,null,null,null,null,null,null,0]
[{"$f":"INFORME_GENERAL!$B$6","v":0},null,null,null,"_",{"$f":"IFERROR(VLOOKUP(E118,datos!$K$6:$M$30,2,0),\"-\")","v":"-"},{"$f":"IFERROR(VLOOKUP(E118,datos!$K$6:$M$30,3,0),\"-\")","v":"-"},null,null,null,null,null,null,null,null,0]
[{"$f":"INFORME_GENERAL!$B$6","v":0},null,null,null,"_",{"$f":"IFERROR(VLOOKUP(E119,datos!$K$6:$M$30,2,0),\"-\")","v":"-"},{"$f":"IFERROR(VLOOKUP(E119,datos!$K$6:$M$30,3,0),\"-\")","v":"-"},null,null,null,null,null,null,null,null,0]
[{"$f":"INFORME_GENERAL!$B$6","v":0},null,null,null,"_",{"$f":"IFERROR(VLOOKUP(E120,datos!$K$6:$M$30,2,0),\"-\")","v":"-"},{"$f":"IFERROR(VLOOKUP(E120,datos!$K$6:$M$30,3,0),\"-\")","v":"-"},null,null,null,null,null,null,null,null,0]
[{"$f":"INFORME_GENERAL!$B$6","v":0},null,null,null,"_",{"$f":"IFERROR(VLOOKUP(E121,datos!$K$6:$M$30,2,0),\"-\")","v":"-"},{"$f":"IFERROR(VLOOKUP(E121,datos!$K$6:$M$30,3,0),\"-\")","v":"-"},null,null,null,null,null,null,null,null,0]
[{"$f":"INFORME_GENERAL!$B$6","v":0},null,null,null,"_",{"$f":"IFERROR(VLOOKUP(E122,datos!$K$6:$M$30,2,0),\"-\")","v":"-"},{"$f":"IFERROR(VLOOKUP(E122,datos!$K$6:$M$30,3,0),\"-\")","v":"-"},null,null,null,null,null,null,null,null,0]
[{"$f":"INFORME_GENERAL!$B$6","v":0},null,null,null,"_",{"$f":"IFERROR(VLOOKUP(E123,datos!$K$6:$M$30,2,0),\"-\")","v":"-"},{"$f":"IFERROR(VLOOKUP(E123,datos!$K$6:$M$30,3,0),\"-\")","v":"-"},null,null,null,null,null,null,null,null,0]
[{"$f":"INFORME_GENERAL!$B$6","v":0},null,null,null,"_",{"$f":"IFERROR(VLOOKUP(E124,datos!$K$6:$M$30,2,0),\"-\")","v":"-"},{"$f":"IFERROR(VLOOKUP(E124,datos!$K$6:$M$30,3,0),\"-\")","v":"-"},null,null,null,null,null,null,null,null,0]
[{"$f":"INFORME_GENERAL!$B$6","v":0},null,null,null,"_",{"$f":"IFERROR(VLOOKUP(E125,datos!$K$6:$M$30,2,0),\"-\")","v":"-"},{"$f":"IFERROR(VLOOKUP(E125,datos!$K$6:$M$30,3,0),\"-\")","v":"-"},null,null,null,null,null,null,null,null,0]
[{"$f":"INFORME_GENERAL!$B$6","v":0},null,null,null,"_",{"$f":"IFERROR(VLOOKUP(E126,datos!$K$6:$M$30,2,0),\"-\")","v":"-"},{"$f":"IFERROR(VLOOKUP(E126,datos!$K$6:$M$30,3,0),\"-\")","v":"-"},null,null,null,null,null,null,null,null,0]
[{"$f":"INFORME_GENERAL!$B$6","v":0},null,null,null,"_",{"$f":"IFERROR(VLOOKUP(E127,datos!$K$6:$M$30,2,0),\"-\")","v":"-"},{"$f":"IFERROR(VLOOKUP(E127,datos!$K$6:$M$30,3,0),\"-\")","v":"-"},null,null,null,null,null,null,null,null,0]
[{"$f":"INFORME_GENERAL!$B$6","v":0},null,null,null,"_",{"$f":"IFERROR(VLOOKUP(E128,datos!$K$6:$M$30,2,0),\"-\")","v":"-"},{"$f":"IFERROR(VLOOKUP(E128,datos!$K$6:$M$30,3,0),\"-\")","v":"-"},null,null,null,null,null,null,null,null,0]
[{"$f":"INFORME_GENERAL!$B$6","v":0},null,null,null,"_",{"$f":"IFERROR(VLOOKUP(E129,datos!$K$6:$M$30,2,0),\"-\")","v":"-"},{"$f":"IFERROR(VLOOKUP(E129,datos!$K$6:$M$30,3,0),\"-\")","v":"-"},null,null,null,null,null,null,null,null,0]
[{"$f":"INFORME_GENERAL!$B$6","v":0},null,null,null,"_",{"$f":"IFERROR(VLOOKUP(E130,datos!$K$6:$M$30,2,0),\"-\")","v":"-"},{"$f":"IFERROR(VLOOKUP(E130,datos!$K$6:$M$30,3,0),\"-\")","v":"-"},null,null,null,null,null,null,null,null,0]
[{"$f":"INFORME_GENERAL!$B$6","v":0},null,null,null,"_",{"$f":"IFERROR(VLOOKUP(E131,datos!$K$6:$M$30,2,0),\"-\")","v":"-"},{"$f":"IFERROR(VLOOKUP(E131,datos!$K$6:$M$30,3,0),\"-\")","v":"-"},null,null,null,null,null,null,null,null,0]
[{"$f":"INFORME_GENERAL!$B$6","v":0},null,null,null,"_",{"$f":"IFERROR(VLOOKUP(E132,datos!$K$6:$M$30,2,0),\"-\")","v":"-"},{"$f":"IFERROR(VLOOKUP(E132,datos!$K$6:$M$30,3,0),\"-\")","v":"-"},null,null,null,null,null,null,null,null,0]
[{"$f":"INFORME_GENERAL!$B$6","v":0},null,null,null,"_",{"$f":"IFERROR(VLOOKUP(E133,datos!$K$6:$M$30,2,0),\"-\")","v":"-"},{"$f":"IFERROR(VLOOKUP(E133,datos!$K$6:$M$30,3,0),\"-\")","v":"-"},null,null,null,null,null,null,null,null,0]
[{"$f":"INFORME_GENERAL!$B$6","v":0},null,null,null,"_",{"$f":"IFERROR(VLOOKUP(E134,datos!$K$6:$M$30,2,0),\"-\")","v":"-"},{"$f":"IFERROR(VLOOKUP(E134,datos!$K$6:$M$30,3,0),\"-\")","v":"-"},null,null,null,null,null,null,null,null,0]
[{"$f":"INFORME_GENERAL!$B$6","v":0},null,null,null,"_",{"$f":"IFERROR(VLOOKUP(E135,datos!$K$6:$M$30,2,0),\"-\")","v":"-"},{"$f":"IFERROR(VLOOKUP(E135,datos!$K$6:$M$30,3,0),\"-\")","v":"-"},null,null,null,null,null,null,null,null,0]
[{"$f":"INFORME_GENERAL!$B$6","v":0},null,null,null,{"$f":"CONCATENATE(C136,\"_\",D136)","v":"_"},{"$f":"IFERROR(VLOOKUP(E136,datos!$K$6:$M$30,2,0),\"-\")","v":"-"},{"$f":"IFERROR(VLOOKUP(E136,datos!$K$6:$M$30,3,0),\"-\")","v":"-"},null,null,null,null,null,null,null,null,{"$f":"N136+O136","v":0}]
[{"$f":"INFORME_GENERAL!$B$6","v":0},null,null,null,"_",{"$f":"IFERROR(VLOOKUP(E137,datos!$K$6:$M$30,2,0),\"-\")","v":"-"},{"$f":"IFERROR(VLOOKUP(E137,datos!$K$6:$M$30,3,0),\"-\")","v":"-"},null,null,null,null,null,null,null,null,0]
[{"$f":"INFORME_GENERAL!$B$6","v":0},null,null,null,"_",{"$f":"IFERROR(VLOOKUP(E138,datos!$K$6:$M$30,2,0),\"-\")","v":"-"},{"$f":"IFERROR(VLOOKUP(E138,datos!$K$6:$M$30,3,0),\"-\")","v":"-"},null,null,null,null,null,null,null,null,0]
[{"$f":"INFORME_GENERAL!$B$6","v":0},null,null,null,"_",{"$f":"IFERROR(VLOOKUP(E139,datos!$K$6:$M$30,2,0),\"-\")","v":"-"},{"$f":"IFERROR(VLOOKUP(E139,datos!$K$6:$M$30,3,0),\"-\")","v":"-"},null,null,null,null,null,null,null,null,0]
[{"$f":"INFORME_GENERAL!$B$6","v":0},null,null,null,"_",{"$f":"IFERROR(VLOOKUP(E140,datos!$K$6:$M$30,2,0),\"-\")","v":"-"},{"$f":"IFERROR(VLOOKUP(E140,datos!$K$6:$M$30,3,0),\"-\")","v":"-"},null,null,null,null,null,null,null,null,0]
[{"$f":"INFORME_GENERAL!$B$6","v":0},null,null,null,"_",{"$f":"IFERROR(VLOOKUP(E141,datos!$K$6:$M$30,2,0),\"-\")","v":"-"},{"$f":"IFERROR(VLOOKUP(E141,datos!$K$6:$M$30,3,0),\"-\")","v":"-"},null,null,null,null,null,null,null,null,0]
[{"$f":"INFORME_GENERAL!$B$6","v":0},null,null,null,"_",{"$f":"IFERROR(VLOOKUP(E142,datos!$K$6:$M$30,2,0),\"-\")","v":"-"},{"$f":"IFERROR(VLOOKUP(E142,datos!$K$6:$M$30,3,0),\"-\")","v":"-"},null,null,null,null,null,null,null,null,0]
[{"$f":"INFORME_GENERAL!$B$6","v":0},null,null,null,"_",{"$f":"IFERROR(VLOOKUP(E143,datos!$K$6:$M$30,2,0),\"-\")","v":"-"},{"$f":"IFERROR(VLOOKUP(E143,datos!$K$6:$M$30,3,0),\"-\")","v":"-"},null,null,null,null,null,null,null,null,0]
[{"$f":"INFORME_GENERAL!$B$6","v":0},null,null,null,"_",{"$f":"IFERROR(VLOOKUP(E144,datos!$K$6:$M$30,2,0),\"-\")","v":"-"},{"$f":"IFERROR(VLOOKUP(E144,datos!$K$6:$M$30,3,0),\"-\")","v":"-"},null,null,null,null,null,null,null,null,0]
[{"$f":"INFORME_GENERAL!$B$6","v":0},null,null,null,"_",{"$f":"IFERROR(VLOOKUP(E145,datos!$K$6:$M$30,2,0),\"-\")","v":"-"},{"$f":"IFERROR(VLOOKUP(E145,datos!$K$6:$M$30,3,0),\"-\")","v":"-"},null,null,null,null,null,null,null,null,0]
[{"$f":"INFORME_GENERAL!$B$6","v":0},null,null,null,"_",{"$f":"IFERROR(VLOOKUP(E146,datos!$K$6:$M$30,2,0),\"-\")","v":"-"},{"$f":"IFERROR(VLOOKUP(E146,datos!$K$6:$M$30,3,0),\"-\")","v":"-"},null,null,null,null,null,null,null,null,0]
[{"$f":"INFORME_GENERAL!$B$6","v":0},null,null,null,"_",{"$f":"IFERROR(VLOOKUP(E147,datos!$K$6:$M$30,2,0),\"-\")","v":"-"},{"$f":"IFERROR(VLOOKUP(E147,datos!$K$6:$M$30,3,0),\"-\")","v":"-"},null,null,null,null,null,null,null,null,0]
[{"$f":"INFORME_GENERAL!$B$6","v":0},null,null,null,"_",{"$f":"IFERROR(VLOOKUP(E148,datos!$K$6:$M$30,2,0),\"-\")","v":"-"},{"$f":"IFERROR(VLOOKUP(E148,datos!$K$6:$M$30,3,0),\"-\")","v":"-"},null,null,null,null,null,null,null,null,0]
[{"$f":"INFORME_GENERAL!$B$6","v":0},null,null,null,"_",{"$f":"IFERROR(VLOOKUP(E149,datos!$K$6:$M$30,2,0),\"-\")","v":"-"},{"$f":"IFERROR(VLOOKUP(E149,datos!$K$6:$M$30,3,0),\"-\")","v":"-"},null,null,null,null,null,null,null,null,0]
[{"$f":"INFORME_GENERAL!$B$6","v":0},null,null,null,"_",{"$f":"IFERROR(VLOOKUP(E150,datos!$K$6:$M$30,2,0),\"-\")","v":"-"},{"$f":"IFERROR(VLOOKUP(E150,datos!$K$6:$M$30,3,0),\"-\")","v":"-"},null,null,null,null,null,null,null,null,0]
[{"$f":"INFORME_GENERAL!$B$6","v":0},null,null,null,"_",{"$f":"IFERROR(VLOOKUP(E151,datos!$K$6:$M$30,2,0),\"-\")","v":"-"},{"$f":"IFERROR(VLOOKUP(E151,datos!$K$6:$M$30,3,0),\"-\")","v":"-"},null,null,null,null,null,null,null,null,0]
[{"$f":"INFORME_GENERAL!$B$6","v":0},null,null,null,"_",{"$f":"IFERROR(VLOOKUP(E152,datos!$K$6:$M$30,2,0),\"-\")","v":"-"},{"$f":"IFERROR(VLOOKUP(E152,datos!$K$6:$M$30,3,0),\"-\")","v":"-"},null,null,null,null,null,null,null,null,0]
[{"$f":"INFORME_GENERAL!$B$6","v":0},null,null,null,"_",{"$f":"IFERROR(VLOOKUP(E153,datos!$K$6:$M$30,2,0),\"-\")","v":"-"},{"$f":"IFERROR(VLOOKUP(E153,datos!$K$6:$M$30,3,0),\"-\")","v":"-"},null,null,null,null,null,null,null,null,0]
[{"$f":"INFORME_GENERAL!$B$6","v":0},null,null,null,"_",{"$f":"IFERROR(VLOOKUP(E154,datos!$K$6:$M$30,2,0),\"-\")","v":"-"},{"$f":"IFERROR(VLOOKUP(E154,datos!$K$6:$M$30,3,0),\"-\")","v":"-"},null,null,null,null,null,null,null,null,0]
[{"$f":"INFORME_GENERAL!$B$6","v":0},null,null,null,"_",{"$f":"IFERROR(VLOOKUP(E155,datos!$K$6:$M$30,2,0),\"-\")","v":"-"},{"$f":"IFERROR(VLOOKUP(E155,datos!$K$6:$M$30,3,0),\"-\")","v":"-"},null,null,null,null,null,null,null,null,0]
[{"$f":"INFORME_GENERAL!$B$6","v":0},null,null,null,"_",{"$f":"IFERROR(VLOOKUP(E156,datos!$K$6:$M$30,2,0),\"-\")","v":"-"},{"$f":"IFERROR(VLOOKUP(E156,datos!$K$6:$M$30,3,0),\"-\")","v":"-"},null,null,null,null,null,null,null,null,0]
[{"$f":"INFORME_GENERAL!$B$6","v":0},null,null,null,"_",{"$f":"IFERROR(VLOOKUP(E157,datos!$K$6:$M$30,2,0),\"-\")","v":"-"},{"$f":"IFERROR(VLOOKUP(E157,datos!$K$6:$M$30,3,0),\"-\")","v":"-"},null,null,null,null,null,null,null,null,0]
[{"$f":"INFORME_GENERAL!$B$6","v":0},null,null,null,"_",{"$f":"IFERROR(VLOOKUP(E158,datos!$K$6:$M$30,2,0),\"-\")","v":"-"},{"$f":"IFERROR(VLOOKUP(E158,datos!$K$6:$M$30,3,0),\"-\")","v":"-"},null,null,null,null,null,null,null,null,0]
[{"$f":"INFORME_GENERAL!$B$6","v":0},null,null,null,"_",{"$f":"IFERROR(VLOOKUP(E159,datos!$K$6:$M$30,2,0),\"-\")","v":"-"},{"$f":"IFERROR(VLOOKUP(E159,datos!$K$6:$M$30,3,0),\"-\")","v":"-"},null,null,null,null,null,null,null,null,0]
[{"$f":"INFORME_GENERAL!$B$6","v":0},null,null,null,"_",{"$f":"IFERROR(VLOOKUP(E160,datos!$K$6:$M$30,2,0),\"-\")","v":"-"},{"$f":"IFERROR(VLOOKUP(E160,datos!$K$6:$M$30,3,0),\"-\")","v":"-"},null,null,null,null,null,null,null,null,0]
[{"$f":"INFORME_GENERAL!$B$6","v":0},null,null,null,"_",{"$f":"IFERROR(VLOOKUP(E161,datos!$K$6:$M$30,2,0),\"-\")","v":"-"},{"$f":"IFERROR(VLOOKUP(E161,datos!$K$6:$M$30,3,0),\"-\")","v":"-"},null,null,null,null,null,null,null,null,0]
[{"$f":"INFORME_GENERAL!$B$6","v":0},null,null,null,"_",{"$f":"IFERROR(VLOOKUP(E162,datos!$K$6:$M$30,2,0),\"-\")","v":"-"},{"$f":"IFERROR(VLOOKUP(E162,datos!$K$6:$M$30,3,0),\"-\")","v":"-"},null,null,null,null,null,null,null,null,0]
[{"$f":"INFORME_GENERAL!$B$6","v":0},null,null,null,"_",{"$f":"IFERROR(VLOOKUP(E163,datos!$K$6:$M$30,2,0),\"-\")","v":"-"},{"$f":"IFERROR(VLOOKUP(E163,datos!$K$6:$M$30,3,0),\"-\")","v":"-"},null,null,null,null,null,null,null,null,0]
[{"$f":"INFORME_GENERAL!$B$6","v":0},null,null,null,"_",{"$f":"IFERROR(VLOOKUP(E164,datos!$K$6:$M$30,2,0),\"-\")","v":"-"},{"$f":"IFERROR(VLOOKUP(E164,datos!$K$6:$M$30,3,0),\"-\")","v":"-"},null,null,null,null,null,null,null,null,0]
[{"$f":"INFORME_GENERAL!$B$6","v":0},null,null,null,"_",{"$f":"IFERROR(VLOOKUP(E165,datos!$K$6:$M$30,2,0),\"-\")","v":"-"},{"$f":"IFERROR(VLOOKUP(E165,datos!$K$6:$M$30,3,0),\"-\")","v":"-"},null,null,null,null,null,null,null,null,0]
[{"$f":"INFORME_GENERAL!$B$6","v":0},null,null,null,"_",{"$f":"IFERROR(VLOOKUP(E166,datos!$K$6:$M$30,2,0),\"-\")","v":"-"},{"$f":"IFERROR(VLOOKUP(E166,datos!$K$6:$M$30,3,0),\"-\")","v":"-"},null,null,null,null,null,null,null,null,0]
[{"$f":"INFORME_GENERAL!$B$6","v":0},null,null,null,"_",{"$f":"IFERROR(VLOOKUP(E167,datos!$K$6:$M$30,2,0),\"-\")","v":"-"},{"$f":"IFERROR(VLOOKUP(E167,datos!$K$6:$M$30,3,0),\"-\")","v":"-"},null,null,null,null,null,null,null,null,0]
[{"$f":"INFORME_GENERAL!$B$6","v":0},null,null,null,"_",{"$f":"IFERROR(VLOOKUP(E168,datos!$K$6:$M$30,2,0),\"-\")","v":"-"},{"$f":"IFERROR(VLOOKUP(E168,datos!$K$6:$M$30,3,0),\"-\")","v":"-"},null,null,null,null,null,null,null,null,0]
[{"$f":"INFORME_GENERAL!$B$6","v":0},null,null,null,"_",{"$f":"IFERROR(VLOOKUP(E169,datos!$K$6:$M$30,2,0),\"-\")","v":"-"},{"$f":"IFERROR(VLOOKUP(E169,datos!$K$6:$M$30,3,0),\"-\")","v":"-"},null,null,null,null,null,null,null,null,0]
[{"$f":"INFORME_GENERAL!$B$6","v":0},null,null,null,"_",{"$f":"IFERROR(VLOOKUP(E170,datos!$K$6:$M$30,2,0),\"-\")","v":"-"},{"$f":"IFERROR(VLOOKUP(E170,datos!$K$6:$M$30,3,0),\"-\")","v":"-"},null,null,null,null,null,null,null,null,0]
[{"$f":"INFORME_GENERAL!$B$6","v":0},null,null,null,"_",{"$f":"IFERROR(VLOOKUP(E171,datos!$K$6:$M$30,2,0),\"-\")","v":"-"},{"$f":"IFERROR(VLOOKUP(E171,datos!$K$6:$M$30,3,0),\"-\")","v":"-"},null,null,null,null,null,null,null,null,0]
[{"$f":"INFORME_GENERAL!$B$6","v":0},null,null,null,"_",{"$f":"IFERROR(VLOOKUP(E172,datos!$K$6:$M$30,2,0),\"-\")","v":"-"},{"$f":"IFERROR(VLOOKUP(E172,datos!$K$6:$M$30,3,0),\"-\")","v":"-"},null,null,null,null,null,null,null,null,0]
[{"$f":"INFORME_GENERAL!$B$6","v":0},null,null,null,"_",{"$f":"IFERROR(VLOOKUP(E173,datos!$K$6:$M$30,2,0),\"-\")","v":"-"},{"$f":"IFERROR(VLOOKUP(E173,datos!$K$6:$M$30,3,0),\"-\")","v":"-"},null,null,null,null,null,null,null,null,0]
[{"$f":"INFORME_GENERAL!$B$6","v":0},null,null,null,"_",{"$f":"IFERROR(VLOOKUP(E174,datos!$K$6:$M$30,2,0),\"-\")","v":"-"},{"$f":"IFERROR(VLOOKUP(E174,datos!$K$6:$M$30,3,0),\"-\")","v":"-"},null,null,null,null,null,null,null,null,0]
[{"$f":"INFORME_GENERAL!$B$6","v":0},null,null,null,"_",{"$f":"IFERROR(VLOOKUP(E175,datos!$K$6:$M$30,2,0),\"-\")","v":"-"},{"$f":"IFERROR(VLOOKUP(E175,datos!$K$6:$M$30,3,0),\"-\")","v":"-"},null,null,null,null,null,null,null,null,0]
[{"$f":"INFORME_GENERAL!$B$6","v":0},null,null,null,"_",{"$f":"IFERROR(VLOOKUP(E176,datos!$K$6:$M$30,2,0),\"-\")","v":"-"},{"$f":"IFERROR(VLOOKUP(E176,datos!$K$6:$M$30,3,0),\"-\")","v":"-"},null,null,null,null,null,null,null,null,0]
[{"$f":"INFORME_GENERAL!$B$6","v":0},null,null,null,"_",{"$f":"IFERROR(VLOOKUP(E177,datos!$K$6:$M$30,2,0),\"-\")","v":"-"},{"$f":"IFERROR(VLOOKUP(E177,datos!$K$6:$M$30,3,0),\"-\")","v":"-"},null,null,null,null,null,null,null,null,0]
[{"$f":"INFORME_GENERAL!$B$6","v":0},null,null,null,"_",{"$f":"IFERROR(VLOOKUP(E178,datos!$K$6:$M$30,2,0),\"-\")","v":"-"},{"$f":"IFERROR(VLOOKUP(E178,datos!$K$6:$M$30,3,0),\"-\")","v":"-"},null,null,null,null,null,null,null,null,0]
[{"$f":"INFORME_GENERAL!$B$6","v":0},null,null,null,"_",{"$f":"IFERROR(VLOOKUP(E179,datos!$K$6:$M$30,2,0),\"-\")","v":"-"},{"$f":"IFERROR(VLOOKUP(E179,datos!$K$6:$M$30,3,0),\"-\")","v":"-"},null,null,null,null,null,null,null,null,0]
[{"$f":"INFORME_GENERAL!$B$6","v":0},null,null,null,"_",{"$f":"IFERROR(VLOOKUP(E180,datos!$K$6:$M$30,2,0),\"-\")","v":"-"},{"$f":"IFERROR(VLOOKUP(E180,datos!$K$6:$M$30,3,0),\"-\")","v":"-"},null,null,null,null,null,null,null,null,0]
[{"$f":"INFORME_GENERAL!$B$6","v":0},null,null,null,"_",{"$f":"IFERROR(VLOOKUP(E181,datos!$K$6:$M$30,2,0),\"-\")","v":"-"},{"$f":"IFERROR(VLOOKUP(E181,datos!$K$6:$M$30,3,0),\"-\")","v":"-"},null,null,null,null,null,null,null,null,0]
[{"$f":"INFORME_GENERAL!$B$6","v":0},null,null,null,"_",{"$f":"IFERROR(VLOOKUP(E182,datos!$K$6:$M$30,2,0),\"-\")","v":"-"},{"$f":"IFERROR(VLOOKUP(E182,datos!$K$6:$M$30,3,0),\"-\")","v":"-"},null,null,null,null,null,null,null,null,0]
[{"$f":"INFORME_GENERAL!$B$6","v":0},null,null,null,"_",{"$f":"IFERROR(VLOOKUP(E183,datos!$K$6:$M$30,2,0),\"-\")","v":"-"},{"$f":"IFERROR(VLOOKUP(E183,datos!$K$6:$M$30,3,0),\"-\")","v":"-"},null,null,null,null,null,null,null,null,0]
[{"$f":"INFORME_GENERAL!$B$6","v":0},null,null,null,"_",{"$f":"IFERROR(VLOOKUP(E184,datos!$K$6:$M$30,2,0),\"-\")","v":"-"},{"$f":"IFERROR(VLOOKUP(E184,datos!$K$6:$M$30,3,0),\"-\")","v":"-"},null,null,null,null,null,null,null,null,0]
[{"$f":"INFORME_GENERAL!$B$6","v":0},null,null,null,"_",{"$f":"IFERROR(VLOOKUP(E185,datos!$K$6:$M$30,2,0),\"-\")","v":"-"},{"$f":"IFERROR(VLOOKUP(E185,datos!$K$6:$M$30,3,0),\"-\")","v":"-"},null,null,null,null,null,null,null,null,0]
[{"$f":"INFORME_GENERAL!$B$6","v":0},null,null,null,"_",{"$f":"IFERROR(VLOOKUP(E186,datos!$K$6:$M$30,2,0),\"-\")","v":"-"},{"$f":"IFERROR(VLOOKUP(E186,datos!$K$6:$M$30,3,0),\"-\")","v":"-"},null,null,null,null,null,null,null,null,0]
[{"$f":"INFORME_GENERAL!$B$6","v":0},null,null,null,"_",{"$f":"IFERROR(VLOOKUP(E187,datos!$K$6:$M$30,2,0),\"-\")","v":"-"},{"$f":"IFERROR(VLOOKUP(E187,datos!$K$6:$M$30,3,0),\"-\")","v":"-"},null,null,null,null,null,null,null,null,0]
[{"$f":"INFORME_GENERAL!$B$6","v":0},null,null,null,"_",{"$f":"IFERROR(VLOOKUP(E188,datos!$K$6:$M$30,2,0),\"-\")","v":"-"},{"$f":"IFERROR(VLOOKUP(E188,datos!$K$6:$M$30,3,0),\"-\")","v":"-"},null,null,null,null,null,null,null,null,0]
[{"$f":"INFORME_GENERAL!$B$6","v":0},null,null,null,"_",{"$f":"IFERROR(VLOOKUP(E189,datos!$K$6:$M$30,2,0),\"-\")","v":"-"},{"$f":"IFERROR(VLOOKUP(E189,datos!$K$6:$M$30,3,0),\"-\")","v":"-"},null,null,null,null,null,null,null,null,0]
[{"$f":"INFORME_GENERAL!$B$6","v":0},null,null,null,"_",{"$f":"IFERROR(VLOOKUP(E190,datos!$K$6:$M$30,2,0),\"-\")","v":"-"},{"$f":"IFERROR(VLOOKUP(E190,datos!$K$6:$M$30,3,0),\"-\")","v":"-"},null,null,null,null,null,null,null,null,0]
[{"$f":"INFORME_GENERAL!$B$6","v":0},null,null,null,"_",{"$f":"IFERROR(VLOOKUP(E191,datos!$K$6:$M$30,2,0),\"-\")","v":"-"},{"$f":"IFERROR(VLOOKUP(E191,datos!$K$6:$M$30,3,0),\"-\")","v":"-"},null,null,null,null,null,null,null,null,0]
[{"$f":"INFORME_GENERAL!$B$6","v":0},null,null,null,"_",{"$f":"IFERROR(VLOOKUP(E192,datos!$K$6:$M$30,2,0),\"-\")","v":"-"},{"$f":"IFERROR(VLOOKUP(E192,datos!$K$6:$M$30,3,0),\"-\")","v":"-"},null,null,null,null,null,null,null,null,0]
[{"$f":"INFORME_GENERAL!$B$6","v":0},null,null,null,"_",{"$f":"IFERROR(VLOOKUP(E193,datos!$K$6:$M$30,2,0),\"-\")","v":"-"},{"$f":"IFERROR(VLOOKUP(E193,datos!$K$6:$M$30,3,0),\"-\")","v":"-"},null,null,null,null,null,null,null,null,0]
[{"$f":"INFORME_GENERAL!$B$6","v":0},null,null,null,"_",{"$f":"IFERROR(VLOOKUP(E194,datos!$K$6:$M$30,2,0),\"-\")","v":"-"},{"$f":"IFERROR(VLOOKUP(E194,datos!$K$6:$M$30,3,0),\"-\")","v":"-"},null,null,null,null,null,null,null,null,0]
[{"$f":"INFORME_GENERAL!$B$6","v":0},null,null,null,"_",{"$f":"IFERROR(VLOOKUP(E195,datos!$K$6:$M$30,2,0),\"-\")","v":"-"},{"$f":"IFERROR(VLOOKUP(E195,datos!$K$6:$M$30,3,0),\"-\")","v":"-"},null,null,null,null,null,null,null,null,0]
[{"$f":"INFORME_GENERAL!$B$6","v":0},null,null,null,"_",{"$f":"IFERROR(VLOOKUP(E196,datos!$K$6:$M$30,2,0),\"-\")","v":"-"},{"$f":"IFERROR(VLOOKUP(E196,datos!$K$6:$M$30,3,0),\"-\")","v":"-"},null,null,null,null,null,null,null,null,0]
[{"$f":"INFORME_GENERAL!$B$6","v":0},null,null,null,"_",{"$f":"IFERROR(VLOOKUP(E197,datos!$K$6:$M$30,2,0),\"-\")","v":"-"},{"$f":"IFERROR(VLOOKUP(E197,datos!$K$6:$M$30,3,0),\"-\")","v":"-"},null,null,null,null,null,null,null,null,0]
[{"$f":"INFORME_GENERAL!$B$6","v":0},null,null,null,"_",{"$f":"IFERROR(VLOOKUP(E198,datos!$K$6:$M$30,2,0),\"-\")","v":"-"},{"$f":"IFERROR(VLOOKUP(E198,datos!$K$6:$M$30,3,0),\"-\")","v":"-"},null,null,null,null,null,null,null,null,0]
[{"$f":"INFORME_GENERAL!$B$6","v":0},null,null,null,"_",{"$f":"IFERROR(VLOOKUP(E199,datos!$K$6:$M$30,2,0),\"-\")","v":"-"},{"$f":"IFERROR(VLOOKUP(E199,datos!$K$6:$M$30,3,0),\"-\")","v":"-"},null,null,null,null,null,null,null,null,0]
[{"$f":"INFORME_GENERAL!$B$6","v":0},null,null,null,{"$f":"CONCATENATE(C200,\"_\",D200)","v":"_"},{"$f":"IFERROR(VLOOKUP(E200,datos!$K$6:$M$30,2,0),\"-\")","v":"-"},{"$f":"IFERROR(VLOOKUP(E200,datos!$K$6:$M$30,3,0),\"-\")","v":"-"},null,null,null,null,null,null,null,null,{"$f":"N200+O200","v":0}]
[{"$f":"INFORME_GENERAL!$B$6","v":0},null,null,null,"_",{"$f":"IFERROR(VLOOKUP(E201,datos!$K$6:$M$30,2,0),\"-\")","v":"-"},{"$f":"IFERROR(VLOOKUP(E201,datos!$K$6:$M$30,3,0),\"-\")","v":"-"},null,null,null,null,null,null,null,null,0]
[{"$f":"INFORME_GENERAL!$B$6","v":0},null,null,null,"_",{"$f":"IFERROR(VLOOKUP(E202,datos!$K$6:$M$30,2,0),\"-\")","v":"-"},{"$f":"IFERROR(VLOOKUP(E202,datos!$K$6:$M$30,3,0),\"-\")","v":"-"},null,null,null,null,null,null,null,null,0]
[{"$f":"INFORME_GENERAL!$B$6","v":0},null,null,null,"_",{"$f":"IFERROR(VLOOKUP(E203,datos!$K$6:$M$30,2,0),\"-\")","v":"-"},{"$f":"IFERROR(VLOOKUP(E203,datos!$K$6:$M$30,3,0),\"-\")","v":"-"},null,null,null,null,null,null,null,null,0]
[{"$f":"INFORME_GENERAL!$B$6","v":0},null,null,null,"_",{"$f":"IFERROR(VLOOKUP(E204,datos!$K$6:$M$30,2,0),\"-\")","v":"-"},{"$f":"IFERROR(VLOOKUP(E204,datos!$K$6:$M$30,3,0),\"-\")","v":"-"},null,null,null,null,null,null,null,null,0]
[{"$f":"INFORME_GENERAL!$B$6","v":0},null,null,null,"_",{"$f":"IFERROR(VLOOKUP(E205,datos!$K$6:$M$30,2,0),\"-\")","v":"-"},{"$f":"IFERROR(VLOOKUP(E205,datos!$K$6:$M$30,3,0),\"-\")","v":"-"},null,null,null,null,null,null,null,null,0]
[{"$f":"INFORME_GENERAL!$B$6","v":0},null,null,null,"_",{"$f":"IFERROR(VLOOKUP(E206,datos!$K$6:$M$30,2,0),\"-\")","v":"-"},{"$f":"IFERROR(VLOOKUP(E206,datos!$K$6:$M$30,3,0),\"-\")","v":"-"},null,null,null,null,null,null,null,null,0]
["-",null,null,null,null,null,null,"-","-","-","-","-","-",{"$f":"SUM(N7:N206)","v":0},{"$f":"SUM(O7:O206)","v":0},{"$f":"SUM(P7:P206)","v":0}]
[null,"ENERO","COSTAS","PERSUASIVO"]
[null,"FEBRERO","COSTAS","COACTIVO"]
[null,"MARZO","COSTAS","PROCESOS CONCURSALES"]
[null,"ABRIL","COSTAS","OTRO TIPO DE COBRO JURIDICO"]
[null,"MAYO","COSTAS","PERSUASIVO"]
[null,"JUNIO","COSTAS","COACTIVO"]
[null,"JULIO","COSTAS","PROCESOS CONCURSALES"]
[null,"AGOSTO","COSTAS","OTRO TIPO DE COBRO JURIDICO"]
[null,"SEPTIEMBRE","COSTAS","PERSUASIVO"]
[null,"OCTUBRE","COSTAS","COACTIVO"]
[null,"NOVIEMBRE","COSTAS","PROCESOS CONCURSALES"]
[null,"DICIEMBRE","COSTAS","OTRO TIPO DE COBRO JURIDICO"]
[null,"ENERO","CUOTA_ALIMENTARIA","PERSUASIVO"]
[null,"FEBRERO","CUOTA_ALIMENTARIA","COACTIVO"]
[null,"MARZO","CUOTA_ALIMENTARIA","OTRO TIPO DE COBRO JURIDICO"]
[null,"ABRIL","CUOTA_ALIMENTARIA","PERSUASIVO"]
[null,"MAYO","CUOTA_ALIMENTARIA","COACTIVO"]
[null,"JUNIO","CUOTA_ALIMENTARIA","OTRO TIPO DE COBRO JURIDICO"]
[null,"JULIO","CUOTA_ALIMENTARIA","PERSUASIVO"]
[null,"AGOSTO","CUOTA_ALIMENTARIA","COACTIVO"]
[null,"SEPTIEMBRE","CUOTA_ALIMENTARIA","OTRO TIPO DE COBRO JURIDICO"]
[null,"OCTUBRE","CUOTA_ALIMENTARIA","PERSUASIVO"]
[null,"NOVIEMBRE","CUOTA_ALIMENTARIA","COACTIVO"]
[null,"DICIEMBRE","CUOTA_ALIMENTARIA","OTRO TIPO DE COBRO JURIDICO"]
[null,"ENERO","CONTRACTUALES","SANCIONES CONTRACTUALES EN PERSUASIVO"]
[null,"FEBRERO","CONTRACTUALES","SANCIONES CONTRACTUALES EN COBRO COACTIVO "]
[null,"MARZO","CONTRACTUALES","SANCIONES CONTRACTUALES EN COBRO CONCURSALES "]
[null,"ABRIL","CONTRACTUALES","SANCIONES CONTRACTUALES  EN OTRO TIPO DE COBRO JURIDICO "]
[null,"MAYO","CONTRACTUALES","REINTEGROS  POR RECURSOS NO EJECUTADOS CONTRATOS EN PERSUASIVO"]
[null,"JUNIO","CONTRACTUALES","REINTEGROS  POR RECURSOS NO EJECUTADOS EN COBRO COACTIVO"]
[null,"JULIO","CONTRACTUALES","REINTEGROS  POR RECURSOS NO EJECUTADOS EN COBRO CONCURSALES "]
[null,"AGOSTO","CONTRACTUALES","REINTEGROS  POR RECURSOS NO EJECUTADOS EN COBRO PROCESO EN OTRO TRAMITE JURIDICO"]
[null,"SEPTIEMBRE","CONTRACTUALES","SANCIONES CONTRACTUALES EN PERSUASIVO"]
[null,"OCTUBRE","CONTRACTUALES","SANCIONES CONTRACTUALES EN COBRO COACTIVO "]
[null,"NOVIEMBRE","CONTRACTUALES","SANCIONES CONTRACTUALES EN COBRO CONCURSALES "]
[null,"DICIEMBRE","CONTRACTUALES","SANCIONES CONTRACTUALES  EN OTRO TIPO DE COBRO JURIDICO "]
[null,"ENERO","CONTRACTUALES","REINTEGROS  POR RECURSOS NO EJECUTADOS CONTRATOS EN PERSUASIVO"]
[null,"FEBRERO","CONTRACTUALES","REINTEGROS  POR RECURSOS NO EJECUTADOS EN COBRO COACTIVO"]
[null,"MARZO","CONTRACTUALES","REINTEGROS  POR RECURSOS NO EJECUTADOS EN COBRO CONCURSALES "]
[null,"ABRIL","CONTRACTUALES","REINTEGROS  POR RECURSOS NO EJECUTADOS EN COBRO PROCESO EN OTRO TRAMITE JURIDICO"]
[null,"ENERO","OTRAS_OBLIGACIONES","PERSUASIVO"]
[null,"FEBRERO","OTRAS_OBLIGACIONES","COACTIVO"]
[null,"MARZO","OTRAS_OBLIGACIONES","PROCESOS CONCURSALES"]
[null,"ABRIL","OTRAS_OBLIGACIONES","OTRO TIPO DE COBRO JURIDICO"]
[null,"MAYO","OTRAS_OBLIGACIONES","SENTENCIAS LAUDOS ARBITRALES PERSUASIVO"]
[null,"JUNIO","OTRAS_OBLIGACIONES","SENTENCIAS LAUDOS ARBITRALES  COACTIVO"]
[null,"JULIO","OTRAS_OBLIGACIONES","PERSUASIVO"]
[null,"AGOSTO","OTRAS_OBLIGACIONES","COACTIVO"]
[null,"SEPTIEMBRE","OTRAS_OBLIGACIONES","PROCESOS CONCURSALES"]
[null,"OCTUBRE","OTRAS_OBLIGACIONES","OTRO TIPO DE COBRO JURIDICO"]
[null,"NOVIEMBRE","OTRAS_OBLIGACIONES","SENTENCIAS LAUDOS ARBITRALES PERSUASIVO"]
[null,"DICIEMBRE","OTRAS_OBLIGACIONES","SENTENCIAS LAUDOS ARBITRALES  COACTIVO"]
[]
[]
["Antes de imprimir este documento… piense en el medio ambiente!  \nCualquier copia impresa de este documento se considera como COPIA NO CONTROLADA.\nLOS DATOS PROPORCIONADOS SERÁN TRATADOS DE ACUERDO A LA POLÌTICA DE TRATAMIENTO DE DATOS PERSONALES DEL ICBF Y A LA LEY 1581 DE 2012"]

{"sheet":"INSTRUCTIVO","index":2,"n_rows":30,"n_cols":8,"rows_kept":30,"cut":false,"hidden":false,"merged":[[5,6,5,7],[7,0,7,6],[29,0,30,16],[5,3,5,4],[1,7,2,7],[3,7,4,7],[1,1,5,1],[1,2,2,4],[3,2,4,4],[1,6,2,6],[3,6,4,6]]}
[]
[null,{"$error":"#VALUE!"},"PROCESO GESTIÓN FINANCIERA",null,null,null,{"$f":"INGRESOS_OTRAS_CARTERAS!P1","v":"F3.P40.GF"},"2025-09-19"]
[]
[null,null,"FORMATO MOVIMIENTO INGRESOS BANCOS ADN",null,null,null,{"$f":"INGRESOS_OTRAS_CARTERAS!P3","v":"Versión 1"},"Página 1 de 1"]
[]
[null,null,null,null,null,null,"Clasificación de la Información: Clasificada"]
[]
["INSTRUCTIVO"]
[]
[]
[null,null,"CELDA","NOMBRE","INFORME_GENERAL"]
[null,null,"B12","REGIONAL","SE DEBE SELECCIONAR LA REGIONAL  AL CUAL PERTENECE LA CONCILIACIÓN"]
[null,null,"E12","MES","SE DEBE SELECCIONAR EL MES AL CUAL PERTENECE LA CONCILIACIÓN"]
[]
[]
[null,null,"COLUMNA","TIPO DE CARTERA","INGRESOS_OTRAS_CARTERAS"]
[null,null,"B","MES","SE DEBE SELECCIONAR EL MES  AL CUAL PERTENECE EL PAGO"]
[null,null,"C","TIPO DE CARTERA","SE DEBE SELECCIONAR EL TIPO DE CARTERA  AL CUAL PERTENECE EL PAGO"]
[null,null,"D","TIPO DE OBLIGACIÓN","SE DEBE SELECCIONAR EL TIPO DE OBLIGACIÓN  AL CUAL PERTENECE EL PAGO"]
[null,null,"H","DOCUMENTO DE RECAUDO POR CLASIFICAR (DRXC)   TESORERÍA ","SE DEBE INGRESAR EL NUMERO DOCUMENTO DE RECAUDO POR CLASIFICAR (DRXC) AL CUAL PERTENECE EL PAGO"]
[null,null,"I","FECHA DE PAGO","SE DEBE INGRESAR LA FECHA DEL PAGO"]
[null,null,"J","NÚMERO DE IDENTIFICACIÓN","SE DEBE INGRESAR EL NUMERO DE IDENTIFICACIÓN DEL DEUDOR"]
[null,null,"K","NOMBRE Y/O RAZÓN SOCIAL","SE DEBE INGRESAR EL NOMBRE DEL DEUDOR"]
[null,null,"L","No. SENTENCIA O ACTA      ","SE DEBE INGRESAR EL NUMERO DE LA SENTENCIA O ACTA QUE ORIGINO EL PAGO"]
[null,null,"M","FECHA DE SENTENCIA O ACTA","SE DEBE INGRESAR LA FECHADE DE LA SENTENCIA O ACTA QUE ORIGINO EL PAGO"]
[null,null,"N","CAPITAL","SE DEBE INGRESAR EL VALOR CAPITAL QUE CORRESPONDE EL PAGO"]
[null,null,"O","INTERESES","SE DEBE INGRESAR EL VALOR INTERESES QUE CORRESPONDE EL PAGO"]
[null,null,"Q","PERTENECE AL FORMATO F-25, COACTIVO O ES INGRESO SIN GESTIÓN","SE DEBE SELECCIONAR SI PERTENECE AL FORMATO F-25, COACTIVO O ES INGRESO SIN GESTIÓN."]
[]
["Antes de imprimir este documento… piense en el medio ambiente!  \nCualquier copia impresa de este documento se considera como COPIA NO CONTROLADA.\nLOS DATOS PROPORCIONADOS SERÁN TRATADOS DE ACUERDO A LA POLÌTICA DE TRATAMIENTO DE DATOS PERSONALES DEL ICBF Y A LA LEY 1581 DE 2012"]

{"sheet":"Hoja8","index":3,"n_rows":34,"n_cols":9,"rows_kept":34,"cut":false,"hidden":true,"merged":[[20,1,20,2],[20,3,20,4],[20,5,20,6],[20,7,20,8]]}
[]
[]
["Etiquetas de fila","Suma de CAPITAL","Suma de INTERESES"]
["ENERO"]
["FEBRERO"]
["MARZO"]
["ABRIL"]
["MAYO"]
["JUNIO"]
["JULIO"]
["AGOSTO"]
["SEPTIEMBRE"]
["OCTUBRE"]
["NOVIEMBRE"]
["DICIEMBRE"]
["Total general"]
[]
[]
[]
[]
[null,"F-25 PERSUASIVO",null,"F-25 COACTIVO",null,"COACTIVO",null,"PAGO SIN GESTION"]
[null,"CAPITAL","INTERESES","CAPITAL","INTERESES","CAPITAL","INTERESES","CAPITAL","INTERESES"]
[{"$f":"A6","v":"MARZO"},0,0,0,0,0,0,0,0]
[{"$f":"A7","v":"ABRIL"},0,0,0,0,0,0,0,0]
[{"$f":"A8","v":"MAYO"},0,0,0,0,0,0,0,0]
[{"$f":"A9","v":"JUNIO"},0,0,0,0,0,0,0,0]
[{"$f":"A10","v":"JULIO"},0,0,0,0,0,0,0,0]
[{"$f":"A11","v":"AGOSTO"},0,0,0,0,0,0,0,0]
[{"$f":"A12","v":"SEPTIEMBRE"},0,0,0,0,0,0,0,0]
[{"$f":"A13","v":"OCTUBRE"},0,0,0,0,0,0,0,0]
[{"$f":"A14","v":"NOVIEMBRE"},0,0,0,0,0,0,0,0]
[{"$f":"A15","v":"DICIEMBRE"},0,0,0,0,0,0,0,0]
[{"$f":"A16","v":"Total general"},0,0,0,0,0,0,0,0]
[{"$f":"A17","v":0},0,0,0,0,0,0,0,0]

{"sheet":"datos","index":4,"n_rows":26,"n_cols":13,"rows_kept":26,"cut":false,"hidden":true,"merged":[]}
[]
["a","a"]
["2024-01-01",{"$f":"MONTH(A3)","v":1},null,null,null,null,null,"TIPO DE CARTERA","TIPO DE OBLIGACION","ETAPA DEL COBRO",null,"CUENTA CONTABLE\nCAPITAL","CUENTA CONTABLE\nINTERESES"]
["2024-01-31",{"$f":"MONTH(A4)","v":1},null,"ENERO","F-25 PERSUASIVO","ADN"]
["2024-02-01",2,null,"FEBRERO","F-25 COACTIVO"]
["2024-02-28",2,null,"MARZO","COACTIVO",null,null,"ADN","COBRO PERSUASIVO","COBRO PERSUASIVO",{"$f":"CONCATENATE(H6,\"_\",I6)","v":"ADN_COBRO PERSUASIVO"},138443001,819003001]
["2024-03-01",3,null,"ABRIL","PAGO SIN GESTION",null,null,"ADN","COBRO COACTIVO","COBRO COACTIVO",{"$f":"CONCATENATE(H7,\"_\",I7)","v":"ADN_COBRO COACTIVO"},138590003,819003001]
["2024-03-31",3,null,"MAYO"]
["2024-04-01",4,null,"JUNIO"]
["2024-04-30",4,null,"JULIO"]
["2024-05-01",5,null,"AGOSTO"]
["2024-05-31",5,null,"SEPTIEMBRE"]
["2024-06-01",6,null,"OCTUBRE"]
["2024-06-30",6,null,"NOVIEMBRE"]
["2024-07-01",7,null,"DICIEMBRE"]
["2024-07-31",7]
["2024-08-01",8]
["2024-08-31",8]
["2024-09-01",9]
["2024-09-30",9]
["2024-10-01",10]
["2024-10-31",10]
["2024-11-01",11]
["2024-11-30",11]
["2024-12-01",12]
["2024-12-31",12]